Body name,Directorate,Service Area Categorisation,Supplier Name,Date,Net Amount,Purpose of Spend,Procurement Classification: ProClass Label,
Solihull MBC,Business Transformation,Children & Education Services,43037000 Costa Coffee,05/11/2014,14.05,Troubled Families,261600 - Human Resources - Travel & Subsistence,
Solihull MBC,Children's Services,Children & Education Services,5Quidhost Ltd,24/11/2014,45.00,Research & Policy,271600 - Information Communication Technology - Software - Customised & Bespoke,
Solihull MBC,Children's Services,Children & Education Services,99P Stores,24/11/2014,5.94,Coleshill Heath J&I,111200 - Catering - Food & Beverages,
Solihull MBC,Adult Social Care,Adult Social Care,99P Stores Ltd,05/11/2014,3.96,OP - Locality SW South A,111200 - Catering - Food & Beverages,
Solihull MBC,Children's Services,Children & Education Services,99P Stores Ltd,12/11/2014,4.95,Woodlands Solihull Inf,111200 - Catering - Food & Beverages,
Solihull MBC,Children's Services,Children & Education Services,99P Stores Ltd,07/11/2014,7.92,Catering Management,111200 - Catering - Food & Beverages,
Solihull MBC,Children's Services,Children & Education Services,99P Stores Ltd,01/12/2014,8.91,Coronation Youth Centre,111200 - Catering - Food & Beverages,
Solihull MBC,Children's Services,Children & Education Services,99P Stores Ltd,30/11/2014,16.83,Monkspath Monkeys,111200 - Catering - Food & Beverages,
Solihull MBC,Children's Services,Children & Education Services,99P Stores Ltd,27/11/2014,39.61,Monkspath Monkeys,111200 - Catering - Food & Beverages,
Solihull MBC,Children's Services,Children & Education Services,AA Revenue Services,27/11/2014,52.92,Forest Oak,202100 - Financial Services - Subscriptions,
Solihull MBC,Children's Services,Children & Education Services,AA Revenue Services,04/11/2014,186.88,Reynalds Cross,202100 - Financial Services - Subscriptions,
Solihull MBC,Resources,Central Services to the Public,Aboutrooms.com,05/11/2014,345.00,ICT: Network Support,261000 - Human Resources - Accommodation,
Solihull MBC,Resources,Central Services to the Public,Adobe Systems Software,22/11/2014,16.11,ICT: Desktop Team Helpdesk,271430 - Information Communication Technology - Software - Commercial Off-The-Shelf,
Solihull MBC,Children's Services,Children & Education Services,Adsa Stores Ltd 4231,29/11/2014,3.56,Catering Management,111200 - Catering - Food & Beverages,
Solihull MBC,Children's Services,Children & Education Services,Adventure Toys Ltd,08/11/2014,20.00,Reynalds Cross,171117 - Education - Toys,
Solihull MBC,Children's Services,Children & Education Services,Age Uk,05/11/2014,68.50,St John The Baptist J&I,201710 - Financial Services - Grants - Charitable,
Solihull MBC,Children's Services,Children & Education Services,Aiano,28/11/2014,612.62,Burman Inf,101400 - Building Construction Materials - General Materials,
Solihull MBC,Children's Services,Children & Education Services,Alan Warwick,11/11/2014,5.00,Evolution Project (BIP),111200 - Catering - Food & Beverages,
Solihull MBC,Children's Services,Children & Education Services,Alan Warwick,17/11/2014,5.00,Evolution Project (BIP),111200 - Catering - Food & Beverages,
Solihull MBC,Children's Services,Children & Education Services,Alan Warwick,25/11/2014,5.00,Evolution Project (BIP),111200 - Catering - Food & Beverages,
Solihull MBC,Children's Services,Children & Education Services,Alan Warwick,26/11/2014,13.68,Evolution Project (BIP),111200 - Catering - Food & Beverages,
Solihull MBC,Children's Services,Children & Education Services,Alan Warwick,05/11/2014,16.90,Evolution Project (BIP),111200 - Catering - Food & Beverages,
Solihull MBC,Children's Services,Children & Education Services,Aldi,25/11/2014,18.98,Shirley Heath Jnr,111200 - Catering - Food & Beverages,
Solihull MBC,Children's Services,Children & Education Services,Amazon *Mktplce Eu-UK,13/11/2014,-12.36,St Margaret's J&I,171114 - Education - Literature,
Solihull MBC,Children's Services,Children & Education Services,Amazon *Mktplce Eu-UK,27/11/2014,1.20,Kingshurst Primary,171114 - Education - Literature,
Solihull MBC,Children's Services,Children & Education Services,Amazon *Mktplce Eu-UK,28/11/2014,1.29,Kingshurst Primary,171114 - Education - Literature,
Solihull MBC,Children's Services,Children & Education Services,Amazon *Mktplce Eu-UK,11/11/2014,1.75,S C Kids,171114 - Education - Literature,
Solihull MBC,Children's Services,Children & Education Services,Amazon *Mktplce Eu-UK,10/11/2014,1.77,Streetsbrook Inf,171114 - Education - Literature,
Solihull MBC,Children's Services,Children & Education Services,Amazon *Mktplce Eu-UK,26/11/2014,1.84,St George & Teresa J&I,171114 - Education - Literature,
Solihull MBC,Children's Services,Children & Education Services,Amazon *Mktplce Eu-UK,11/11/2014,1.85,S C Kids,171114 - Education - Literature,
Solihull MBC,Children's Services,Children & Education Services,Amazon *Mktplce Eu-UK,23/11/2014,1.85,Hazel Oak,171114 - Education - Literature,
Solihull MBC,Children's Services,Children & Education Services,Amazon *Mktplce Eu-UK,28/11/2014,1.90,Kingshurst Primary,171114 - Education - Literature,
Solihull MBC,Children's Services,Children & Education Services,Amazon *Mktplce Eu-UK,12/11/2014,1.99,Marston Green Jnr,171114 - Education - Literature,
Solihull MBC,Children's Services,Children & Education Services,Amazon *Mktplce Eu-UK,27/11/2014,2.08,Yorkswood J&I,171114 - Education - Literature,
Solihull MBC,Children's Services,Children & Education Services,Amazon *Mktplce Eu-UK,12/11/2014,2.09,Our Lady Compassion  J&I,171114 - Education - Literature,
Solihull MBC,Children's Services,Children & Education Services,Amazon *Mktplce Eu-UK,07/11/2014,2.15,Yorkswood N'hood Nursery,169999 - Domestic Goods - Not Elsewhere Classified,
Solihull MBC,Children's Services,Children & Education Services,Amazon *Mktplce Eu-UK,19/11/2014,2.20,Reynalds Cross,171114 - Education - Literature,
Solihull MBC,Children's Services,Children & Education Services,Amazon *Mktplce Eu-UK,28/11/2014,2.20,Kingshurst Primary,171114 - Education - Literature,
Solihull MBC,Children's Services,Children & Education Services,Amazon *Mktplce Eu-UK,27/11/2014,2.49,Marston Green Jnr,171114 - Education - Literature,
Solihull MBC,Children's Services,Children & Education Services,Amazon *Mktplce Eu-UK,27/11/2014,2.69,Hazel Oak,171114 - Education - Literature,
Solihull MBC,Children's Services,Children & Education Services,Amazon *Mktplce Eu-UK,14/11/2014,2.71,Hazel Oak,171114 - Education - Literature,
Solihull MBC,Children's Services,Children & Education Services,Amazon *Mktplce Eu-UK,06/11/2014,2.81,Marston Green Jnr,171114 - Education - Literature,
Solihull MBC,Children's Services,Children & Education Services,Amazon *Mktplce Eu-UK,28/11/2014,2.84,Kingshurst Primary,171114 - Education - Literature,
Solihull MBC,Children's Services,Children & Education Services,Amazon *Mktplce Eu-UK,02/12/2014,2.92,Peterbrook J&I,171114 - Education - Literature,
Solihull MBC,Children's Services,Children & Education Services,Amazon *Mktplce Eu-UK,10/11/2014,2.93,Yorkswood N'hood Nursery,171114 - Education - Literature,
Solihull MBC,Children's Services,Children & Education Services,Amazon *Mktplce Eu-UK,07/11/2014,2.95,Our Lady Compassion  J&I,171114 - Education - Literature,
Solihull MBC,Children's Services,Children & Education Services,Amazon *Mktplce Eu-UK,11/11/2014,2.98,S C Kids,171114 - Education - Literature,
Solihull MBC,Children's Services,Children & Education Services,Amazon *Mktplce Eu-UK,20/11/2014,2.99,Woodlands Solihull Inf,171114 - Education - Literature,
Solihull MBC,Children's Services,Children & Education Services,Amazon *Mktplce Eu-UK,11/11/2014,3.05,Streetsbrook Inf,171114 - Education - Literature,
Solihull MBC,Children's Services,Children & Education Services,Amazon *Mktplce Eu-UK,25/11/2014,3.16,Smith's Wood,171114 - Education - Literature,
Solihull MBC,Places - HRA,Housing Revenue Account,Amazon *Mktplce Eu-UK,26/11/2014,3.35,Purchase Card Acquisitions,171114 - Education - Literature,
Solihull MBC,Children's Services,Children & Education Services,Amazon *Mktplce Eu-UK,01/12/2014,3.43,Afterschool Club,171114 - Education - Literature,
Solihull MBC,Children's Services,Children & Education Services,Amazon *Mktplce Eu-UK,17/11/2014,3.49,Shirley Heath Jnr,171114 - Education - Literature,
Solihull MBC,Children's Services,Children & Education Services,Amazon *Mktplce Eu-UK,28/11/2014,3.58,Kingshurst Primary,171114 - Education - Literature,
Solihull MBC,Children's Services,Children & Education Services,Amazon *Mktplce Eu-UK,20/11/2014,3.60,Reynalds Cross,171114 - Education - Literature,
Solihull MBC,Children's Services,Children & Education Services,Amazon *Mktplce Eu-UK,12/11/2014,3.65,Widney Jnr,171114 - Education - Literature,
Solihull MBC,Children's Services,Children & Education Services,Amazon *Mktplce Eu-UK,01/12/2014,3.68,St Alphege Jnr,171114 - Education - Literature,
Solihull MBC,Children's Services,Children & Education Services,Amazon *Mktplce Eu-UK,07/11/2014,3.75,Wrap Around Club,169999 - Domestic Goods - Not Elsewhere Classified,
Solihull MBC,Children's Services,Children & Education Services,Amazon *Mktplce Eu-UK,12/11/2014,3.85,Hazel Oak,171114 - Education - Literature,
Solihull MBC,Children's Services,Children & Education Services,Amazon *Mktplce Eu-UK,25/11/2014,3.86,Reynalds Cross,171114 - Education - Literature,
Solihull MBC,Children's Services,Children & Education Services,Amazon *Mktplce Eu-UK,26/11/2014,3.98,Chapel Fields Jnr,171114 - Education - Literature,
Solihull MBC,Children's Services,Children & Education Services,Amazon *Mktplce Eu-UK,20/11/2014,3.98,Castle Bromwich Jnr,171114 - Education - Literature,
Solihull MBC,Children's Services,Children & Education Services,Amazon *Mktplce Eu-UK,19/11/2014,3.99,Shirley Heath Jnr,171114 - Education - Literature,
Solihull MBC,Children's Services,Children & Education Services,Amazon *Mktplce Eu-UK,19/11/2014,4.00,Meriden J&I,171114 - Education - Literature,
Solihull MBC,Children's Services,Children & Education Services,Amazon *Mktplce Eu-UK,27/11/2014,4.15,Hazel Oak,171114 - Education - Literature,
Solihull MBC,Children's Services,Children & Education Services,Amazon *Mktplce Eu-UK,28/11/2014,4.16,Kingshurst Primary,171114 - Education - Literature,
Solihull MBC,Children's Services,Children & Education Services,Amazon *Mktplce Eu-UK,06/11/2014,4.30,Marston Green Jnr,171114 - Education - Literature,
Solihull MBC,Children's Services,Children & Education Services,Amazon *Mktplce Eu-UK,25/11/2014,4.48,Damson Wood Inf,171114 - Education - Literature,
Solihull MBC,Children's Services,Children & Education Services,Amazon *Mktplce Eu-UK,12/11/2014,4.52,Reynalds Cross,171114 - Education - Literature,
Solihull MBC,Children's Services,Children & Education Services,Amazon *Mktplce Eu-UK,25/11/2014,4.52,Peterbrook J&I,169999 - Domestic Goods - Not Elsewhere Classified,
Solihull MBC,Children's Services,Children & Education Services,Amazon *Mktplce Eu-UK,03/11/2014,4.70,Windy Arbor J&I,171114 - Education - Literature,
Solihull MBC,Children's Services,Children & Education Services,Amazon *Mktplce Eu-UK,27/11/2014,4.78,Cranmore Inf,171114 - Education - Literature,
Solihull MBC,Children's Services,Children & Education Services,Amazon *Mktplce Eu-UK,06/11/2014,4.80,Marston Green Jnr,169999 - Domestic Goods - Not Elsewhere Classified,
Solihull MBC,Children's Services,Children & Education Services,Amazon *Mktplce Eu-UK,20/11/2014,4.91,Ark,171114 - Education - Literature,
Solihull MBC,Children's Services,Children & Education Services,Amazon *Mktplce Eu-UK,06/11/2014,4.93,Hazel Oak,171114 - Education - Literature,
Solihull MBC,Children's Services,Children & Education Services,Amazon *Mktplce Eu-UK,06/11/2014,4.94,Marston Green Jnr,171114 - Education - Literature,
Solihull MBC,Children's Services,Children & Education Services,Amazon *Mktplce Eu-UK,06/11/2014,4.95,Marston Green Jnr,171114 - Education - Literature,
Solihull MBC,Children's Services,Children & Education Services,Amazon *Mktplce Eu-UK,11/11/2014,4.95,S C Kids,171114 - Education - Literature,
Solihull MBC,Children's Services,Children & Education Services,Amazon *Mktplce Eu-UK,28/11/2014,4.98,Kingshurst Primary,169999 - Domestic Goods - Not Elsewhere Classified,
Solihull MBC,Children's Services,Children & Education Services,Amazon *Mktplce Eu-UK,24/11/2014,5.00,Section 17 South/Central,171114 - Education - Literature,
Solihull MBC,Children's Services,Children & Education Services,Amazon *Mktplce Eu-UK,20/11/2014,5.10,Reynalds Cross,171114 - Education - Literature,
Solihull MBC,Children's Services,Children & Education Services,Amazon *Mktplce Eu-UK,13/11/2014,5.15,Dickens Hth Primary,171114 - Education - Literature,
Solihull MBC,Places - HRA,Housing Revenue Account,Amazon *Mktplce Eu-UK,12/11/2014,5.24,Purchase Card Acquisitions,171114 - Education - Literature,
Solihull MBC,Children's Services,Children & Education Services,Amazon *Mktplce Eu-UK,25/11/2014,5.46,St John The Baptist J&I,171114 - Education - Literature,
Solihull MBC,Children's Services,Children & Education Services,Amazon *Mktplce Eu-UK,27/11/2014,5.49,Hazel Oak,171114 - Education - Literature,
Solihull MBC,Children's Services,Children & Education Services,Amazon *Mktplce Eu-UK,17/11/2014,5.50,Our Lady Compassion  J&I,171114 - Education - Literature,
Solihull MBC,Children's Services,Children & Education Services,Amazon *Mktplce Eu-UK,28/11/2014,5.78,Blossomfield Inf,171114 - Education - Literature,
Solihull MBC,Children's Services,Children & Education Services,Amazon *Mktplce Eu-UK,06/11/2014,5.90,Windy Arbor J&I,171114 - Education - Literature,
Solihull MBC,Children's Services,Children & Education Services,Amazon *Mktplce Eu-UK,02/12/2014,5.93,Peterbrook J&I,169999 - Domestic Goods - Not Elsewhere Classified,
Solihull MBC,Children's Services,Children & Education Services,Amazon *Mktplce Eu-UK,11/11/2014,5.95,S C Kids,171114 - Education - Literature,
Solihull MBC,Children's Services,Children & Education Services,Amazon *Mktplce Eu-UK,25/11/2014,5.97,Burman Inf,171114 - Education - Literature,
Solihull MBC,Children's Services,Children & Education Services,Amazon *Mktplce Eu-UK,03/11/2014,5.99,Castle Bromwich Inf,171114 - Education - Literature,
Solihull MBC,Children's Services,Children & Education Services,Amazon *Mktplce Eu-UK,01/12/2014,5.99,Burman Inf,169999 - Domestic Goods - Not Elsewhere Classified,
Solihull MBC,Children's Services,Children & Education Services,Amazon *Mktplce Eu-UK,05/11/2014,6.17,Smith's Wood,171114 - Education - Literature,
Solihull MBC,Children's Services,Children & Education Services,Amazon *Mktplce Eu-UK,01/12/2014,6.25,Afterschool Club,171114 - Education - Literature,
Solihull MBC,Children's Services,Children & Education Services,Amazon *Mktplce Eu-UK,05/11/2014,6.29,Marston Green Jnr,171114 - Education - Literature,
Solihull MBC,Children's Services,Children & Education Services,Amazon *Mktplce Eu-UK,25/11/2014,6.30,St George & Teresa J&I,169999 - Domestic Goods - Not Elsewhere Classified,
Solihull MBC,Children's Services,Children & Education Services,Amazon *Mktplce Eu-UK,12/11/2014,6.37,Hazel Oak,171114 - Education - Literature,
Solihull MBC,Children's Services,Children & Education Services,Amazon *Mktplce Eu-UK,27/11/2014,6.39,Kingshurst Primary,171114 - Education - Literature,
Solihull MBC,Children's Services,Children & Education Services,Amazon *Mktplce Eu-UK,20/11/2014,6.49,Woodlands Solihull Inf,171114 - Education - Literature,
Solihull MBC,Children's Services,Children & Education Services,Amazon *Mktplce Eu-UK,07/11/2014,6.55,Yorkswood N'hood Nursery,171114 - Education - Literature,
Solihull MBC,Children's Services,Children & Education Services,Amazon *Mktplce Eu-UK,18/11/2014,6.57,Meriden J&I,171114 - Education - Literature,
Solihull MBC,Children's Services,Children & Education Services,Amazon *Mktplce Eu-UK,18/11/2014,6.70,Cranmore Inf,169999 - Domestic Goods - Not Elsewhere Classified,
Solihull MBC,Children's Services,Children & Education Services,Amazon *Mktplce Eu-UK,21/11/2014,6.77,Hazel Oak,171114 - Education - Literature,
Solihull MBC,Children's Services,Children & Education Services,Amazon *Mktplce Eu-UK,20/11/2014,6.79,Berkswell J&I,171114 - Education - Literature,
Solihull MBC,Children's Services,Children & Education Services,Amazon *Mktplce Eu-UK,01/12/2014,6.88,Our Lady Wayside J&I,171114 - Education - Literature,
Solihull MBC,Children's Services,Children & Education Services,Amazon *Mktplce Eu-UK,21/11/2014,6.94,Reynalds Cross,171114 - Education - Literature,
Solihull MBC,Children's Services,Children & Education Services,Amazon *Mktplce Eu-UK,12/11/2014,6.99,Our Lady Compassion  J&I,171114 - Education - Literature,
Solihull MBC,Children's Services,Children & Education Services,Amazon *Mktplce Eu-UK,21/11/2014,6.99,Our Lady Wayside J&I,171114 - Education - Literature,
Solihull MBC,Children's Services,Children & Education Services,Amazon *Mktplce Eu-UK,10/11/2014,7.00,Yorkswood N'hood Nursery,171114 - Education - Literature,
Solihull MBC,Children's Services,Children & Education Services,Amazon *Mktplce Eu-UK,05/11/2014,7.16,Yorkswood J&I,171114 - Education - Literature,
Solihull MBC,Children's Services,Children & Education Services,Amazon *Mktplce Eu-UK,14/11/2014,7.23,St Margaret's J&I,171114 - Education - Literature,
Solihull MBC,Children's Services,Children & Education Services,Amazon *Mktplce Eu-UK,25/11/2014,7.41,St George & Teresa J&I,171114 - Education - Literature,
Solihull MBC,Children's Services,Children & Education Services,Amazon *Mktplce Eu-UK,24/11/2014,7.44,George Fentham J&I,171114 - Education - Literature,
Solihull MBC,Children's Services,Children & Education Services,Amazon *Mktplce Eu-UK,19/11/2014,7.48,Reynalds Cross,171114 - Education - Literature,
Solihull MBC,Children's Services,Children & Education Services,Amazon *Mktplce Eu-UK,26/11/2014,7.85,Chapel Fields Jnr,171114 - Education - Literature,
Solihull MBC,Children's Services,Children & Education Services,Amazon *Mktplce Eu-UK,17/11/2014,7.86,Smith's Wood,171114 - Education - Literature,
Solihull MBC,Children's Services,Children & Education Services,Amazon *Mktplce Eu-UK,28/11/2014,7.90,Hazel Oak,171114 - Education - Literature,
Solihull MBC,Children's Services,Children & Education Services,Amazon *Mktplce Eu-UK,27/11/2014,7.94,Kingshurst Primary,171114 - Education - Literature,
Solihull MBC,Children's Services,Children & Education Services,Amazon *Mktplce Eu-UK,20/11/2014,7.96,Reynalds Cross,171114 - Education - Literature,
Solihull MBC,Children's Services,Children & Education Services,Amazon *Mktplce Eu-UK,24/11/2014,7.98,Burman Inf,171114 - Education - Literature,
Solihull MBC,Children's Services,Children & Education Services,Amazon *Mktplce Eu-UK,21/11/2014,7.99,Reynalds Cross,171114 - Education - Literature,
Solihull MBC,Adult Social Care,Adult Social Care,Amazon *Mktplce Eu-UK,23/11/2014,7.99,OP - Locality SW South A,169999 - Domestic Goods - Not Elsewhere Classified,
Solihull MBC,Children's Services,Children & Education Services,Amazon *Mktplce Eu-UK,25/11/2014,8.22,Burman Inf,171114 - Education - Literature,
Solihull MBC,Children's Services,Children & Education Services,Amazon *Mktplce Eu-UK,01/12/2014,8.34,Widney Jnr,171114 - Education - Literature,
Solihull MBC,Children's Services,Children & Education Services,Amazon *Mktplce Eu-UK,20/11/2014,8.47,Reynalds Cross,169999 - Domestic Goods - Not Elsewhere Classified,
Solihull MBC,Children's Services,Children & Education Services,Amazon *Mktplce Eu-UK,01/12/2014,8.52,Widney Jnr,169999 - Domestic Goods - Not Elsewhere Classified,
Solihull MBC,Children's Services,Children & Education Services,Amazon *Mktplce Eu-UK,24/11/2014,8.57,Hazel Oak,171114 - Education - Literature,
Solihull MBC,Children's Services,Children & Education Services,Amazon *Mktplce Eu-UK,28/11/2014,8.70,Kingshurst Primary,171114 - Education - Literature,
Solihull MBC,Children's Services,Children & Education Services,Amazon *Mktplce Eu-UK,06/11/2014,8.82,Marston Green Jnr,171114 - Education - Literature,
Solihull MBC,Places - HRA,Housing Revenue Account,Amazon *Mktplce Eu-UK,21/11/2014,8.97,Purchase Card Acquisitions,171114 - Education - Literature,
Solihull MBC,Children's Services,Children & Education Services,Amazon *Mktplce Eu-UK,07/11/2014,8.97,Auckland Centre,171114 - Education - Literature,
Solihull MBC,Children's Services,Children & Education Services,Amazon *Mktplce Eu-UK,21/11/2014,8.97,Peterbrook Club,171114 - Education - Literature,
Solihull MBC,Children's Services,Children & Education Services,Amazon *Mktplce Eu-UK,02/12/2014,8.98,Hazel Oak,171114 - Education - Literature,
Solihull MBC,Children's Services,Children & Education Services,Amazon *Mktplce Eu-UK,05/11/2014,8.99,Lyndon,171114 - Education - Literature,
Solihull MBC,Children's Services,Children & Education Services,Amazon *Mktplce Eu-UK,24/11/2014,8.99,Damson Wood Inf,171114 - Education - Literature,
Solihull MBC,Children's Services,Children & Education Services,Amazon *Mktplce Eu-UK,25/11/2014,8.99,Smith's Wood,171114 - Education - Literature,
Solihull MBC,Children's Services,Children & Education Services,Amazon *Mktplce Eu-UK,04/11/2014,9.25,St Margaret's J&I,171114 - Education - Literature,
Solihull MBC,Children's Services,Children & Education Services,Amazon *Mktplce Eu-UK,18/11/2014,9.38,St Alphege Jnr,171114 - Education - Literature,
Solihull MBC,Children's Services,Children & Education Services,Amazon *Mktplce Eu-UK,26/11/2014,9.40,Ulverley J&I,171114 - Education - Literature,
Solihull MBC,Children's Services,Children & Education Services,Amazon *Mktplce Eu-UK,12/11/2014,9.42,Our Lady Wayside J&I,171114 - Education - Literature,
Solihull MBC,Children's Services,Children & Education Services,Amazon *Mktplce Eu-UK,07/11/2014,9.75,St Anne's J&I,169999 - Domestic Goods - Not Elsewhere Classified,
Solihull MBC,Children's Services,Children & Education Services,Amazon *Mktplce Eu-UK,23/11/2014,9.75,Hazel Oak,171114 - Education - Literature,
Solihull MBC,Children's Services,Children & Education Services,Amazon *Mktplce Eu-UK,24/11/2014,9.95,Specialist Inclusion Support Service,171114 - Education - Literature,
Solihull MBC,Children's Services,Children & Education Services,Amazon *Mktplce Eu-UK,27/11/2014,9.95,Monkspath J&I,171114 - Education - Literature,
Solihull MBC,Children's Services,Children & Education Services,Amazon *Mktplce Eu-UK,12/11/2014,9.97,Marston Green Jnr,171114 - Education - Literature,
Solihull MBC,Children's Services,Children & Education Services,Amazon *Mktplce Eu-UK,18/11/2014,9.99,Shirley Heath Jnr,171114 - Education - Literature,
Solihull MBC,Children's Services,Children & Education Services,Amazon *Mktplce Eu-UK,05/11/2014,10.08,Marston Green Jnr,171114 - Education - Literature,
Solihull MBC,Children's Services,Children & Education Services,Amazon *Mktplce Eu-UK,20/11/2014,10.09,Reynalds Cross,171114 - Education - Literature,
Solihull MBC,Children's Services,Children & Education Services,Amazon *Mktplce Eu-UK,07/11/2014,10.10,Marston Green Jnr,171114 - Education - Literature,
Solihull MBC,Children's Services,Children & Education Services,Amazon *Mktplce Eu-UK,18/11/2014,10.40,Swallows Childcare,171114 - Education - Literature,
Solihull MBC,Children's Services,Children & Education Services,Amazon *Mktplce Eu-UK,10/11/2014,10.49,Coppice Jnr,171114 - Education - Literature,
Solihull MBC,Children's Services,Children & Education Services,Amazon *Mktplce Eu-UK,02/12/2014,10.49,Lyndon,171114 - Education - Literature,
Solihull MBC,Children's Services,Children & Education Services,Amazon *Mktplce Eu-UK,04/11/2014,10.59,Yorkswood J&I,171114 - Education - Literature,
Solihull MBC,Children's Services,Children & Education Services,Amazon *Mktplce Eu-UK,26/11/2014,10.70,Langley J&I,171114 - Education - Literature,
Solihull MBC,Children's Services,Children & Education Services,Amazon *Mktplce Eu-UK,21/11/2014,10.78,Berkswell J&I,171114 - Education - Literature,
Solihull MBC,Children's Services,Children & Education Services,Amazon *Mktplce Eu-UK,06/11/2014,10.79,Windy Arbor J&I,171114 - Education - Literature,
Solihull MBC,Children's Services,Children & Education Services,Amazon *Mktplce Eu-UK,06/11/2014,10.94,Windy Arbor J&I,171114 - Education - Literature,
Solihull MBC,Children's Services,Children & Education Services,Amazon *Mktplce Eu-UK,29/11/2014,10.95,Our Lady Compassion  J&I,171114 - Education - Literature,
Solihull MBC,Children's Services,Children & Education Services,Amazon *Mktplce Eu-UK,21/11/2014,10.95,Yorkswood N'hood Nursery,171114 - Education - Literature,
Solihull MBC,Children's Services,Children & Education Services,Amazon *Mktplce Eu-UK,26/11/2014,10.98,Reynalds Cross,171114 - Education - Literature,
Solihull MBC,Children's Services,Children & Education Services,Amazon *Mktplce Eu-UK,04/11/2014,10.99,Hazel Oak,171114 - Education - Literature,
Solihull MBC,Children's Services,Children & Education Services,Amazon *Mktplce Eu-UK,23/11/2014,11.00,George Fentham J&I,171114 - Education - Literature,
Solihull MBC,Children's Services,Children & Education Services,Amazon *Mktplce Eu-UK,12/11/2014,11.04,Oak Cottage J&I,171114 - Education - Literature,
Solihull MBC,Children's Services,Children & Education Services,Amazon *Mktplce Eu-UK,23/11/2014,11.07,Afterschool Club,171114 - Education - Literature,
Solihull MBC,Children's Services,Children & Education Services,Amazon *Mktplce Eu-UK,07/11/2014,11.36,Our Lady Compassion  J&I,171114 - Education - Literature,
Solihull MBC,Children's Services,Children & Education Services,Amazon *Mktplce Eu-UK,23/11/2014,11.43,Tidbury Green J&I,171114 - Education - Literature,
Solihull MBC,Children's Services,Children & Education Services,Amazon *Mktplce Eu-UK,11/11/2014,11.47,S C Kids,171114 - Education - Literature,
Solihull MBC,Children's Services,Children & Education Services,Amazon *Mktplce Eu-UK,27/11/2014,11.48,Reynalds Cross,171114 - Education - Literature,
Solihull MBC,Children's Services,Children & Education Services,Amazon *Mktplce Eu-UK,11/11/2014,11.70,Meriden J&I,171114 - Education - Literature,
Solihull MBC,Children's Services,Children & Education Services,Amazon *Mktplce Eu-UK,13/11/2014,11.74,Reynalds Cross,171114 - Education - Literature,
Solihull MBC,Children's Services,Children & Education Services,Amazon *Mktplce Eu-UK,22/11/2014,11.93,Reynalds Cross,171114 - Education - Literature,
Solihull MBC,Children's Services,Children & Education Services,Amazon *Mktplce Eu-UK,19/11/2014,11.96,St Margaret's J&I,171114 - Education - Literature,
Solihull MBC,Children's Services,Children & Education Services,Amazon *Mktplce Eu-UK,24/11/2014,11.98,Yorkswood N'hood Nursery,171114 - Education - Literature,
Solihull MBC,Children's Services,Children & Education Services,Amazon *Mktplce Eu-UK,26/11/2014,11.99,Cranmore Inf,169999 - Domestic Goods - Not Elsewhere Classified,
Solihull MBC,Children's Services,Children & Education Services,Amazon *Mktplce Eu-UK,18/11/2014,12.00,St John The Baptist J&I,171114 - Education - Literature,
Solihull MBC,Children's Services,Children & Education Services,Amazon *Mktplce Eu-UK,07/11/2014,12.12,Hazel Oak,171114 - Education - Literature,
Solihull MBC,Children's Services,Children & Education Services,Amazon *Mktplce Eu-UK,08/11/2014,12.20,Yorkswood N'hood Nursery,171114 - Education - Literature,
Solihull MBC,Children's Services,Children & Education Services,Amazon *Mktplce Eu-UK,23/11/2014,12.20,Dickens Hth Primary,171114 - Education - Literature,
Solihull MBC,Places,Cultural & Related Services,Amazon *Mktplce Eu-UK,12/11/2014,12.25,Park Rangers,171114 - Education - Literature,
Solihull MBC,Children's Services,Children & Education Services,Amazon *Mktplce Eu-UK,19/11/2014,12.48,Reynalds Cross,171114 - Education - Literature,
Solihull MBC,Children's Services,Children & Education Services,Amazon *Mktplce Eu-UK,01/12/2014,12.49,Afterschool Club,171114 - Education - Literature,
Solihull MBC,Children's Services,Children & Education Services,Amazon *Mktplce Eu-UK,11/11/2014,12.67,Marston Green Jnr,171114 - Education - Literature,
Solihull MBC,Children's Services,Children & Education Services,Amazon *Mktplce Eu-UK,13/11/2014,12.95,Our Lady Compassion  J&I,171114 - Education - Literature,
Solihull MBC,Adult Social Care,Adult Social Care,Amazon *Mktplce Eu-UK,06/11/2014,12.96,OP - Locality SW South A,171114 - Education - Literature,
Solihull MBC,Children's Services,Children & Education Services,Amazon *Mktplce Eu-UK,25/11/2014,12.99,Dickens Hth Primary,171114 - Education - Literature,
Solihull MBC,Children's Services,Children & Education Services,Amazon *Mktplce Eu-UK,24/11/2014,13.16,Kingshurst Primary,171114 - Education - Literature,
Solihull MBC,Children's Services,Children & Education Services,Amazon *Mktplce Eu-UK,06/11/2014,13.20,Chapel Fields Jnr,171114 - Education - Literature,
Solihull MBC,Children's Services,Children & Education Services,Amazon *Mktplce Eu-UK,19/11/2014,13.22,Shirley Heath Jnr,171114 - Education - Literature,
Solihull MBC,Children's Services,Children & Education Services,Amazon *Mktplce Eu-UK,30/11/2014,13.47,Our Lady Wayside J&I,171114 - Education - Literature,
Solihull MBC,Children's Services,Children & Education Services,Amazon *Mktplce Eu-UK,19/11/2014,13.62,St Margaret's J&I,171114 - Education - Literature,
Solihull MBC,Children's Services,Children & Education Services,Amazon *Mktplce Eu-UK,19/11/2014,13.68,Fieldwork Sector And Court,171114 - Education - Literature,
Solihull MBC,Children's Services,Children & Education Services,Amazon *Mktplce Eu-UK,24/11/2014,13.79,Hazel Oak,171114 - Education - Literature,
Solihull MBC,Children's Services,Children & Education Services,Amazon *Mktplce Eu-UK,05/11/2014,13.99,Lyndon,171114 - Education - Literature,
Solihull MBC,Children's Services,Children & Education Services,Amazon *Mktplce Eu-UK,18/11/2014,13.99,Shirley Heath Jnr,169999 - Domestic Goods - Not Elsewhere Classified,
Solihull MBC,Children's Services,Children & Education Services,Amazon *Mktplce Eu-UK,07/11/2014,14.32,Marston Green Jnr,171114 - Education - Literature,
Solihull MBC,Children's Services,Children & Education Services,Amazon *Mktplce Eu-UK,05/11/2014,14.42,Yorkswood J&I,171114 - Education - Literature,
Solihull MBC,Children's Services,Children & Education Services,Amazon *Mktplce Eu-UK,14/11/2014,14.57,Hazel Oak,171114 - Education - Literature,
Solihull MBC,Children's Services,Children & Education Services,Amazon *Mktplce Eu-UK,20/11/2014,14.85,Ark,171114 - Education - Literature,
Solihull MBC,Children's Services,Children & Education Services,Amazon *Mktplce Eu-UK,12/11/2014,14.88,Our Lady Wayside J&I,171114 - Education - Literature,
Solihull MBC,Children's Services,Children & Education Services,Amazon *Mktplce Eu-UK,11/11/2014,15.00,Chapel Fields Jnr,171114 - Education - Literature,
Solihull MBC,Children's Services,Children & Education Services,Amazon *Mktplce Eu-UK,11/11/2014,15.03,Fostering Team,171114 - Education - Literature,
Solihull MBC,Children's Services,Children & Education Services,Amazon *Mktplce Eu-UK,12/11/2014,15.08,Meriden J&I,171114 - Education - Literature,
Solihull MBC,Children's Services,Children & Education Services,Amazon *Mktplce Eu-UK,03/11/2014,15.20,Kingshurst Primary,171114 - Education - Literature,
Solihull MBC,Children's Services,Children & Education Services,Amazon *Mktplce Eu-UK,01/12/2014,15.48,Peterbrook J&I,171114 - Education - Literature,
Solihull MBC,Children's Services,Children & Education Services,Amazon *Mktplce Eu-UK,20/11/2014,15.99,Reynalds Cross,169999 - Domestic Goods - Not Elsewhere Classified,
Solihull MBC,Children's Services,Children & Education Services,Amazon *Mktplce Eu-UK,17/11/2014,16.50,St John The Baptist J&I,171114 - Education - Literature,
Solihull MBC,Children's Services,Children & Education Services,Amazon *Mktplce Eu-UK,18/11/2014,16.70,Langley J&I,171114 - Education - Literature,
Solihull MBC,Children's Services,Children & Education Services,Amazon *Mktplce Eu-UK,06/11/2014,16.99,St Anthony's J&I,171114 - Education - Literature,
Solihull MBC,Children's Services,Children & Education Services,Amazon *Mktplce Eu-UK,06/11/2014,16.99,St Anthony's J&I,171114 - Education - Literature,
Solihull MBC,Children's Services,Children & Education Services,Amazon *Mktplce Eu-UK,07/11/2014,17.00,Hazel Oak,171114 - Education - Literature,
Solihull MBC,Children's Services,Children & Education Services,Amazon *Mktplce Eu-UK,24/11/2014,17.15,St John The Baptist J&I,171114 - Education - Literature,
Solihull MBC,Children's Services,Children & Education Services,Amazon *Mktplce Eu-UK,28/11/2014,17.24,Cranmore Inf,169999 - Domestic Goods - Not Elsewhere Classified,
Solihull MBC,Children's Services,Children & Education Services,Amazon *Mktplce Eu-UK,01/12/2014,17.33,Widney Jnr,171114 - Education - Literature,
Solihull MBC,Children's Services,Children & Education Services,Amazon *Mktplce Eu-UK,20/11/2014,17.81,Reynalds Cross,171114 - Education - Literature,
Solihull MBC,Children's Services,Children & Education Services,Amazon *Mktplce Eu-UK,21/11/2014,17.84,Peterbrook Club,169999 - Domestic Goods - Not Elsewhere Classified,
Solihull MBC,Children's Services,Children & Education Services,Amazon *Mktplce Eu-UK,17/11/2014,17.88,Smith's Wood,171114 - Education - Literature,
Solihull MBC,Children's Services,Children & Education Services,Amazon *Mktplce Eu-UK,24/11/2014,17.95,Lyndon,171114 - Education - Literature,
Solihull MBC,Children's Services,Children & Education Services,Amazon *Mktplce Eu-UK,12/11/2014,17.98,Reynalds Cross,171114 - Education - Literature,
Solihull MBC,Children's Services,Children & Education Services,Amazon *Mktplce Eu-UK,19/11/2014,17.98,Reynalds Cross,171114 - Education - Literature,
Solihull MBC,Children's Services,Children & Education Services,Amazon *Mktplce Eu-UK,27/11/2014,18.99,Marston Green Jnr,171114 - Education - Literature,
Solihull MBC,Children's Services,Children & Education Services,Amazon *Mktplce Eu-UK,21/11/2014,19.00,Hazel Oak,171114 - Education - Literature,
Solihull MBC,Children's Services,Children & Education Services,Amazon *Mktplce Eu-UK,19/11/2014,19.35,Meriden J&I,171114 - Education - Literature,
Solihull MBC,Children's Services,Children & Education Services,Amazon *Mktplce Eu-UK,28/11/2014,19.48,Blossomfield Inf,171114 - Education - Literature,
Solihull MBC,Children's Services,Children & Education Services,Amazon *Mktplce Eu-UK,27/11/2014,19.54,Kingshurst Primary,171114 - Education - Literature,
Solihull MBC,Children's Services,Children & Education Services,Amazon *Mktplce Eu-UK,27/11/2014,19.56,Chapel Fields Jnr,171114 - Education - Literature,
Solihull MBC,Governance  ,Corporate & Democratic Core,Amazon *Mktplce Eu-UK,02/12/2014,19.74,Mayoral Services,171114 - Education - Literature,
Solihull MBC,Children's Services,Children & Education Services,Amazon *Mktplce Eu-UK,06/11/2014,19.81,Valley Inf,171114 - Education - Literature,
Solihull MBC,Children's Services,Children & Education Services,Amazon *Mktplce Eu-UK,13/11/2014,19.94,Reynalds Cross,169999 - Domestic Goods - Not Elsewhere Classified,
Solihull MBC,Children's Services,Children & Education Services,Amazon *Mktplce Eu-UK,07/11/2014,20.00,Burman Inf,171114 - Education - Literature,
Solihull MBC,Children's Services,Children & Education Services,Amazon *Mktplce Eu-UK,15/11/2014,20.49,Smith's Wood,171114 - Education - Literature,
Solihull MBC,Children's Services,Children & Education Services,Amazon *Mktplce Eu-UK,28/11/2014,20.81,Marston Green Jnr,171114 - Education - Literature,
Solihull MBC,Places - HRA,Housing Revenue Account,Amazon *Mktplce Eu-UK,14/11/2014,21.74,Purchase Card Acquisitions,171114 - Education - Literature,
Solihull MBC,Children's Services,Children & Education Services,Amazon *Mktplce Eu-UK,27/11/2014,22.16,Kingshurst Primary,171114 - Education - Literature,
Solihull MBC,Children's Services,Children & Education Services,Amazon *Mktplce Eu-UK,14/11/2014,22.80,Reynalds Cross,171114 - Education - Literature,
Solihull MBC,Children's Services,Children & Education Services,Amazon *Mktplce Eu-UK,12/11/2014,22.89,Specialist Inclusion Support Service,171114 - Education - Literature,
Solihull MBC,Children's Services,Children & Education Services,Amazon *Mktplce Eu-UK,28/11/2014,22.97,Yew Tree J&I,171114 - Education - Literature,
Solihull MBC,Children's Services,Children & Education Services,Amazon *Mktplce Eu-UK,24/11/2014,22.99,Smith's Wood,171114 - Education - Literature,
Solihull MBC,Children's Services,Children & Education Services,Amazon *Mktplce Eu-UK,25/11/2014,23.41,Berkswell J&I,171114 - Education - Literature,
Solihull MBC,Children's Services,Children & Education Services,Amazon *Mktplce Eu-UK,26/11/2014,23.55,Chapel Fields Jnr,171114 - Education - Literature,
Solihull MBC,Children's Services,Children & Education Services,Amazon *Mktplce Eu-UK,13/11/2014,23.62,Reynalds Cross,171114 - Education - Literature,
Solihull MBC,Children's Services,Children & Education Services,Amazon *Mktplce Eu-UK,26/11/2014,23.99,Peterbrook J&I,171114 - Education - Literature,
Solihull MBC,Children's Services,Children & Education Services,Amazon *Mktplce Eu-UK,18/11/2014,24.23,Reynalds Cross,169999 - Domestic Goods - Not Elsewhere Classified,
Solihull MBC,Children's Services,Children & Education Services,Amazon *Mktplce Eu-UK,06/11/2014,24.30,Chapel Fields Jnr,171114 - Education - Literature,
Solihull MBC,Children's Services,Children & Education Services,Amazon *Mktplce Eu-UK,21/11/2014,24.52,Reynalds Cross,171114 - Education - Literature,
Solihull MBC,Children's Services,Children & Education Services,Amazon *Mktplce Eu-UK,27/11/2014,24.93,Oak Cottage J&I,171114 - Education - Literature,
Solihull MBC,Children's Services,Children & Education Services,Amazon *Mktplce Eu-UK,20/11/2014,24.95,Mill Lodge J&I,171114 - Education - Literature,
Solihull MBC,Children's Services,Children & Education Services,Amazon *Mktplce Eu-UK,03/11/2014,24.99,Castle Bromwich Inf,171114 - Education - Literature,
Solihull MBC,Places - HRA,Housing Revenue Account,Amazon *Mktplce Eu-UK,27/11/2014,25.02,Purchase Card Acquisitions,171114 - Education - Literature,
Solihull MBC,Children's Services,Children & Education Services,Amazon *Mktplce Eu-UK,12/11/2014,25.34,Marston Green Jnr,171114 - Education - Literature,
Solihull MBC,Children's Services,Children & Education Services,Amazon *Mktplce Eu-UK,26/11/2014,25.78,Langley J&I,171114 - Education - Literature,
Solihull MBC,Children's Services,Children & Education Services,Amazon *Mktplce Eu-UK,17/11/2014,25.98,Reynalds Cross,171114 - Education - Literature,
Solihull MBC,Children's Services,Children & Education Services,Amazon *Mktplce Eu-UK,25/11/2014,25.98,Hazel Oak,171114 - Education - Literature,
Solihull MBC,Children's Services,Children & Education Services,Amazon *Mktplce Eu-UK,12/11/2014,26.49,Ark,171114 - Education - Literature,
Solihull MBC,Children's Services,Children & Education Services,Amazon *Mktplce Eu-UK,22/11/2014,26.50,Afterschool Club,169999 - Domestic Goods - Not Elsewhere Classified,
Solihull MBC,Children's Services,Children & Education Services,Amazon *Mktplce Eu-UK,21/11/2014,26.76,Lyndon,171114 - Education - Literature,
Solihull MBC,Children's Services,Children & Education Services,Amazon *Mktplce Eu-UK,23/11/2014,26.90,Lyndon,171114 - Education - Literature,
Solihull MBC,Children's Services,Children & Education Services,Amazon *Mktplce Eu-UK,11/11/2014,27.50,Ark,171114 - Education - Literature,
Solihull MBC,Children's Services,Children & Education Services,Amazon *Mktplce Eu-UK,02/12/2014,27.94,Smith's Wood,171114 - Education - Literature,
Solihull MBC,Children's Services,Children & Education Services,Amazon *Mktplce Eu-UK,25/11/2014,27.98,St George & Teresa J&I,171114 - Education - Literature,
Solihull MBC,Places - HRA,Housing Revenue Account,Amazon *Mktplce Eu-UK,03/11/2014,28.00,Purchase Card Acquisitions,171114 - Education - Literature,
Solihull MBC,Children's Services,Children & Education Services,Amazon *Mktplce Eu-UK,20/11/2014,28.70,St Alphege Jnr,171114 - Education - Literature,
Solihull MBC,Children's Services,Children & Education Services,Amazon *Mktplce Eu-UK,06/11/2014,28.75,Peterbrook J&I,171114 - Education - Literature,
Solihull MBC,Children's Services,Children & Education Services,Amazon *Mktplce Eu-UK,03/11/2014,28.79,Swallows Childcare,171114 - Education - Literature,
Solihull MBC,Children's Services,Children & Education Services,Amazon *Mktplce Eu-UK,10/11/2014,28.98,Monkspath J&I,171114 - Education - Literature,
Solihull MBC,Children's Services,Children & Education Services,Amazon *Mktplce Eu-UK,11/11/2014,29.59,Burman Inf,171114 - Education - Literature,
Solihull MBC,Children's Services,Children & Education Services,Amazon *Mktplce Eu-UK,19/11/2014,29.74,Berkswell J&I,169999 - Domestic Goods - Not Elsewhere Classified,
Solihull MBC,Children's Services,Children & Education Services,Amazon *Mktplce Eu-UK,11/11/2014,29.89,Marston Green Jnr,169999 - Domestic Goods - Not Elsewhere Classified,
Solihull MBC,Children's Services,Children & Education Services,Amazon *Mktplce Eu-UK,25/11/2014,29.90,Damson Wood Inf,171114 - Education - Literature,
Solihull MBC,Children's Services,Children & Education Services,Amazon *Mktplce Eu-UK,02/12/2014,29.90,Damson Wood Inf,171114 - Education - Literature,
Solihull MBC,Children's Services,Children & Education Services,Amazon *Mktplce Eu-UK,22/11/2014,29.98,Triple Crown PRU,171114 - Education - Literature,
Solihull MBC,Children's Services,Children & Education Services,Amazon *Mktplce Eu-UK,14/11/2014,29.99,Specialist Inclusion Support Service,171114 - Education - Literature,
Solihull MBC,Children's Services,Children & Education Services,Amazon *Mktplce Eu-UK,28/11/2014,29.99,Specialist Inclusion Support Service,171114 - Education - Literature,
Solihull MBC,Children's Services,Children & Education Services,Amazon *Mktplce Eu-UK,24/11/2014,30.43,Hazel Oak,171114 - Education - Literature,
Solihull MBC,Children's Services,Children & Education Services,Amazon *Mktplce Eu-UK,23/11/2014,30.84,Hazel Oak,171114 - Education - Literature,
Solihull MBC,Children's Services,Children & Education Services,Amazon *Mktplce Eu-UK,22/11/2014,31.75,Afterschool Club,171114 - Education - Literature,
Solihull MBC,Children's Services,Children & Education Services,Amazon *Mktplce Eu-UK,07/11/2014,31.80,Streetsbrook Inf,171114 - Education - Literature,
Solihull MBC,Children's Services,Children & Education Services,Amazon *Mktplce Eu-UK,14/11/2014,32.01,Kineton Green Primary,171114 - Education - Literature,
Solihull MBC,Children's Services,Children & Education Services,Amazon *Mktplce Eu-UK,17/11/2014,32.45,Langley J&I,171114 - Education - Literature,
Solihull MBC,Children's Services,Children & Education Services,Amazon *Mktplce Eu-UK,15/11/2014,32.69,Kineton Green Primary,171114 - Education - Literature,
Solihull MBC,Children's Services,Children & Education Services,Amazon *Mktplce Eu-UK,02/12/2014,32.70,Berkswell J&I,169999 - Domestic Goods - Not Elsewhere Classified,
Solihull MBC,Children's Services,Children & Education Services,Amazon *Mktplce Eu-UK,05/11/2014,33.42,Castle Bromwich Jnr,171114 - Education - Literature,
Solihull MBC,Children's Services,Children & Education Services,Amazon *Mktplce Eu-UK,20/11/2014,34.25,Blossomfield Inf,171114 - Education - Literature,
Solihull MBC,Children's Services,Children & Education Services,Amazon *Mktplce Eu-UK,14/11/2014,34.37,Hazel Oak,171114 - Education - Literature,
Solihull MBC,Children's Services,Children & Education Services,Amazon *Mktplce Eu-UK,29/11/2014,34.98,Wrap Around Club,171114 - Education - Literature,
Solihull MBC,Children's Services,Children & Education Services,Amazon *Mktplce Eu-UK,20/11/2014,35.11,Berkswell J&I,171114 - Education - Literature,
Solihull MBC,Children's Services,Children & Education Services,Amazon *Mktplce Eu-UK,10/11/2014,36.15,Yorkswood J&I,171114 - Education - Literature,
Solihull MBC,Children's Services,Children & Education Services,Amazon *Mktplce Eu-UK,12/11/2014,36.78,Mill Lodge J&I,171114 - Education - Literature,
Solihull MBC,Children's Services,Children & Education Services,Amazon *Mktplce Eu-UK,15/11/2014,37.22,Tidbury Green J&I,171114 - Education - Literature,
Solihull MBC,Children's Services,Children & Education Services,Amazon *Mktplce Eu-UK,27/11/2014,37.64,Monkspath J&I,171114 - Education - Literature,
Solihull MBC,Children's Services,Children & Education Services,Amazon *Mktplce Eu-UK,22/11/2014,37.75,Reynalds Cross,171114 - Education - Literature,
Solihull MBC,Children's Services,Children & Education Services,Amazon *Mktplce Eu-UK,26/11/2014,38.69,Swallows Childcare,171114 - Education - Literature,
Solihull MBC,Children's Services,Children & Education Services,Amazon *Mktplce Eu-UK,28/11/2014,39.00,Hazel Oak,171114 - Education - Literature,
Solihull MBC,Places - HRA,Housing Revenue Account,Amazon *Mktplce Eu-UK,06/11/2014,39.98,Purchase Card Acquisitions,169999 - Domestic Goods - Not Elsewhere Classified,
Solihull MBC,Children's Services,Children & Education Services,Amazon *Mktplce Eu-UK,05/11/2014,41.39,Yorkswood J&I,171114 - Education - Literature,
Solihull MBC,Children's Services,Children & Education Services,Amazon *Mktplce Eu-UK,27/11/2014,41.97,Hazel Oak,171114 - Education - Literature,
Solihull MBC,Children's Services,Children & Education Services,Amazon *Mktplce Eu-UK,24/11/2014,42.39,George Fentham J&I,171114 - Education - Literature,
Solihull MBC,Children's Services,Children & Education Services,Amazon *Mktplce Eu-UK,07/11/2014,43.60,Lyndon,171114 - Education - Literature,
Solihull MBC,Children's Services,Children & Education Services,Amazon *Mktplce Eu-UK,25/11/2014,44.95,Ulverley J&I,171114 - Education - Literature,
Solihull MBC,Children's Services,Children & Education Services,Amazon *Mktplce Eu-UK,05/11/2014,46.44,Lyndon,171114 - Education - Literature,
Solihull MBC,Children's Services,Children & Education Services,Amazon *Mktplce Eu-UK,28/11/2014,47.60,Summerfield Centre,171114 - Education - Literature,
Solihull MBC,Children's Services,Children & Education Services,Amazon *Mktplce Eu-UK,23/11/2014,49.88,Berkswell J&I,171114 - Education - Literature,
Solihull MBC,Children's Services,Children & Education Services,Amazon *Mktplce Eu-UK,23/11/2014,49.89,Kineton Green Primary,171114 - Education - Literature,
Solihull MBC,Children's Services,Children & Education Services,Amazon *Mktplce Eu-UK,18/11/2014,50.60,Streetsbrook Inf,171114 - Education - Literature,
Solihull MBC,Children's Services,Children & Education Services,Amazon *Mktplce Eu-UK,18/11/2014,50.91,Fieldwork Sector And Court,169999 - Domestic Goods - Not Elsewhere Classified,
Solihull MBC,Adult Social Care,Adult Social Care,Amazon *Mktplce Eu-UK,12/11/2014,52.97,3 Gates,171114 - Education - Literature,
Solihull MBC,Children's Services,Children & Education Services,Amazon *Mktplce Eu-UK,24/11/2014,53.98,Smith's Wood,171114 - Education - Literature,
Solihull MBC,Children's Services,Children & Education Services,Amazon *Mktplce Eu-UK,14/11/2014,54.80,Ark,171114 - Education - Literature,
Solihull MBC,Children's Services,Children & Education Services,Amazon *Mktplce Eu-UK,11/11/2014,57.96,Oak Cottage J&I,171114 - Education - Literature,
Solihull MBC,Places - HRA,Housing Revenue Account,Amazon *Mktplce Eu-UK,07/11/2014,58.29,Purchase Card Acquisitions,151000 - Consultancy - Business,
Solihull MBC,Children's Services,Children & Education Services,Amazon *Mktplce Eu-UK,06/11/2014,59.24,Langley J&I,171114 - Education - Literature,
Solihull MBC,Children's Services,Children & Education Services,Amazon *Mktplce Eu-UK,17/11/2014,59.94,Streetsbrook Inf,171114 - Education - Literature,
Solihull MBC,Children's Services,Children & Education Services,Amazon *Mktplce Eu-UK,18/11/2014,64.90,Blossomfield Inf,169999 - Domestic Goods - Not Elsewhere Classified,
Solihull MBC,Children's Services,Children & Education Services,Amazon *Mktplce Eu-UK,21/11/2014,65.49,Yorkswood J&I,171114 - Education - Literature,
Solihull MBC,Resources,Central Services to the Public,Amazon *Mktplce Eu-UK,17/11/2014,67.17,ICT Data Base Analysis,171114 - Education - Literature,
Solihull MBC,Places,Cultural & Related Services,Amazon *Mktplce Eu-UK,20/11/2014,67.50,Theatre Bar,171114 - Education - Literature,
Solihull MBC,Children's Services,Children & Education Services,Amazon *Mktplce Eu-UK,17/11/2014,68.32,Reynalds Cross,171114 - Education - Literature,
Solihull MBC,Places,Environmental and Regulatory Services,Amazon *Mktplce Eu-UK,07/11/2014,74.07,Environmental Group,171114 - Education - Literature,
Solihull MBC,Children's Services,Children & Education Services,Amazon *Mktplce Eu-UK,26/11/2014,74.28,Swallows Childcare,171114 - Education - Literature,
Solihull MBC,Children's Services,Children & Education Services,Amazon *Mktplce Eu-UK,10/11/2014,76.00,Yorkswood J&I,171114 - Education - Literature,
Solihull MBC,Children's Services,Children & Education Services,Amazon *Mktplce Eu-UK,08/11/2014,80.01,Lyndon,171114 - Education - Literature,
Solihull MBC,Children's Services,Children & Education Services,Amazon *Mktplce Eu-UK,26/11/2014,83.88,Dorridge Inf,171114 - Education - Literature,
Solihull MBC,Children's Services,Children & Education Services,Amazon *Mktplce Eu-UK,05/11/2014,87.00,Hazel Oak,171114 - Education - Literature,
Solihull MBC,Children's Services,Children & Education Services,Amazon *Mktplce Eu-UK,27/11/2014,87.46,Coppice Jnr,171114 - Education - Literature,
Solihull MBC,Children's Services,Children & Education Services,Amazon *Mktplce Eu-UK,06/11/2014,88.56,Smith's Wood,171114 - Education - Literature,
Solihull MBC,Children's Services,Children & Education Services,Amazon *Mktplce Eu-UK,10/11/2014,94.22,Ulverley J&I,171114 - Education - Literature,
Solihull MBC,Adult Social Care,Adult Social Care,Amazon *Mktplce Eu-UK,15/11/2014,99.99,9 Hurst Green,171114 - Education - Literature,
Solihull MBC,Children's Services,Children & Education Services,Amazon *Mktplce Eu-UK,25/11/2014,104.97,Shirley Heath Jnr,169999 - Domestic Goods - Not Elsewhere Classified,
Solihull MBC,Children's Services,Children & Education Services,Amazon *Mktplce Eu-UK,05/11/2014,112.16,Lyndon,171114 - Education - Literature,
Solihull MBC,Children's Services,Children & Education Services,Amazon *Mktplce Eu-UK,06/11/2014,114.95,St Anne's J&I,171114 - Education - Literature,
Solihull MBC,Children's Services,Children & Education Services,Amazon *Mktplce Eu-UK,26/11/2014,128.99,Berkswell J&I,171114 - Education - Literature,
Solihull MBC,Children's Services,Children & Education Services,Amazon *Mktplce Eu-UK,12/11/2014,133.95,Marston Green Jnr,171114 - Education - Literature,
Solihull MBC,Children's Services,Children & Education Services,Amazon *Mktplce Eu-UK,04/11/2014,136.68,Smith's Wood,171114 - Education - Literature,
Solihull MBC,Children's Services,Children & Education Services,Amazon *Mktplce Eu-UK,17/11/2014,139.12,Forest Oak,171114 - Education - Literature,
Solihull MBC,Children's Services,Children & Education Services,Amazon *Mktplce Eu-UK,25/11/2014,155.20,Hazel Oak,171114 - Education - Literature,
Solihull MBC,Places,Environmental and Regulatory Services,Amazon *Mktplce Eu-UK,27/11/2014,156.50,Town Centres and Events,171114 - Education - Literature,
Solihull MBC,Resources,Central Services to the Public,Amazon *Mktplce Eu-UK,17/11/2014,270.00,ICT Data Base Analysis,171114 - Education - Literature,
Solihull MBC,Children's Services,Children & Education Services,Amazon *Mktplce Eu-UK,01/12/2014,355.00,Smith's Wood,171114 - Education - Literature,
Solihull MBC,Children's Services,Children & Education Services,Amazon *Mktplce Eu-UK,28/11/2014,371.00,Smith's Wood,171114 - Education - Literature,
Solihull MBC,Children's Services,Children & Education Services,Amazon *Mktplce Eu-UK,21/11/2014,399.00,Yorkswood J&I,171114 - Education - Literature,
Solihull MBC,Places - HRA,Housing Revenue Account,Amazon *Mktplce Eu-UK,07/11/2014,399.99,Purchase Card Acquisitions,171114 - Education - Literature,
Solihull MBC,Children's Services,Children & Education Services,Amazon Digital Dwnlds,26/11/2014,2.99,Our Lady Wayside J&I,171111 - Education - Audio Visual,
Solihull MBC,Resources,Central Services to the Public,Amazon Digital Dwnlds,07/11/2014,4.12,ICT Data Base Analysis,171111 - Education - Audio Visual,
Solihull MBC,Resources,Central Services to the Public,Amazon Digital Dwnlds,07/11/2014,4.12,ICT Data Base Analysis,171111 - Education - Audio Visual,
Solihull MBC,Children's Services,Children & Education Services,Amazon Digital Dwnlds,17/11/2014,4.75,Our Lady Wayside J&I,171111 - Education - Audio Visual,
Solihull MBC,Children's Services,Children & Education Services,Amazon Digital Dwnlds,05/11/2014,7.99,Our Lady Wayside J&I,171111 - Education - Audio Visual,
Solihull MBC,Resources,Central Services to the Public,Amazon Digital Dwnlds,07/11/2014,24.75,ICT Data Base Analysis,171111 - Education - Audio Visual,
Solihull MBC,Children's Services,Children & Education Services,Amazon Eu,26/11/2014,-18.24,Summerfield Centre,169999 - Domestic Goods - Not Elsewhere Classified,
Solihull MBC,Children's Services,Children & Education Services,Amazon Eu,25/11/2014,-0.01,Reynalds Cross,169999 - Domestic Goods - Not Elsewhere Classified,
Solihull MBC,Children's Services,Children & Education Services,Amazon Eu,19/11/2014,-0.01,Shirley Heath Kids Club,169999 - Domestic Goods - Not Elsewhere Classified,
Solihull MBC,Children's Services,Children & Education Services,Amazon Eu,14/11/2014,2.49,St George & Teresa J&I,169999 - Domestic Goods - Not Elsewhere Classified,
Solihull MBC,Children's Services,Children & Education Services,Amazon Eu,08/11/2014,4.99,Fordbridge Community Primary,169999 - Domestic Goods - Not Elsewhere Classified,
Solihull MBC,Children's Services,Children & Education Services,Amazon Eu,09/11/2014,4.99,Fordbridge Community Primary,169999 - Domestic Goods - Not Elsewhere Classified,
Solihull MBC,Children's Services,Children & Education Services,Amazon Eu,07/11/2014,4.99,Fordbridge Community Primary,169999 - Domestic Goods - Not Elsewhere Classified,
Solihull MBC,Children's Services,Children & Education Services,Amazon Eu,19/11/2014,4.99,Damson Wood Inf,169999 - Domestic Goods - Not Elsewhere Classified,
Solihull MBC,Children's Services,Children & Education Services,Amazon Eu,27/11/2014,5.99,George Fentham J&I,169999 - Domestic Goods - Not Elsewhere Classified,
Solihull MBC,Children's Services,Children & Education Services,Amazon Eu,08/11/2014,6.09,Marston Green Jnr,169999 - Domestic Goods - Not Elsewhere Classified,
Solihull MBC,Children's Services,Children & Education Services,Amazon Eu,08/11/2014,6.09,Marston Green Jnr,169999 - Domestic Goods - Not Elsewhere Classified,
Solihull MBC,Children's Services,Children & Education Services,Amazon Eu,09/11/2014,6.09,Marston Green Jnr,169999 - Domestic Goods - Not Elsewhere Classified,
Solihull MBC,Children's Services,Children & Education Services,Amazon Eu,28/11/2014,6.39,Berkswell J&I,169999 - Domestic Goods - Not Elsewhere Classified,
Solihull MBC,Children's Services,Children & Education Services,Amazon Eu,03/11/2014,6.48,Swallows Childcare,169999 - Domestic Goods - Not Elsewhere Classified,
Solihull MBC,Children's Services,Children & Education Services,Amazon Eu,14/11/2014,7.99,Kingshurst Primary,169999 - Domestic Goods - Not Elsewhere Classified,
Solihull MBC,Children's Services,Children & Education Services,Amazon Eu,25/11/2014,8.74,Dorridge Inf,169999 - Domestic Goods - Not Elsewhere Classified,
Solihull MBC,Children's Services,Children & Education Services,Amazon Eu,29/11/2014,8.74,Monkspath J&I,169999 - Domestic Goods - Not Elsewhere Classified,
Solihull MBC,Children's Services,Children & Education Services,Amazon Eu,12/11/2014,9.56,Fostering Team,169999 - Domestic Goods - Not Elsewhere Classified,
Solihull MBC,Children's Services,Children & Education Services,Amazon Eu,11/11/2014,9.99,Woodlands Solihull Inf,169999 - Domestic Goods - Not Elsewhere Classified,
Solihull MBC,Children's Services,Children & Education Services,Amazon Eu,21/11/2014,9.99,Specialist Inclusion Support Service,169999 - Domestic Goods - Not Elsewhere Classified,
Solihull MBC,Children's Services,Children & Education Services,Amazon Eu,26/11/2014,10.00,Marston Green Jnr,169999 - Domestic Goods - Not Elsewhere Classified,
Solihull MBC,Children's Services,Children & Education Services,Amazon Eu,07/11/2014,10.02,Valley Inf,169999 - Domestic Goods - Not Elsewhere Classified,
Solihull MBC,Children's Services,Children & Education Services,Amazon Eu,10/11/2014,10.39,Meriden J&I,169999 - Domestic Goods - Not Elsewhere Classified,
Solihull MBC,Children's Services,Children & Education Services,Amazon Eu,11/11/2014,11.32,Lyndon,169999 - Domestic Goods - Not Elsewhere Classified,
Solihull MBC,Children's Services,Children & Education Services,Amazon Eu,26/11/2014,11.58,Berkswell J&I,169999 - Domestic Goods - Not Elsewhere Classified,
Solihull MBC,Resources,Central Services to the Public,Amazon Eu,08/11/2014,11.84,ICT Data Base Analysis,169999 - Domestic Goods - Not Elsewhere Classified,
Solihull MBC,Children's Services,Children & Education Services,Amazon Eu,06/11/2014,11.85,Smith's Wood,169999 - Domestic Goods - Not Elsewhere Classified,
Solihull MBC,Children's Services,Children & Education Services,Amazon Eu,17/11/2014,11.99,Reynalds Cross,169999 - Domestic Goods - Not Elsewhere Classified,
Solihull MBC,Adult Social Care,Adult Social Care,Amazon Eu,06/11/2014,12.00,OP - Locality SW South A,169999 - Domestic Goods - Not Elsewhere Classified,
Solihull MBC,Children's Services,Children & Education Services,Amazon Eu,22/11/2014,12.00,Reynalds Cross,169999 - Domestic Goods - Not Elsewhere Classified,
Solihull MBC,Children's Services,Children & Education Services,Amazon Eu,07/11/2014,12.18,Marston Green Jnr,169999 - Domestic Goods - Not Elsewhere Classified,
Solihull MBC,Children's Services,Children & Education Services,Amazon Eu,09/11/2014,12.18,Marston Green Jnr,169999 - Domestic Goods - Not Elsewhere Classified,
Solihull MBC,Children's Services,Children & Education Services,Amazon Eu,10/11/2014,12.18,Marston Green Jnr,169999 - Domestic Goods - Not Elsewhere Classified,
Solihull MBC,Children's Services,Children & Education Services,Amazon Eu,06/11/2014,12.38,St Anne's J&I,169999 - Domestic Goods - Not Elsewhere Classified,
Solihull MBC,Business Transformation,Central Services to the Public,Amazon Eu,07/11/2014,12.46,Commissioning,169999 - Domestic Goods - Not Elsewhere Classified,
Solihull MBC,Children's Services,Children & Education Services,Amazon Eu,11/11/2014,12.57,St John The Baptist J&I,169999 - Domestic Goods - Not Elsewhere Classified,
Solihull MBC,Children's Services,Children & Education Services,Amazon Eu,06/11/2014,12.59,Education Management,169999 - Domestic Goods - Not Elsewhere Classified,
Solihull MBC,Children's Services,Children & Education Services,Amazon Eu,20/11/2014,12.92,Yorkswood J&I,169999 - Domestic Goods - Not Elsewhere Classified,
Solihull MBC,Children's Services,Children & Education Services,Amazon Eu,23/11/2014,13.29,Yorkswood N'hood Nursery,169999 - Domestic Goods - Not Elsewhere Classified,
Solihull MBC,Children's Services,Children & Education Services,Amazon Eu,19/11/2014,14.00,Fordbridge Community Primary,169999 - Domestic Goods - Not Elsewhere Classified,
Solihull MBC,Children's Services,Children & Education Services,Amazon Eu,11/11/2014,14.04,Marston Green Jnr,169999 - Domestic Goods - Not Elsewhere Classified,
Solihull MBC,Children's Services,Children & Education Services,Amazon Eu,14/11/2014,14.33,Damson Wood Inf,169999 - Domestic Goods - Not Elsewhere Classified,
Solihull MBC,Children's Services,Children & Education Services,Amazon Eu,16/11/2014,14.59,Cranmore Inf,169999 - Domestic Goods - Not Elsewhere Classified,
Solihull MBC,Children's Services,Children & Education Services,Amazon Eu,28/11/2014,14.70,Ulverley J&I,169999 - Domestic Goods - Not Elsewhere Classified,
Solihull MBC,Children's Services,Children & Education Services,Amazon Eu,07/11/2014,14.97,Fordbridge Community Primary,169999 - Domestic Goods - Not Elsewhere Classified,
Solihull MBC,Children's Services,Children & Education Services,Amazon Eu,07/11/2014,14.97,Fordbridge Community Primary,169999 - Domestic Goods - Not Elsewhere Classified,
Solihull MBC,Resources,Central Services to the Public,Amazon Eu,17/11/2014,14.97,ICT Data Base Analysis,169999 - Domestic Goods - Not Elsewhere Classified,
Solihull MBC,Children's Services,Children & Education Services,Amazon Eu,12/11/2014,15.01,Our Lady Wayside J&I,169999 - Domestic Goods - Not Elsewhere Classified,
Solihull MBC,Children's Services,Children & Education Services,Amazon Eu,12/11/2014,15.17,Bishop Wilson J&I,169999 - Domestic Goods - Not Elsewhere Classified,
Solihull MBC,Children's Services,Children & Education Services,Amazon Eu,16/11/2014,15.52,Damson Wood Inf,169999 - Domestic Goods - Not Elsewhere Classified,
Solihull MBC,Children's Services,Children & Education Services,Amazon Eu,26/11/2014,15.63,Smith's Wood,169999 - Domestic Goods - Not Elsewhere Classified,
Solihull MBC,Children's Services,Children & Education Services,Amazon Eu,19/11/2014,15.75,Hazel Oak,169999 - Domestic Goods - Not Elsewhere Classified,
Solihull MBC,Children's Services,Children & Education Services,Amazon Eu,05/11/2014,15.95,Education Management,169999 - Domestic Goods - Not Elsewhere Classified,
Solihull MBC,Children's Services,Children & Education Services,Amazon Eu,05/11/2014,15.95,Education Management,169999 - Domestic Goods - Not Elsewhere Classified,
Solihull MBC,Children's Services,Children & Education Services,Amazon Eu,02/12/2014,15.96,Lyndon,169999 - Domestic Goods - Not Elsewhere Classified,
Solihull MBC,Children's Services,Children & Education Services,Amazon Eu,09/11/2014,15.99,Our Lady Compassion  J&I,169999 - Domestic Goods - Not Elsewhere Classified,
Solihull MBC,Children's Services,Children & Education Services,Amazon Eu,04/11/2014,16.03,Castle Bromwich Jnr,169999 - Domestic Goods - Not Elsewhere Classified,
Solihull MBC,Children's Services,Children & Education Services,Amazon Eu,21/11/2014,16.15,Smith's Wood,169999 - Domestic Goods - Not Elsewhere Classified,
Solihull MBC,Children's Services,Children & Education Services,Amazon Eu,21/11/2014,16.15,Smith's Wood,169999 - Domestic Goods - Not Elsewhere Classified,
Solihull MBC,Children's Services,Children & Education Services,Amazon Eu,05/11/2014,16.22,Yew Tree J&I,169999 - Domestic Goods - Not Elsewhere Classified,
Solihull MBC,Children's Services,Children & Education Services,Amazon Eu,05/11/2014,16.24,Smith's Wood,169999 - Domestic Goods - Not Elsewhere Classified,
Solihull MBC,Children's Services,Children & Education Services,Amazon Eu,08/11/2014,16.24,Smith's Wood,169999 - Domestic Goods - Not Elsewhere Classified,
Solihull MBC,Children's Services,Children & Education Services,Amazon Eu,05/11/2014,16.24,Smith's Wood,169999 - Domestic Goods - Not Elsewhere Classified,
Solihull MBC,Children's Services,Children & Education Services,Amazon Eu,06/11/2014,16.24,Smith's Wood,169999 - Domestic Goods - Not Elsewhere Classified,
Solihull MBC,Children's Services,Children & Education Services,Amazon Eu,12/11/2014,16.24,Smith's Wood,169999 - Domestic Goods - Not Elsewhere Classified,
Solihull MBC,Children's Services,Children & Education Services,Amazon Eu,12/11/2014,16.50,Our Lady Wayside J&I,169999 - Domestic Goods - Not Elsewhere Classified,
Solihull MBC,Children's Services,Children & Education Services,Amazon Eu,24/11/2014,16.71,Widney Jnr,169999 - Domestic Goods - Not Elsewhere Classified,
Solihull MBC,Children's Services,Children & Education Services,Amazon Eu,21/11/2014,16.99,Specialist Inclusion Support Service,169999 - Domestic Goods - Not Elsewhere Classified,
Solihull MBC,Children's Services,Children & Education Services,Amazon Eu,18/11/2014,17.13,Meriden J&I,169999 - Domestic Goods - Not Elsewhere Classified,
Solihull MBC,Children's Services,Children & Education Services,Amazon Eu,22/11/2014,17.50,Reynalds Cross,169999 - Domestic Goods - Not Elsewhere Classified,
Solihull MBC,Children's Services,Children & Education Services,Amazon Eu,26/11/2014,17.62,Burman Inf,169999 - Domestic Goods - Not Elsewhere Classified,
Solihull MBC,Children's Services,Children & Education Services,Amazon Eu,01/12/2014,17.71,Burman Inf,169999 - Domestic Goods - Not Elsewhere Classified,
Solihull MBC,Children's Services,Children & Education Services,Amazon Eu,01/12/2014,17.73,Chapel Fields Jnr,169999 - Domestic Goods - Not Elsewhere Classified,
Solihull MBC,Children's Services,Children & Education Services,Amazon Eu,21/11/2014,17.82,George Fentham J&I,169999 - Domestic Goods - Not Elsewhere Classified,
Solihull MBC,Children's Services,Children & Education Services,Amazon Eu,22/11/2014,17.82,George Fentham J&I,169999 - Domestic Goods - Not Elsewhere Classified,
Solihull MBC,Children's Services,Children & Education Services,Amazon Eu,20/11/2014,17.99,Meriden J&I,169999 - Domestic Goods - Not Elsewhere Classified,
Solihull MBC,Children's Services,Children & Education Services,Amazon Eu,21/11/2014,18.03,Specialist Inclusion Support Service,169999 - Domestic Goods - Not Elsewhere Classified,
Solihull MBC,Children's Services,Children & Education Services,Amazon Eu,09/11/2014,18.26,Marston Green Jnr,169999 - Domestic Goods - Not Elsewhere Classified,
Solihull MBC,Children's Services,Children & Education Services,Amazon Eu,17/11/2014,18.90,George Fentham J&I,169999 - Domestic Goods - Not Elsewhere Classified,
Solihull MBC,Children's Services,Children & Education Services,Amazon Eu,17/11/2014,18.93,Reynalds Cross,169999 - Domestic Goods - Not Elsewhere Classified,
Solihull MBC,Children's Services,Children & Education Services,Amazon Eu,27/11/2014,18.98,Yorkswood J&I,169999 - Domestic Goods - Not Elsewhere Classified,
Solihull MBC,Children's Services,Children & Education Services,Amazon Eu,12/11/2014,19.33,Wrap Around Club,169999 - Domestic Goods - Not Elsewhere Classified,
Solihull MBC,Children's Services,Children & Education Services,Amazon Eu,05/11/2014,19.78,Yorkswood J&I,169999 - Domestic Goods - Not Elsewhere Classified,
Solihull MBC,Children's Services,Children & Education Services,Amazon Eu,26/11/2014,19.95,Burman Inf,169999 - Domestic Goods - Not Elsewhere Classified,
Solihull MBC,Children's Services,Children & Education Services,Amazon Eu,09/11/2014,19.96,Fordbridge Community Primary,169999 - Domestic Goods - Not Elsewhere Classified,
Solihull MBC,Children's Services,Children & Education Services,Amazon Eu,07/11/2014,19.96,Fordbridge Community Primary,169999 - Domestic Goods - Not Elsewhere Classified,
Solihull MBC,Places,Cultural & Related Services,Amazon Eu,28/11/2014,19.98,Libraries Resources Fund,169999 - Domestic Goods - Not Elsewhere Classified,
Solihull MBC,Children's Services,Children & Education Services,Amazon Eu,15/11/2014,19.99,Shirley Heath Kids Club,169999 - Domestic Goods - Not Elsewhere Classified,
Solihull MBC,Children's Services,Children & Education Services,Amazon Eu,18/11/2014,19.99,St Margaret's J&I,169999 - Domestic Goods - Not Elsewhere Classified,
Solihull MBC,Children's Services,Children & Education Services,Amazon Eu,28/11/2014,21.00,St Alphege Jnr,169999 - Domestic Goods - Not Elsewhere Classified,
Solihull MBC,Children's Services,Children & Education Services,Amazon Eu,05/11/2014,21.40,Widney Jnr,169999 - Domestic Goods - Not Elsewhere Classified,
Solihull MBC,Children's Services,Children & Education Services,Amazon Eu,20/11/2014,21.59,Smith's Wood,169999 - Domestic Goods - Not Elsewhere Classified,
Solihull MBC,Children's Services,Children & Education Services,Amazon Eu,26/11/2014,21.60,Smith's Wood,169999 - Domestic Goods - Not Elsewhere Classified,
Solihull MBC,Children's Services,Children & Education Services,Amazon Eu,26/11/2014,21.60,Smith's Wood,169999 - Domestic Goods - Not Elsewhere Classified,
Solihull MBC,Children's Services,Children & Education Services,Amazon Eu,13/11/2014,22.00,Dickens Hth Primary,169999 - Domestic Goods - Not Elsewhere Classified,
Solihull MBC,Places - HRA,Housing Revenue Account,Amazon Eu,13/11/2014,22.75,Purchase Card Acquisitions,169999 - Domestic Goods - Not Elsewhere Classified,
Solihull MBC,Children's Services,Children & Education Services,Amazon Eu,02/12/2014,23.75,Sharmans Cross Jnr,169999 - Domestic Goods - Not Elsewhere Classified,
Solihull MBC,Children's Services,Children & Education Services,Amazon Eu,21/11/2014,23.94,Summerfield Centre,169999 - Domestic Goods - Not Elsewhere Classified,
Solihull MBC,Children's Services,Children & Education Services,Amazon Eu,11/11/2014,23.97,Lyndon,169999 - Domestic Goods - Not Elsewhere Classified,
Solihull MBC,Children's Services,Children & Education Services,Amazon Eu,13/11/2014,24.00,Streetsbrook Inf,169999 - Domestic Goods - Not Elsewhere Classified,
Solihull MBC,Children's Services,Children & Education Services,Amazon Eu,08/11/2014,24.69,Coleshill Heath J&I,169999 - Domestic Goods - Not Elsewhere Classified,
Solihull MBC,Children's Services,Children & Education Services,Amazon Eu,27/11/2014,25.19,Kingshurst Primary,169999 - Domestic Goods - Not Elsewhere Classified,
Solihull MBC,Children's Services,Children & Education Services,Amazon Eu,24/11/2014,25.31,Research & Policy,169999 - Domestic Goods - Not Elsewhere Classified,
Solihull MBC,Children's Services,Children & Education Services,Amazon Eu,21/11/2014,25.64,Woodlands Solihull Inf,169999 - Domestic Goods - Not Elsewhere Classified,
Solihull MBC,Children's Services,Children & Education Services,Amazon Eu,13/11/2014,26.54,Our Lady Wayside J&I,169999 - Domestic Goods - Not Elsewhere Classified,
Solihull MBC,Children's Services,Children & Education Services,Amazon Eu,13/11/2014,26.94,Smith's Wood,169999 - Domestic Goods - Not Elsewhere Classified,
Solihull MBC,Children's Services,Children & Education Services,Amazon Eu,10/11/2014,28.81,Valley Inf,169999 - Domestic Goods - Not Elsewhere Classified,
Solihull MBC,Children's Services,Children & Education Services,Amazon Eu,21/11/2014,28.99,Lyndon,169999 - Domestic Goods - Not Elsewhere Classified,
Solihull MBC,Children's Services,Children & Education Services,Amazon Eu,19/11/2014,29.40,Tidbury Green J&I,169999 - Domestic Goods - Not Elsewhere Classified,
Solihull MBC,Children's Services,Children & Education Services,Amazon Eu,13/11/2014,29.69,Research & Policy,169999 - Domestic Goods - Not Elsewhere Classified,
Solihull MBC,Children's Services,Children & Education Services,Amazon Eu,14/11/2014,29.94,Damson Wood Inf,169999 - Domestic Goods - Not Elsewhere Classified,
Solihull MBC,Children's Services,Children & Education Services,Amazon Eu,02/12/2014,29.98,George Fentham J&I,169999 - Domestic Goods - Not Elsewhere Classified,
Solihull MBC,Children's Services,Children & Education Services,Amazon Eu,14/11/2014,29.99,Reynalds Cross,169999 - Domestic Goods - Not Elsewhere Classified,
Solihull MBC,Children's Services,Children & Education Services,Amazon Eu,26/11/2014,29.99,Smith's Wood,169999 - Domestic Goods - Not Elsewhere Classified,
Solihull MBC,Children's Services,Children & Education Services,Amazon Eu,26/11/2014,29.99,Smith's Wood,169999 - Domestic Goods - Not Elsewhere Classified,
Solihull MBC,Children's Services,Children & Education Services,Amazon Eu,09/11/2014,30.44,Marston Green Jnr,169999 - Domestic Goods - Not Elsewhere Classified,
Solihull MBC,Children's Services,Children & Education Services,Amazon Eu,30/11/2014,30.66,St Alphege Jnr,169999 - Domestic Goods - Not Elsewhere Classified,
Solihull MBC,Children's Services,Children & Education Services,Amazon Eu,26/11/2014,31.92,Summerfield Centre,169999 - Domestic Goods - Not Elsewhere Classified,
Solihull MBC,Children's Services,Children & Education Services,Amazon Eu,07/11/2014,32.15,Marston Green Jnr,169999 - Domestic Goods - Not Elsewhere Classified,
Solihull MBC,Adult Social Care,Adult Social Care,Amazon Eu,12/11/2014,32.98,OP - Locality SW South A,169999 - Domestic Goods - Not Elsewhere Classified,
Solihull MBC,Children's Services,Children & Education Services,Amazon Eu,18/11/2014,33.56,Cheswick Green J&I,169999 - Domestic Goods - Not Elsewhere Classified,
Solihull MBC,Children's Services,Children & Education Services,Amazon Eu,22/11/2014,38.15,Reynalds Cross,169999 - Domestic Goods - Not Elsewhere Classified,
Solihull MBC,Children's Services,Children & Education Services,Amazon Eu,14/11/2014,38.50,Valley Inf,169999 - Domestic Goods - Not Elsewhere Classified,
Solihull MBC,Children's Services,Children & Education Services,Amazon Eu,12/11/2014,38.97,Marston Green Jnr,169999 - Domestic Goods - Not Elsewhere Classified,
Solihull MBC,Resources,Central Services to the Public,Amazon Eu,02/12/2014,40.99,ICT Data Base Analysis,169999 - Domestic Goods - Not Elsewhere Classified,
Solihull MBC,Children's Services,Children & Education Services,Amazon Eu,05/11/2014,41.79,Smith's Wood,169999 - Domestic Goods - Not Elsewhere Classified,
Solihull MBC,Children's Services,Children & Education Services,Amazon Eu,29/11/2014,41.96,Monkspath J&I,169999 - Domestic Goods - Not Elsewhere Classified,
Solihull MBC,Children's Services,Children & Education Services,Amazon Eu,08/11/2014,43.70,Positive Pathways,169999 - Domestic Goods - Not Elsewhere Classified,
Solihull MBC,Children's Services,Children & Education Services,Amazon Eu,10/11/2014,44.37,Meriden J&I,169999 - Domestic Goods - Not Elsewhere Classified,
Solihull MBC,Children's Services,Children & Education Services,Amazon Eu,07/11/2014,44.91,Fordbridge Community Primary,169999 - Domestic Goods - Not Elsewhere Classified,
Solihull MBC,Children's Services,Children & Education Services,Amazon Eu,07/11/2014,44.91,Fordbridge Community Primary,169999 - Domestic Goods - Not Elsewhere Classified,
Solihull MBC,Children's Services,Children & Education Services,Amazon Eu,09/11/2014,46.57,Marston Green Jnr,169999 - Domestic Goods - Not Elsewhere Classified,
Solihull MBC,Children's Services,Children & Education Services,Amazon Eu,09/11/2014,48.71,Marston Green Jnr,169999 - Domestic Goods - Not Elsewhere Classified,
Solihull MBC,Children's Services,Children & Education Services,Amazon Eu,11/11/2014,49.99,St Anne's J&I,169999 - Domestic Goods - Not Elsewhere Classified,
Solihull MBC,Children's Services,Children & Education Services,Amazon Eu,13/11/2014,50.00,Castle Bromwich Jnr,169999 - Domestic Goods - Not Elsewhere Classified,
Solihull MBC,Children's Services,Children & Education Services,Amazon Eu,19/11/2014,51.15,St Anthony's J&I,169999 - Domestic Goods - Not Elsewhere Classified,
Solihull MBC,Children's Services,Children & Education Services,Amazon Eu,18/11/2014,54.26,St John The Baptist J&I,169999 - Domestic Goods - Not Elsewhere Classified,
Solihull MBC,Children's Services,Children & Education Services,Amazon Eu,09/11/2014,57.51,Kineton Green Primary,169999 - Domestic Goods - Not Elsewhere Classified,
Solihull MBC,Children's Services,Children & Education Services,Amazon Eu,13/11/2014,58.29,Our Lady Wayside J&I,169999 - Domestic Goods - Not Elsewhere Classified,
Solihull MBC,Children's Services,Children & Education Services,Amazon Eu,15/11/2014,60.97,Burman Inf,169999 - Domestic Goods - Not Elsewhere Classified,
Solihull MBC,Children's Services,Children & Education Services,Amazon Eu,09/11/2014,65.26,Marston Green Jnr,169999 - Domestic Goods - Not Elsewhere Classified,
Solihull MBC,Children's Services,Children & Education Services,Amazon Eu,02/12/2014,65.92,Triple Crown PRU,169999 - Domestic Goods - Not Elsewhere Classified,
Solihull MBC,Adult Social Care,Adult Social Care,Amazon Eu,21/11/2014,65.96,OP - Locality SW South A,169999 - Domestic Goods - Not Elsewhere Classified,
Solihull MBC,Children's Services,Children & Education Services,Amazon Eu,27/11/2014,67.83,Kingshurst Primary,169999 - Domestic Goods - Not Elsewhere Classified,
Solihull MBC,Children's Services,Children & Education Services,Amazon Eu,17/11/2014,71.42,Castle Bromwich Inf,169999 - Domestic Goods - Not Elsewhere Classified,
Solihull MBC,Children's Services,Children & Education Services,Amazon Eu,28/11/2014,71.55,Marston Green Jnr,169999 - Domestic Goods - Not Elsewhere Classified,
Solihull MBC,Children's Services,Children & Education Services,Amazon Eu,19/11/2014,72.27,Research & Policy,169999 - Domestic Goods - Not Elsewhere Classified,
Solihull MBC,Children's Services,Children & Education Services,Amazon Eu,14/11/2014,78.85,Cranmore Inf,169999 - Domestic Goods - Not Elsewhere Classified,
Solihull MBC,Children's Services,Children & Education Services,Amazon Eu,04/11/2014,81.01,Burman Inf,169999 - Domestic Goods - Not Elsewhere Classified,
Solihull MBC,Children's Services,Children & Education Services,Amazon Eu,18/11/2014,97.46,Smith's Wood,169999 - Domestic Goods - Not Elsewhere Classified,
Solihull MBC,Children's Services,Children & Education Services,Amazon Eu,07/11/2014,97.51,Marston Green Jnr,169999 - Domestic Goods - Not Elsewhere Classified,
Solihull MBC,Children's Services,Children & Education Services,Amazon Eu,26/11/2014,98.70,Children's SW 0-25 Team A,169999 - Domestic Goods - Not Elsewhere Classified,
Solihull MBC,Adult Social Care,Adult Social Care,Amazon Eu,24/11/2014,98.94,OP - Locality SW South A,169999 - Domestic Goods - Not Elsewhere Classified,
Solihull MBC,Children's Services,Children & Education Services,Amazon Eu,11/11/2014,99.40,Ulverley J&I,169999 - Domestic Goods - Not Elsewhere Classified,
Solihull MBC,Children's Services,Children & Education Services,Amazon Eu,04/11/2014,99.74,Yorkswood J&I,169999 - Domestic Goods - Not Elsewhere Classified,
Solihull MBC,Children's Services,Children & Education Services,Amazon Eu,05/11/2014,105.61,Smith's Wood,169999 - Domestic Goods - Not Elsewhere Classified,
Solihull MBC,Children's Services,Children & Education Services,Amazon Eu,03/11/2014,107.82,St John The Baptist J&I,169999 - Domestic Goods - Not Elsewhere Classified,
Solihull MBC,Children's Services,Children & Education Services,Amazon Eu,11/11/2014,133.65,Tidbury Green J&I,169999 - Domestic Goods - Not Elsewhere Classified,
Solihull MBC,Resources,Central Services to the Public,Amazon Eu,02/12/2014,139.67,ICT Data Base Analysis,169999 - Domestic Goods - Not Elsewhere Classified,
Solihull MBC,Children's Services,Children & Education Services,Amazon Eu,20/11/2014,149.84,Castle Bromwich Jnr,169999 - Domestic Goods - Not Elsewhere Classified,
Solihull MBC,Children's Services,Children & Education Services,Amazon Eu,24/11/2014,152.70,George Fentham J&I,169999 - Domestic Goods - Not Elsewhere Classified,
Solihull MBC,Children's Services,Children & Education Services,Amazon Eu,26/11/2014,177.71,Smith's Wood,169999 - Domestic Goods - Not Elsewhere Classified,
Solihull MBC,Business Transformation,Central Services to the Public,Amazon Eu,07/11/2014,180.99,Procurement,169999 - Domestic Goods - Not Elsewhere Classified,
Solihull MBC,Children's Services,Children & Education Services,Amazon Eu,09/11/2014,251.52,Sharmans Cross Jnr,169999 - Domestic Goods - Not Elsewhere Classified,
Solihull MBC,Resources,Central Services to the Public,Amazon Eu,02/12/2014,260.93,ICT Data Base Analysis,169999 - Domestic Goods - Not Elsewhere Classified,
Solihull MBC,Children's Services,Children & Education Services,Amazon Eu,02/12/2014,340.26,Chapel Fields Jnr,169999 - Domestic Goods - Not Elsewhere Classified,
Solihull MBC,Children's Services,Children & Education Services,Amazon Eu,02/12/2014,345.00,Chapel Fields Jnr,169999 - Domestic Goods - Not Elsewhere Classified,
Solihull MBC,Children's Services,Children & Education Services,Amazon Eu,05/11/2014,359.80,Smith's Wood,169999 - Domestic Goods - Not Elsewhere Classified,
Solihull MBC,Children's Services,Children & Education Services,Amazon Prime,11/11/2014,79.00,Coleshill Heath J&I,202100 - Financial Services - Subscriptions,
Solihull MBC,Children's Services,Children & Education Services,Amazon Prime,21/11/2014,79.00,Childrens Centres,202100 - Financial Services - Subscriptions,
Solihull MBC,Children's Services,Children & Education Services,Amazonpayments.co.uk,05/11/2014,16.99,Meriden J&I,151000 - Consultancy - Business,
Solihull MBC,Children's Services,Children & Education Services,Amazonpayments.co.uk,06/11/2014,40.20,Peterbrook J&I,151000 - Consultancy - Business,
Solihull MBC,Children's Services,Children & Education Services,Amazonpayments.co.uk,12/11/2014,64.69,Smith's Wood,151000 - Consultancy - Business,
Solihull MBC,Children's Services,Children & Education Services,Apple Online Store Gbp,15/11/2014,50.00,Specialist Inclusion Support Service,169999 - Domestic Goods - Not Elsewhere Classified,
Solihull MBC,Children's Services,Children & Education Services,Archers S Centre - Mot,01/12/2014,99.99,Section 17 DART,211100 - Furniture & Soft Furnishings - Domestic Furniture,
Solihull MBC,Children's Services,Children & Education Services,Argos Direct,06/11/2014,99.99,Section 17 DART,169999 - Domestic Goods - Not Elsewhere Classified,
Solihull MBC,Children's Services,Children & Education Services,Argos Direct,05/11/2014,302.91,UASC 18+,169999 - Domestic Goods - Not Elsewhere Classified,
Solihull MBC,Children's Services,Children & Education Services,Argos Ltd,07/11/2014,7.99,Reynalds Cross,169999 - Domestic Goods - Not Elsewhere Classified,
Solihull MBC,Children's Services,Children & Education Services,Argos Ltd,21/11/2014,10.29,Section 17 Chelmsley Wood,169999 - Domestic Goods - Not Elsewhere Classified,
Solihull MBC,Children's Services,Children & Education Services,Argos Ltd,27/11/2014,21.99,Hatchfrd Brook Youth Cntre,169999 - Domestic Goods - Not Elsewhere Classified,
Solihull MBC,Adult Social Care,Adult Social Care,Argos Ltd,12/11/2014,24.99,ASC - Wheelchairs,169999 - Domestic Goods - Not Elsewhere Classified,
Solihull MBC,Adult Social Care,Adult Social Care,Argos Ltd,13/11/2014,29.99,25 Stapleton Drive,169999 - Domestic Goods - Not Elsewhere Classified,
Solihull MBC,Adult Social Care,Adult Social Care,Argos Ltd,18/11/2014,29.99,25 Stapleton Drive,169999 - Domestic Goods - Not Elsewhere Classified,
Solihull MBC,Children's Services,Children & Education Services,Argos Ltd,05/11/2014,39.99,Section 17 DART,169999 - Domestic Goods - Not Elsewhere Classified,
Solihull MBC,Adult Social Care,Adult Social Care,Argos Ltd,11/11/2014,39.99,25 Stapleton Drive,169999 - Domestic Goods - Not Elsewhere Classified,
Solihull MBC,Governance  ,Central Services to the Public,Argos Ltd,13/11/2014,39.99,Internal Audit,169999 - Domestic Goods - Not Elsewhere Classified,
Solihull MBC,Children's Services,Children & Education Services,Argos Ltd,17/11/2014,42.68,Tidbury Green J&I,169999 - Domestic Goods - Not Elsewhere Classified,
Solihull MBC,Places,Cultural & Related Services,Argos Ltd,24/11/2014,49.95,Arts Complex Hirings,169999 - Domestic Goods - Not Elsewhere Classified,
Solihull MBC,Adult Social Care,Adult Social Care,Argos Ltd,18/11/2014,49.98,222 Bills Lane,169999 - Domestic Goods - Not Elsewhere Classified,
Solihull MBC,Adult Social Care,Adult Social Care,Argos Ltd,22/11/2014,49.99,268 Creynolds Lane,169999 - Domestic Goods - Not Elsewhere Classified,
Solihull MBC,Children's Services,Children & Education Services,Argos Ltd,20/11/2014,50.98,St Andrew's Wraparound Club,169999 - Domestic Goods - Not Elsewhere Classified,
Solihull MBC,Adult Social Care,Adult Social Care,Argos Ltd,18/11/2014,56.90,25 Stapleton Drive,169999 - Domestic Goods - Not Elsewhere Classified,
Solihull MBC,Children's Services,Children & Education Services,Argos Ltd,20/11/2014,69.96,Afterschool Club,169999 - Domestic Goods - Not Elsewhere Classified,
Solihull MBC,Adult Social Care,Adult Social Care,Argos Ltd,16/11/2014,89.87,25 Stapleton Drive,169999 - Domestic Goods - Not Elsewhere Classified,
Solihull MBC,Children's Services,Children & Education Services,Argos Ltd,19/11/2014,91.12,Section 17 Smiths Wood,169999 - Domestic Goods - Not Elsewhere Classified,
Solihull MBC,Places,Highways & Transport Services,Argos Ltd,03/11/2014,119.92,Street Lighting Contract 1,169999 - Domestic Goods - Not Elsewhere Classified,
Solihull MBC,Children's Services,Children & Education Services,Argos Ltd,20/11/2014,136.99,CSW Team B U18 Local Clients,169999 - Domestic Goods - Not Elsewhere Classified,
Solihull MBC,Children's Services,Children & Education Services,Argos Ltd,27/11/2014,210.92,Section 17 Smiths Wood,169999 - Domestic Goods - Not Elsewhere Classified,
Solihull MBC,Children's Services,Children & Education Services,Argos Ltd,27/11/2014,268.94,Hatchfrd Brook Youth Cntre,169999 - Domestic Goods - Not Elsewhere Classified,
Solihull MBC,Children's Services,Children & Education Services,Argos Retail Group,24/11/2014,18.95,Peterbrook J&I,169999 - Domestic Goods - Not Elsewhere Classified,
Solihull MBC,Children's Services,Children & Education Services,Argos Retail Group,04/11/2014,23.99,Reynalds Cross,169999 - Domestic Goods - Not Elsewhere Classified,
Solihull MBC,Children's Services,Children & Education Services,Argos Retail Group,07/11/2014,24.88,Mill Lodge J&I,169999 - Domestic Goods - Not Elsewhere Classified,
Solihull MBC,Children's Services,Children & Education Services,Argos Retail Group,26/11/2014,33.94,Windy Arbor J&I,169999 - Domestic Goods - Not Elsewhere Classified,
Solihull MBC,Children's Services,Children & Education Services,Argos Retail Group,05/11/2014,44.99,Smith's Wood,169999 - Domestic Goods - Not Elsewhere Classified,
Solihull MBC,Children's Services,Children & Education Services,Argos Retail Group,06/11/2014,63.93,Fostering Team,169999 - Domestic Goods - Not Elsewhere Classified,
Solihull MBC,Children's Services,Children & Education Services,Argos Retail Group,18/11/2014,99.91,Reynalds Cross,169999 - Domestic Goods - Not Elsewhere Classified,
Solihull MBC,Children's Services,Children & Education Services,Argos Retail Group,18/11/2014,102.95,Lyndon,169999 - Domestic Goods - Not Elsewhere Classified,
Solihull MBC,Adult Social Care,Adult Social Care,Argos Retail Group,10/11/2014,108.87,Charity,169999 - Domestic Goods - Not Elsewhere Classified,
Solihull MBC,Places - HRA,Housing Revenue Account,Argos Retail Group,02/12/2014,150.59,Purchase Card Acquisitions,169999 - Domestic Goods - Not Elsewhere Classified,
Solihull MBC,Children's Services,Children & Education Services,Argos Retail Group,01/12/2014,182.95,CSW Team B U18 Local Clients,169999 - Domestic Goods - Not Elsewhere Classified,
Solihull MBC,Children's Services,Children & Education Services,Argos Retail Group,02/12/2014,303.92,Lyndon,169999 - Domestic Goods - Not Elsewhere Classified,
Solihull MBC,Children's Services,Children & Education Services,Arts Centre Online,17/11/2014,324.00,St George & Teresa J&I,171010 - Education - Adult & Further Education Services,
Solihull MBC,Children's Services,Children & Education Services,Asda  Stores 5880,02/12/2014,4.36,Reynolds Cross,111200 - Catering - Food & Beverages,
Solihull MBC,Children's Services,Children & Education Services,Asda  Stores 5880,12/11/2014,4.90,Woodlands Solihull Inf,111200 - Catering - Food & Beverages,
Solihull MBC,Children's Services,Children & Education Services,Asda  Stores 5880,28/11/2014,6.00,St Anne's J&I,111200 - Catering - Food & Beverages,
Solihull MBC,Children's Services,Children & Education Services,Asda  Stores 5880,10/11/2014,6.05,Afterschool Club,111200 - Catering - Food & Beverages,
Solihull MBC,Children's Services,Children & Education Services,Asda  Stores 5880,19/11/2014,6.23,Reynolds Cross,111200 - Catering - Food & Beverages,
Solihull MBC,Children's Services,Children & Education Services,Asda  Stores 5880,27/11/2014,8.00,Swallows Childcare,111200 - Catering - Food & Beverages,
Solihull MBC,Children's Services,Children & Education Services,Asda  Stores 5880,25/11/2014,10.19,Sports Co-Ordinators Prog,111200 - Catering - Food & Beverages,
Solihull MBC,Places,Cultural & Related Services,Asda  Stores 5880,02/12/2014,11.53,Park Rangers,111200 - Catering - Food & Beverages,
Solihull MBC,Children's Services,Children & Education Services,Asda  Stores 5880,25/11/2014,12.00,Woodies Childcare,111200 - Catering - Food & Beverages,
Solihull MBC,Children's Services,Children & Education Services,Asda  Stores 5880,22/11/2014,12.50,St Andrew's J&I,111200 - Catering - Food & Beverages,
Solihull MBC,Children's Services,Children & Education Services,Asda  Stores 5880,22/11/2014,13.74,Surestart - Quality,111200 - Catering - Food & Beverages,
Solihull MBC,Children's Services,Children & Education Services,Asda  Stores 5880,26/11/2014,16.26,Peterbrook Club,111200 - Catering - Food & Beverages,
Solihull MBC,Children's Services,Children & Education Services,Asda  Stores 5880,20/11/2014,17.00,Woodies Childcare,111200 - Catering - Food & Beverages,
Solihull MBC,Children's Services,Children & Education Services,Asda  Stores 5880,04/11/2014,23.91,Sharmans Cross Jnr,111200 - Catering - Food & Beverages,
Solihull MBC,Children's Services,Children & Education Services,Asda  Stores 5880,26/11/2014,37.23,Coronation Youth Centre,111200 - Catering - Food & Beverages,
Solihull MBC,Children's Services,Children & Education Services,Asda  Stores 5880,27/11/2014,43.00,Woodlands Solihull Inf,111200 - Catering - Food & Beverages,
Solihull MBC,Children's Services,Children & Education Services,Asda  Stores 5880,14/11/2014,43.33,Monkspath Monkeys,111200 - Catering - Food & Beverages,
Solihull MBC,Children's Services,Children & Education Services,Asda  Stores 5880,30/11/2014,61.54,Monkspath Monkeys,111200 - Catering - Food & Beverages,
Solihull MBC,Children's Services,Children & Education Services,Asda Home Shopping,06/11/2014,-8.55,Peterbrook J&I,111200 - Catering - Food & Beverages,
Solihull MBC,Children's Services,Children & Education Services,Asda Home Shopping,26/11/2014,5.00,Langley J&I,111200 - Catering - Food & Beverages,
Solihull MBC,Children's Services,Children & Education Services,Asda Home Shopping,19/11/2014,43.53,Bishop Wilson J&I,111200 - Catering - Food & Beverages,
Solihull MBC,Children's Services,Children & Education Services,Asda Home Shopping,11/11/2014,44.08,Fordbridge Community Primary,111200 - Catering - Food & Beverages,
Solihull MBC,Children's Services,Children & Education Services,Asda Home Shopping,02/12/2014,50.80,Fordbridge Community Primary,111200 - Catering - Food & Beverages,
Solihull MBC,Children's Services,Children & Education Services,Asda Home Shopping,10/11/2014,59.47,Kingshurst Primary,161000 - Domestic Goods - Commercial,
Solihull MBC,Children's Services,Children & Education Services,Asda Home Shopping,07/11/2014,59.57,Cranmore Little Acorns & Kids Club,111200 - Catering - Food & Beverages,
Solihull MBC,Children's Services,Children & Education Services,Asda Home Shopping,25/11/2014,63.20,Fordbridge Community Primary,111200 - Catering - Food & Beverages,
Solihull MBC,Children's Services,Children & Education Services,Asda Home Shopping,26/11/2014,63.83,Bishop Wilson J&I,111200 - Catering - Food & Beverages,
Solihull MBC,Children's Services,Children & Education Services,Asda Home Shopping,11/11/2014,65.02,Bishop Wilson J&I,111200 - Catering - Food & Beverages,
Solihull MBC,Children's Services,Children & Education Services,Asda Home Shopping,18/11/2014,65.04,Fordbridge Community Primary,111200 - Catering - Food & Beverages,
Solihull MBC,Children's Services,Children & Education Services,Asda Home Shopping,24/11/2014,67.77,Kingshurst Primary,111200 - Catering - Food & Beverages,
Solihull MBC,Children's Services,Children & Education Services,Asda Home Shopping,19/11/2014,73.67,Lyndon,111200 - Catering - Food & Beverages,
Solihull MBC,Children's Services,Children & Education Services,Asda Home Shopping,17/11/2014,84.55,Kingshurst Primary,111200 - Catering - Food & Beverages,
Solihull MBC,Children's Services,Children & Education Services,Asda Home Shopping,18/11/2014,106.31,St George & Teresa J&I,111200 - Catering - Food & Beverages,
Solihull MBC,Adult Social Care,Adult Social Care,Asda Home Shopping,10/11/2014,139.26,OP - Day Centre Oaktrees,111200 - Catering - Food & Beverages,
Solihull MBC,Adult Social Care,Adult Social Care,Asda Home Shopping,20/11/2014,146.71,OP - Day Centre Oaktrees,111200 - Catering - Food & Beverages,
Solihull MBC,Children's Services,Children & Education Services,Asda Home Shopping,11/11/2014,363.00,Lyndon,111200 - Catering - Food & Beverages,
Solihull MBC,Children's Services,Children & Education Services,Asda Home Shopping Car,03/11/2014,57.76,Bishop Wilson J&I,111200 - Catering - Food & Beverages,
Solihull MBC,Children's Services,Children & Education Services,Asda Home Shopping Car,06/11/2014,75.08,Peterbrook J&I,111200 - Catering - Food & Beverages,
Solihull MBC,Children's Services,Children & Education Services,Asda Home Shopping Car,05/11/2014,77.33,Fordbridge Community Primary,111200 - Catering - Food & Beverages,
Solihull MBC,Children's Services,Children & Education Services,Asda Home Shopping Car,04/11/2014,79.27,Kingshurst Primary,111200 - Catering - Food & Beverages,
Solihull MBC,Children's Services,Children & Education Services,Asda Home Shopping Car,05/11/2014,271.90,Coleshill Heath J&I,111200 - Catering - Food & Beverages,
Solihull MBC,Children's Services,Children & Education Services,Asda Stores 5881,19/11/2014,-50.00,Afterschool Club,111200 - Catering - Food & Beverages,
Solihull MBC,Children's Services,Children & Education Services,Asda Stores 5881,05/11/2014,2.00,Yorkswood N'hood Nursery,111200 - Catering - Food & Beverages,
Solihull MBC,Children's Services,Children & Education Services,Asda Stores 5881,24/11/2014,3.50,Afterschool Club,111200 - Catering - Food & Beverages,
Solihull MBC,Children's Services,Children & Education Services,Asda Stores 5881,12/11/2014,3.69,Fieldwork Sector And Court,111200 - Catering - Food & Beverages,
Solihull MBC,Adult Social Care,Adult Social Care,Asda Stores 5881,20/11/2014,3.96,25 Stapleton Drive,111200 - Catering - Food & Beverages,
Solihull MBC,Adult Social Care,Adult Social Care,Asda Stores 5881,10/11/2014,4.04,2 Kettlewell Close,111200 - Catering - Food & Beverages,
Solihull MBC,Children's Services,Children & Education Services,Asda Stores 5881,28/11/2014,5.00,C Brom Infants Club,111200 - Catering - Food & Beverages,
Solihull MBC,Children's Services,Children & Education Services,Asda Stores 5881,24/11/2014,5.89,Forest Oak,111200 - Catering - Food & Beverages,
Solihull MBC,Children's Services,Children & Education Services,Asda Stores 5881,25/11/2014,5.98,Afterschool Club,111200 - Catering - Food & Beverages,
Solihull MBC,Children's Services,Children & Education Services,Asda Stores 5881,18/11/2014,6.55,Fieldwork Sector And Court,111200 - Catering - Food & Beverages,
Solihull MBC,Children's Services,Children & Education Services,Asda Stores 5881,28/11/2014,7.00,Ark,111200 - Catering - Food & Beverages,
Solihull MBC,Adult Social Care,Adult Social Care,Asda Stores 5881,21/11/2014,7.15,25 Stapleton Drive,111200 - Catering - Food & Beverages,
Solihull MBC,Children's Services,Children & Education Services,Asda Stores 5881,27/11/2014,7.52,Chuckles,111200 - Catering - Food & Beverages,
Solihull MBC,Business Transformation,Children & Education Services,Asda Stores 5881,18/11/2014,7.60,Troubled Families,111200 - Catering - Food & Beverages,
Solihull MBC,Adult Social Care,Adult Social Care,Asda Stores 5881,10/11/2014,7.78,25 Stapleton Drive,111200 - Catering - Food & Beverages,
Solihull MBC,Children's Services,Children & Education Services,Asda Stores 5881,12/11/2014,9.07,Ark,111200 - Catering - Food & Beverages,
Solihull MBC,Children's Services,Children & Education Services,Asda Stores 5881,24/11/2014,9.20,Connexions ABG,111200 - Catering - Food & Beverages,
Solihull MBC,Places - HRA,Housing Revenue Account,Asda Stores 5881,19/11/2014,10.00,Purchase Card Acquisitions,111200 - Catering - Food & Beverages,
Solihull MBC,Adult Social Care,Adult Social Care,Asda Stores 5881,01/12/2014,10.00,25 Stapleton Drive,111200 - Catering - Food & Beverages,
Solihull MBC,Adult Social Care,Adult Social Care,Asda Stores 5881,03/11/2014,11.80,2 Kettlewell Close,111200 - Catering - Food & Beverages,
Solihull MBC,Children's Services,Children & Education Services,Asda Stores 5881,27/11/2014,12.50,Chuckles,111200 - Catering - Food & Beverages,
Solihull MBC,Adult Social Care,Adult Social Care,Asda Stores 5881,27/11/2014,13.08,25 Stapleton Drive,111200 - Catering - Food & Beverages,
Solihull MBC,Children's Services,Children & Education Services,Asda Stores 5881,13/11/2014,13.57,Fieldwork Sector And Court,111200 - Catering - Food & Beverages,
Solihull MBC,Adult Social Care,Adult Social Care,Asda Stores 5881,24/11/2014,14.00,2 Kettlewell Close,111200 - Catering - Food & Beverages,
Solihull MBC,Children's Services,Children & Education Services,Asda Stores 5881,11/11/2014,15.08,Afterschool Club,111200 - Catering - Food & Beverages,
Solihull MBC,Children's Services,Children & Education Services,Asda Stores 5881,26/11/2014,15.25,Coleshill Heath J&I,111200 - Catering - Food & Beverages,
Solihull MBC,Children's Services,Children & Education Services,Asda Stores 5881,19/11/2014,15.89,Afterschool Club,111200 - Catering - Food & Beverages,
Solihull MBC,Children's Services,Children & Education Services,Asda Stores 5881,10/11/2014,16.00,Coleshill Heath J&I,111200 - Catering - Food & Beverages,
Solihull MBC,Children's Services,Children & Education Services,Asda Stores 5881,12/11/2014,17.73,Windy Arbor J&I,111200 - Catering - Food & Beverages,
Solihull MBC,Places - HRA,Housing Revenue Account,Asda Stores 5881,21/11/2014,19.00,Purchase Card Acquisitions,111200 - Catering - Food & Beverages,
Solihull MBC,Children's Services,Children & Education Services,Asda Stores 5881,17/11/2014,19.49,Afterschool Club,111200 - Catering - Food & Beverages,
Solihull MBC,Adult Social Care,Adult Social Care,Asda Stores 5881,01/12/2014,20.33,25 Stapleton Drive,111200 - Catering - Food & Beverages,
Solihull MBC,Adult Social Care,Adult Social Care,Asda Stores 5881,30/11/2014,21.13,25 Stapleton Drive,111200 - Catering - Food & Beverages,
Solihull MBC,Adult Social Care,Adult Social Care,Asda Stores 5881,17/11/2014,21.62,2 Kettlewell Close,111200 - Catering - Food & Beverages,
Solihull MBC,Adult Social Care,Adult Social Care,Asda Stores 5881,10/11/2014,22.32,25 Stapleton Drive,111200 - Catering - Food & Beverages,
Solihull MBC,Adult Social Care,Adult Social Care,Asda Stores 5881,17/11/2014,23.32,25 Stapleton Drive,111200 - Catering - Food & Beverages,
Solihull MBC,Children's Services,Children & Education Services,Asda Stores 5881,21/11/2014,23.79,Section 17 DART,111200 - Catering - Food & Beverages,
Solihull MBC,Children's Services,Children & Education Services,Asda Stores 5881,13/11/2014,24.00,Afterschool Club,111200 - Catering - Food & Beverages,
Solihull MBC,Adult Social Care,Adult Social Care,Asda Stores 5881,04/11/2014,24.23,25 Stapleton Drive,111200 - Catering - Food & Beverages,
Solihull MBC,Adult Social Care,Adult Social Care,Asda Stores 5881,03/11/2014,24.49,25 Stapleton Drive,111200 - Catering - Food & Beverages,
Solihull MBC,Resources,Central Services to the Public,Asda Stores 5881,10/11/2014,25.30,Chelmsley Wood T/Centre,111200 - Catering - Food & Beverages,
Solihull MBC,Adult Social Care,Adult Social Care,Asda Stores 5881,24/11/2014,25.47,25 Stapleton Drive,111200 - Catering - Food & Beverages,
Solihull MBC,Adult Social Care,Adult Social Care,Asda Stores 5881,01/12/2014,31.00,Roundmead,111200 - Catering - Food & Beverages,
Solihull MBC,Children's Services,Children & Education Services,Asda Stores 5881,25/11/2014,31.25,Smith's Wood,111200 - Catering - Food & Beverages,
Solihull MBC,Adult Social Care,Adult Social Care,Asda Stores 5881,20/11/2014,32.67,25 Stapleton Drive,111200 - Catering - Food & Beverages,
Solihull MBC,Adult Social Care,Adult Social Care,Asda Stores 5881,17/11/2014,33.05,25 Stapleton Drive,111200 - Catering - Food & Beverages,
Solihull MBC,Children's Services,Children & Education Services,Asda Stores 5881,13/11/2014,33.98,Coleshill Heath J&I,111200 - Catering - Food & Beverages,
Solihull MBC,Adult Social Care,Adult Social Care,Asda Stores 5881,06/11/2014,35.50,25 Stapleton Drive,111200 - Catering - Food & Beverages,
Solihull MBC,Children's Services,Children & Education Services,Asda Stores 5881,13/11/2014,38.81,Auckland Centre,111200 - Catering - Food & Beverages,
Solihull MBC,Children's Services,Children & Education Services,Asda Stores 5881,25/11/2014,41.87,Coleshill Heath J&I,111200 - Catering - Food & Beverages,
Solihull MBC,Children's Services,Children & Education Services,Asda Stores 5881,14/11/2014,42.00,Afterschool Club,111200 - Catering - Food & Beverages,
Solihull MBC,Adult Social Care,Adult Social Care,Asda Stores 5881,24/11/2014,47.32,25 Stapleton Drive,111200 - Catering - Food & Beverages,
Solihull MBC,Children's Services,Children & Education Services,Asda Stores 5881,14/11/2014,50.00,Afterschool Club,111200 - Catering - Food & Beverages,
Solihull MBC,Children's Services,Children & Education Services,Asda Stores 5881,14/11/2014,50.00,Section 17 DART,111200 - Catering - Food & Beverages,
Solihull MBC,Children's Services,Children & Education Services,Asda Stores 5881,05/11/2014,51.65,Yorkswood N'hood Nursery,111200 - Catering - Food & Beverages,
Solihull MBC,Adult Social Care,Adult Social Care,Asda Stores 5881,01/12/2014,51.82,25 Stapleton Drive,111200 - Catering - Food & Beverages,
Solihull MBC,Children's Services,Children & Education Services,Asda Stores 5881,07/11/2014,67.03,Section 17 DART,111200 - Catering - Food & Beverages,
Solihull MBC,Children's Services,Children & Education Services,Asda Stores 5881,25/11/2014,70.00,Section 17 Chelmsley Wood,111200 - Catering - Food & Beverages,
Solihull MBC,Adult Social Care,Adult Social Care,Asda Stores 5881,24/11/2014,78.87,25 Stapleton Drive,111200 - Catering - Food & Beverages,
Solihull MBC,Adult Social Care,Adult Social Care,Asda Stores 5881,01/12/2014,95.34,25 Stapleton Drive,111200 - Catering - Food & Beverages,
Solihull MBC,Adult Social Care,Adult Social Care,Asda Stores 5881,03/11/2014,95.42,2 Kettlewell Close,111200 - Catering - Food & Beverages,
Solihull MBC,Adult Social Care,Adult Social Care,Asda Stores 5881,17/11/2014,98.82,2 Kettlewell Close,111200 - Catering - Food & Beverages,
Solihull MBC,Adult Social Care,Adult Social Care,Asda Stores 5881,14/11/2014,102.97,25 Stapleton Drive,111200 - Catering - Food & Beverages,
Solihull MBC,Adult Social Care,Adult Social Care,Asda Stores 5881,03/11/2014,108.25,25 Stapleton Drive,111200 - Catering - Food & Beverages,
Solihull MBC,Adult Social Care,Adult Social Care,Asda Stores 5881,17/11/2014,110.56,25 Stapleton Drive,111200 - Catering - Food & Beverages,
Solihull MBC,Adult Social Care,Adult Social Care,Asda Stores 5881,10/11/2014,113.26,2 Kettlewell Close,111200 - Catering - Food & Beverages,
Solihull MBC,Adult Social Care,Adult Social Care,Asda Stores 5881,10/11/2014,114.61,25 Stapleton Drive,111200 - Catering - Food & Beverages,
Solihull MBC,Adult Social Care,Adult Social Care,Asda Stores 5881,24/11/2014,119.29,2 Kettlewell Close,111200 - Catering - Food & Beverages,
Solihull MBC,Adult Social Care,Adult Social Care,Asda Stores 5881,01/12/2014,119.94,2 Kettlewell Close,111200 - Catering - Food & Beverages,
Solihull MBC,Adult Social Care,Adult Social Care,Asda Stores 5881,20/11/2014,121.78,25 Stapleton Drive,111200 - Catering - Food & Beverages,
Solihull MBC,Adult Social Care,Adult Social Care,Asda Stores 5881,04/11/2014,123.19,25 Stapleton Drive,111200 - Catering - Food & Beverages,
Solihull MBC,Adult Social Care,Adult Social Care,Asda Stores 5881,24/11/2014,133.17,25 Stapleton Drive,111200 - Catering - Food & Beverages,
Solihull MBC,Adult Social Care,Adult Social Care,Asda Stores 5881,10/11/2014,149.53,25 Stapleton Drive,111200 - Catering - Food & Beverages,
Solihull MBC,Adult Social Care,Adult Social Care,Asda Stores 5881,17/11/2014,154.40,25 Stapleton Drive,111200 - Catering - Food & Beverages,
Solihull MBC,Adult Social Care,Adult Social Care,Asda Stores 5881,06/11/2014,183.70,25 Stapleton Drive,111200 - Catering - Food & Beverages,
Solihull MBC,Adult Social Care,Adult Social Care,Asda Stores 5881,27/11/2014,201.71,25 Stapleton Drive,111200 - Catering - Food & Beverages,
Solihull MBC,Children's Services,Children & Education Services,Asda Superstore,25/11/2014,1.89,Smith's Wood,111200 - Catering - Food & Beverages,
Solihull MBC,Children's Services,Children & Education Services,Asda Superstore,04/11/2014,4.57,Smith's Wood,111200 - Catering - Food & Beverages,
Solihull MBC,Children's Services,Children & Education Services,Asda Superstore,02/12/2014,6.00,Smith's Wood,111200 - Catering - Food & Beverages,
Solihull MBC,Children's Services,Children & Education Services,Asda Superstore,18/11/2014,16.50,Smith's Wood,111200 - Catering - Food & Beverages,
Solihull MBC,Children's Services,Children & Education Services,Asda Superstore,18/11/2014,23.33,Evolution Project (BIP),111200 - Catering - Food & Beverages,
Solihull MBC,Children's Services,Children & Education Services,Asda Superstore,09/11/2014,34.79,Monkspath Monkeys,111200 - Catering - Food & Beverages,
Solihull MBC,Children's Services,Children & Education Services,Asda Superstore,01/12/2014,41.00,Chuckles,111200 - Catering - Food & Beverages,
Solihull MBC,Children's Services,Children & Education Services,Asda Superstore,04/11/2014,48.65,Positive Pathways,111200 - Catering - Food & Beverages,
Solihull MBC,Adult Social Care,Adult Social Care,Asda Superstore,19/11/2014,61.76,25 Stapleton Drive,111200 - Catering - Food & Beverages,
Solihull MBC,Children's Services,Children & Education Services,Asda Superstore,20/11/2014,381.00,St Andrew's Wraparound Club,111200 - Catering - Food & Beverages,
Solihull MBC,Children's Services,Children & Education Services,Av4Home.co.uk,13/11/2014,24.95,St Anthony's J&I,211100 - Furniture & Soft Furnishings - Domestic Furniture,
Solihull MBC,Children's Services,Children & Education Services,B & M Retail,10/11/2014,5.22,Coleshill Heath J&I,169999 - Domestic Goods - Not Elsewhere Classified,
Solihull MBC,Children's Services,Children & Education Services,B & Q,04/11/2014,-33.33,Windy Arbor J&I,102500 - Building Construction Materials - Timber,
Solihull MBC,Children's Services,Children & Education Services,B & Q,11/11/2014,-12.31,Catering Management,102500 - Building Construction Materials - Timber,
Solihull MBC,Children's Services,Children & Education Services,B & Q,01/12/2014,1.65,Hazel Oak,102500 - Building Construction Materials - Timber,
Solihull MBC,Children's Services,Children & Education Services,B & Q,14/11/2014,4.98,Blossomfield Inf,102500 - Building Construction Materials - Timber,
Solihull MBC,Places - HRA,Housing Revenue Account,B & Q,02/12/2014,5.24,Purchase Card Acquisitions,102500 - Building Construction Materials - Timber,
Solihull MBC,Places - HRA,Housing Revenue Account,B & Q,03/11/2014,6.13,Purchase Card Acquisitions,102500 - Building Construction Materials - Timber,
Solihull MBC,Children's Services,Children & Education Services,B & Q,02/12/2014,6.67,Cranmore Inf,102500 - Building Construction Materials - Timber,
Solihull MBC,Places - HRA,Housing Revenue Account,B & Q,24/11/2014,6.75,Purchase Card Acquisitions,102500 - Building Construction Materials - Timber,
Solihull MBC,Children's Services,Children & Education Services,B & Q,11/11/2014,12.31,Catering Management,102500 - Building Construction Materials - Timber,
Solihull MBC,Children's Services,Children & Education Services,B & Q,12/11/2014,12.31,Catering Management,102500 - Building Construction Materials - Timber,
Solihull MBC,Children's Services,Children & Education Services,B & Q,18/11/2014,13.28,Windy Arbor J&I,102500 - Building Construction Materials - Timber,
Solihull MBC,Children's Services,Children & Education Services,B & Q,12/11/2014,13.78,Cheswick Green J&I,102500 - Building Construction Materials - Timber,
Solihull MBC,Children's Services,Children & Education Services,B & Q,17/11/2014,14.70,Windy Arbor J&I,102500 - Building Construction Materials - Timber,
Solihull MBC,Children's Services,Children & Education Services,B & Q,02/12/2014,16.33,St Mary & Margaret J&I,102500 - Building Construction Materials - Timber,
Solihull MBC,Adult Social Care,Adult Social Care,B & Q,12/11/2014,16.53,1 Coppice Close,102500 - Building Construction Materials - Timber,
Solihull MBC,Adult Social Care,Adult Social Care,B & Q,05/11/2014,18.30,7 Downing Close,102500 - Building Construction Materials - Timber,
Solihull MBC,Children's Services,Children & Education Services,B & Q,23/11/2014,20.01,Shirley Heath Jnr,102500 - Building Construction Materials - Timber,
Solihull MBC,Places,Cultural & Related Services,B & Q,03/11/2014,21.21,Park Rangers,102500 - Building Construction Materials - Timber,
Solihull MBC,Children's Services,Children & Education Services,B & Q,16/11/2014,28.34,Woodies Childcare,102500 - Building Construction Materials - Timber,
Solihull MBC,Children's Services,Children & Education Services,B & Q,13/11/2014,39.26,Windy Arbor J&I,102500 - Building Construction Materials - Timber,
Solihull MBC,Children's Services,Children & Education Services,B & Q,19/11/2014,65.93,Marston Green Jnr,102500 - Building Construction Materials - Timber,
Solihull MBC,Places,Highways & Transport Services,B & Q,26/11/2014,70.51,Environmental Champion,102500 - Building Construction Materials - Timber,
Solihull MBC,Children's Services,Children & Education Services,B & Q,11/11/2014,87.03,Windy Arbor J&I,102500 - Building Construction Materials - Timber,
Solihull MBC,Places,Highways & Transport Services,B & Q,02/12/2014,135.39,Environmental Champion,102500 - Building Construction Materials - Timber,
Solihull MBC,Resources,Other Housing Services,B R E Ltd,02/12/2014,24.00,PSD - Landlord - Admin ,171114 - Education - Literature,
Solihull MBC,Children's Services,Children & Education Services,B&M Retail Ltd,20/11/2014,146.79,St Andrew's Wraparound Club,169999 - Domestic Goods - Not Elsewhere Classified,
Solihull MBC,Children's Services,Children & Education Services,B&Q Direct,21/11/2014,111.00,George Fentham J&I,102500 - Building Construction Materials - Timber,
Solihull MBC,Children's Services,Children & Education Services,B.T. Business Direct,03/11/2014,19.05,Smith's Wood,271430 - Information Communication Technology - Software - Commercial Off-The-Shelf,
Solihull MBC,Public Health ,Adult Social Care,Bam Fm Ltd,01/12/2014,-24.97,Public Health Leadership,291400 - Arts & Leisure Services - Sport & Fitness,
Solihull MBC,Public Health ,Adult Social Care,Bam Fm Ltd,06/11/2014,74.92,Public Health Leadership,291400 - Arts & Leisure Services - Sport & Fitness,
Solihull MBC,Public Health ,Adult Social Care,Bam Fm Ltd,18/11/2014,74.92,Public Health Leadership,291400 - Arts & Leisure Services - Sport & Fitness,
Solihull MBC,Children's Services,Children & Education Services,B'Ham Edctn Cons Ltd,20/11/2014,107.82,Smith's Wood,349999 - Stationery - Not Elsewhere Classified,
Solihull MBC,Children's Services,Children & Education Services,Bigdug Limited,01/12/2014,583.20,Greswold J&I,109999 - Building Construction Materials - Not Elsewhere Classified,
Solihull MBC,Children's Services,Children & Education Services,Bimringham Flowers And,28/11/2014,60.00,St John The Baptist J&I,249999 - Horticultural - Not Elsewhere Classified,
Solihull MBC,Children's Services,Children & Education Services,Birmingham,07/11/2014,225.00,St Andrew's J&I,291100 - Arts & Leisure Services - Museums & Arts,
Solihull MBC,Places,Environmental and Regulatory Services,Birmingham Bullring,12/11/2014,6.00,Licensing,261600 - Human Resources - Travel & Subsistence,
Solihull MBC,Governance  ,Corporate & Democratic Core,Birmingham Central Syn,13/11/2014,16.05,Mayoral Services,201710 - Financial Services - Grants - Charitable,
Solihull MBC,Children's Services,Children & Education Services,Birmingham Hippodrome,14/11/2014,379.50,Yorkswood J&I,291300 - Arts & Leisure Services - Performing Arts,
Solihull MBC,Children's Services,Children & Education Services,Birmingham Royal B,01/12/2014,250.00,Yorkswood J&I,201710 - Financial Services - Grants - Charitable,
Solihull MBC,Children's Services,Children & Education Services,Blackcombe Distrib,02/12/2014,51.54,Hazel Oak,169999 - Domestic Goods - Not Elsewhere Classified,
Solihull MBC,Places - HRA,Housing Revenue Account,Blinds 2 Go Ltd,18/11/2014,56.40,Purchase Card Acquisitions,211210 - Furniture & Soft Furnishings - Soft Furnishings,
Solihull MBC,Children's Services,Children & Education Services,Blythe Mill Farm Suppl,01/12/2014,30.50,Windy Arbor J&I,169999 - Domestic Goods - Not Elsewhere Classified,
Solihull MBC,Children's Services,Children & Education Services,Book People Voucher,19/11/2014,37.00,Afterschool Club,171114 - Education - Literature,
Solihull MBC,Children's Services,Children & Education Services,Bookdepository.com,07/11/2014,27.00,St Anne's J&I,171114 - Education - Literature,
Solihull MBC,Children's Services,Children & Education Services,Bookdepository.com,21/11/2014,142.86,Peterbrook J&I,171114 - Education - Literature,
Solihull MBC,Children's Services,Children & Education Services,"Boots,Chelmsley",24/11/2014,18.55,Chuckles,311200 - Healthcare - Drugs,
Solihull MBC,Children's Services,Children & Education Services,Boots.com,17/11/2014,83.13,Chuckles,311200 - Healthcare - Drugs,
Solihull MBC,Children's Services,Children & Education Services,Box Limited,05/11/2014,39.99,Fordbridge Community Primary,271430 - Information Communication Technology - Software - Commercial Off-The-Shelf,
Solihull MBC,Adult Social Care,Adult Social Care,Brighter Day Products,04/11/2014,34.99,OP - Day Centre Oaktrees,171011 - Education - School Services,
Solihull MBC,Children's Services,Children & Education Services,Brueton Park Service Stat,04/11/2014,26.82,Coronation Youth Centre,381100 - Vehicle Management - Fuel,
Solihull MBC,Children's Services,Children & Education Services,Bsh Gb Eshop,21/11/2014,254.65,Tidbury Green J&I,169999 - Domestic Goods - Not Elsewhere Classified,
Solihull MBC,Children's Services,Children & Education Services,BT Bill Payment 2,17/11/2014,92.26,Peterbrook Club,271699 - Information Communications Technology - Telecommunications,
Solihull MBC,Children's Services,Children & Education Services,BT Business Direct Ltd,26/11/2014,375.37,Smith's Wood,271200 - Information Communications Technology - Hardware,
Solihull MBC,Children's Services,Children & Education Services,Build-A-Bear Workshop,01/12/2014,17.00,Shirley Heath Kids Club,171117 - Education - Toys,
Solihull MBC,Children's Services,Children & Education Services,Build-A-Bear Workshop,26/11/2014,24.00,Adoption Team,171117 - Education - Toys,
Solihull MBC,Children's Services,Children & Education Services,Buyabattery co uk,27/11/2014,13.77,Forest Oak,169999 - Domestic Goods - Not Elsewhere Classified,
Solihull MBC,Children's Services,Children & Education Services,Cakescookiescraft,21/11/2014,44.54,Hazel Oak,171110 - Education - Arts & Crafts,
Solihull MBC,Children's Services,Children & Education Services,Can Stock Photo,28/11/2014,5.91,St Andrew's J&I,191100 - Facilities & Management Services - Design & Photography,
Solihull MBC,Governance  ,Central Services to the Public,Canford Audio plc,13/11/2014,90.00,Internal Audit,169999 - Domestic Goods - Not Elsewhere Classified,
Solihull MBC,Places,Environmental and Regulatory Services,Card Factory,02/12/2014,2.00,Town Centres and Events,169999 - Domestic Goods - Not Elsewhere Classified,
Solihull MBC,Children's Services,Children & Education Services,Castle Nurseries,08/11/2014,11.36,Hazel Oak,249999 - Horticultural - Not Elsewhere Classified,
Solihull MBC,Children's Services,Children & Education Services,Cauliflower,24/11/2014,24.00,Meriden J&I,349999 - Stationery - Not Elsewhere Classified,
Solihull MBC,Children's Services,Children & Education Services,Central Eng Coop,20/11/2014,2.20,Evolution Project (BIP),169999 - Domestic Goods - Not Elsewhere Classified,
Solihull MBC,Children's Services,Children & Education Services,Central Eng Coop,06/11/2014,2.25,Evolution Project (BIP),169999 - Domestic Goods - Not Elsewhere Classified,
Solihull MBC,Children's Services,Children & Education Services,Central Eng Coop,12/11/2014,2.37,Evolution Project (BIP),169999 - Domestic Goods - Not Elsewhere Classified,
Solihull MBC,Children's Services,Children & Education Services,Central Eng Coop,01/12/2014,4.11,Evolution Project (BIP),169999 - Domestic Goods - Not Elsewhere Classified,
Solihull MBC,Children's Services,Children & Education Services,Central Eng Coop,11/11/2014,4.77,Shirley Heath Kids Club,169999 - Domestic Goods - Not Elsewhere Classified,
Solihull MBC,Children's Services,Children & Education Services,Central Eng Coop,06/11/2014,6.00,Wrap Around Club,169999 - Domestic Goods - Not Elsewhere Classified,
Solihull MBC,Children's Services,Children & Education Services,Central Eng Coop,25/11/2014,6.80,Evolution Project (BIP),169999 - Domestic Goods - Not Elsewhere Classified,
Solihull MBC,Children's Services,Children & Education Services,Central Eng Coop,11/11/2014,7.14,Evolution Project (BIP),169999 - Domestic Goods - Not Elsewhere Classified,
Solihull MBC,Children's Services,Children & Education Services,Central Eng Coop,26/11/2014,7.40,Evolution Project (BIP),169999 - Domestic Goods - Not Elsewhere Classified,
Solihull MBC,Children's Services,Children & Education Services,Central Eng Coop,10/11/2014,8.05,Evolution Project (BIP),169999 - Domestic Goods - Not Elsewhere Classified,
Solihull MBC,Children's Services,Children & Education Services,Central Eng Coop,26/11/2014,9.00,Blossomfield Inf,169999 - Domestic Goods - Not Elsewhere Classified,
Solihull MBC,Children's Services,Children & Education Services,Central Eng Coop,20/11/2014,9.14,Evolution Project (BIP),169999 - Domestic Goods - Not Elsewhere Classified,
Solihull MBC,Children's Services,Children & Education Services,Central Eng Coop,12/11/2014,12.25,Kingshurst Youth Centre,169999 - Domestic Goods - Not Elsewhere Classified,
Solihull MBC,Children's Services,Children & Education Services,Central Eng Coop,26/11/2014,13.04,Evolution Project (BIP),169999 - Domestic Goods - Not Elsewhere Classified,
Solihull MBC,Children's Services,Children & Education Services,Central Eng Coop,13/11/2014,13.84,Evolution Project (BIP),169999 - Domestic Goods - Not Elsewhere Classified,
Solihull MBC,Children's Services,Children & Education Services,Central Eng Coop,01/12/2014,15.43,Care Matters,169999 - Domestic Goods - Not Elsewhere Classified,
Solihull MBC,Children's Services,Children & Education Services,Central Eng Coop,19/11/2014,16.76,Evolution Project (BIP),169999 - Domestic Goods - Not Elsewhere Classified,
Solihull MBC,Children's Services,Children & Education Services,Central Eng Coop,24/11/2014,17.30,Evolution Project (BIP),169999 - Domestic Goods - Not Elsewhere Classified,
Solihull MBC,Adult Social Care,Adult Social Care,Central Eng Coop,28/11/2014,18.00,ASC - Chief Executive's Office,169999 - Domestic Goods - Not Elsewhere Classified,
Solihull MBC,Adult Social Care,Adult Social Care,Central Eng Coop,13/11/2014,20.94,9 Hurst Green,169999 - Domestic Goods - Not Elsewhere Classified,
Solihull MBC,Children's Services,Children & Education Services,Central Eng Coop,06/11/2014,24.31,Evolution Project (BIP),169999 - Domestic Goods - Not Elsewhere Classified,
Solihull MBC,Children's Services,Children & Education Services,Central Eng Coop,05/11/2014,24.73,Evolution Project (BIP),169999 - Domestic Goods - Not Elsewhere Classified,
Solihull MBC,Adult Social Care,Adult Social Care,Central Eng Coop,22/11/2014,44.53,9 Hurst Green,169999 - Domestic Goods - Not Elsewhere Classified,
Solihull MBC,Adult Social Care,Adult Social Care,Central Eng Coop,06/11/2014,103.14,9 Hurst Green,169999 - Domestic Goods - Not Elsewhere Classified,
Solihull MBC,Children's Services,Children & Education Services,Central Hotel,18/11/2014,345.00,Central Area - Youth,261000 - Human Resources - Accommodation,
Solihull MBC,Children's Services,Children & Education Services,Central Theatre Suppli,24/11/2014,64.80,Coppice Jnr,219999 - Furniture & Soft Furnishings 0 Not Elsewhere Classified,
Solihull MBC,Children's Services,Children & Education Services,Centro,04/11/2014,7.50,Forest Oak,289999 - Legal Services - Not Elsewhere Classified,
Solihull MBC,Children's Services,Children & Education Services,Centro,05/11/2014,10.00,Positive Pathways,289999 - Legal Services - Not Elsewhere Classified,
Solihull MBC,Children's Services,Children & Education Services,Centro House,10/11/2014,15.00,Positive Pathways,261600 - Human Resources - Travel & Subsistence,
Solihull MBC,Children's Services,Children & Education Services,Centro House,10/11/2014,60.00,Positive Pathways,261600 - Human Resources - Travel & Subsistence,
Solihull MBC,Children's Services,Children & Education Services,Centro Services,05/11/2014,183.60,Kingshurst Primary,199999 - Facilities & Management Services - Not Elsewhere Classified,
Solihull MBC,Children's Services,Children & Education Services,Cerium Visual Technologi,26/11/2014,97.33,Fordbridge Community Primary,319999 - Healthcare - Not Elsewhere Classified,
Solihull MBC,Children's Services,Children & Education Services,Charfleetbi,06/11/2014,132.30,Fostering Team,349999 - Stationery - Not Elsewhere Classified,
Solihull MBC,Children's Services,Children & Education Services,Chelmsley Wood Service St,06/11/2014,51.13,Smith's Wood,381100 - Vehicle Management - Fuel,
Solihull MBC,Children's Services,Children & Education Services,Chelmsley Wood Service St,14/11/2014,62.21,Smith's Wood,381100 - Vehicle Management - Fuel,
Solihull MBC,Children's Services,Children & Education Services,Chelmsley Wood Service St,06/11/2014,63.63,Smith's Wood,381100 - Vehicle Management - Fuel,
Solihull MBC,Children's Services,Children & Education Services,Chelmsley Wood Service St,13/11/2014,92.60,Smith's Wood,381100 - Vehicle Management - Fuel,
Solihull MBC,Governance  ,Central Services to the Public,Chimichanga,01/12/2014,75.90,Corporate Governance,261600 - Human Resources - Travel & Subsistence,
Solihull MBC,Children's Services,Children & Education Services,Christmasfarm,26/11/2014,92.00,Coleshill Heath J&I,"399999 - Works - Construction, Repairs & Maintenance - Not Elsewhere Classified",
Solihull MBC,Children's Services,Children & Education Services,Christmasfarm,21/11/2014,235.00,Reynalds Cross,"399999 - Works - Construction, Repairs & Maintenance - Not Elsewhere Classified",
Solihull MBC,Places,Cultural & Related Services,Combined Precision,28/11/2014,38.68,Arts Complex Hirings,101100 - Building Construction Materials - Electrical,
Solihull MBC,Places,Cultural & Related Services,Combined Precision,30/11/2014,46.46,Arts Complex Hirings,101100 - Building Construction Materials - Electrical,
Solihull MBC,Children's Services,Children & Education Services,Combined Precision,05/11/2014,189.48,Lyndon,101100 - Building Construction Materials - Electrical,
Solihull MBC,Places,Cultural & Related Services,Combined Precision,28/11/2014,345.00,Arts Complex Hirings,101100 - Building Construction Materials - Electrical,
Solihull MBC,Children's Services,Children & Education Services,Commercialwashrooms,27/11/2014,814.80,Oak Cottage J&I,"391100 - Works - Construction, Repairs & Maintenance - Buildings",
Solihull MBC,Children's Services,Children & Education Services,Complete Care,17/11/2014,-13.62,Castle Bromwich Jnr,311300 - Healthcare - Equipment,
Solihull MBC,Children's Services,Children & Education Services,Complete Care,02/12/2014,329.46,Reynalds Cross,311300 - Healthcare - Equipment,
Solihull MBC,Children's Services,Children & Education Services,Completely Floored,05/11/2014,50.00,Coleshill Heath J&I,101300 - Building Construction Materials - Floor Coverings,
Solihull MBC,Children's Services,Children & Education Services,Costa Coffee,10/11/2014,7.45,Corporate Parenting Youth,261600 - Human Resources - Travel & Subsistence,
Solihull MBC,Children's Services,Children & Education Services,County Waste,18/11/2014,191.58,Chapel Fields Jnr,370000 - Utilities,
Solihull MBC,Places,Cultural & Related Services,Craddocks Nurserie,24/11/2014,22.50,Park Rangers,249999 - Horticultural - Not Elsewhere Classified,
Solihull MBC,Places,Cultural & Related Services,Craft Computer Paper,10/11/2014,46.25,Arts Complex Hirings,341100 - Stationery - Sundries,
Solihull MBC,Places,Cultural & Related Services,Craftis Ltd,03/11/2014,252.00,Theatre Bar,171117 - Education - Toys,
Solihull MBC,Business Transformation,Central Services to the Public,Cross Country,25/11/2014,30.10,Corp Perform Policy & Info,261600 - Human Resources - Travel & Subsistence,
Solihull MBC,Places - HRA,Housing Revenue Account,Crowne Plaza,07/11/2014,81.00,Purchase Card Acquisitions,261000 - Human Resources - Accommodation,
Solihull MBC,Adult Social Care,Adult Social Care,Currys Online,05/11/2014,139.99,Charity,169999 - Domestic Goods - Not Elsewhere Classified,
Solihull MBC,Children's Services,Children & Education Services,Cyril Bason Stokesay Limi,19/11/2014,44.00,Cranmore Inf,111200 - Catering - Food & Beverages,
Solihull MBC,Children's Services,Children & Education Services,Dalen Ltd,19/11/2014,96.00,CSW Team B U18 Local Clients,"391000 - Works - Construction, Repairs & Maintenance - Architect",
Solihull MBC,Children's Services,Children & Education Services,Darlaston Builders,06/11/2014,15.75,Coleshill Heath J&I,102500 - Building Construction Materials - Timber,
Solihull MBC,Children's Services,Children & Education Services,Darlaston Builders,19/11/2014,72.56,Marston Green Jnr,102500 - Building Construction Materials - Timber,
Solihull MBC,Places,Cultural & Related Services,Dennis Publishing,26/11/2014,37.50,Libraries Resources Fund,349999 - Stationery - Not Elsewhere Classified,
Solihull MBC,Children's Services,Children & Education Services,Digitalid.co.uk,01/12/2014,61.68,Streetsbrook Inf,341100 - Stationery - Sundries,
Solihull MBC,Children's Services,Children & Education Services,Direct 365Online Ltd,13/11/2014,80.70,Oak Cottage J&I,151000 - Consultancy - Business,
Solihull MBC,Children's Services,Children & Education Services,Direct Furniture For U,15/11/2014,12.00,Monkspath Monkeys,211100 - Furniture & Soft Furnishings - Domestic Furniture,
Solihull MBC,Places,Highways & Transport Services,Direct Furniture For U,29/11/2014,36.30,Tankers,211100 - Furniture & Soft Furnishings - Domestic Furniture,
Solihull MBC,Children's Services,Children & Education Services,Direct Linen Textiles,28/11/2014,175.80,Widney Jnr,169999 - Domestic Goods - Not Elsewhere Classified,
Solihull MBC,Children's Services,Children & Education Services,Dolphin,04/11/2014,205.00,Kineton Green Primary,169999 - Domestic Goods - Not Elsewhere Classified,
Solihull MBC,Public Health ,Central Services to the Public,Dominos Pizza,06/11/2014,45.97,CSW Resilience,261600 - Human Resources - Travel & Subsistence,
Solihull MBC,Public Health ,Central Services to the Public,Domino's Pizza,12/11/2014,45.97,CSW Resilience,261600 - Human Resources - Travel & Subsistence,
Solihull MBC,Children's Services,Children & Education Services,Dot Net Nuke,28/11/2014,65.65,Research & Policy,169999 - Domestic Goods - Not Elsewhere Classified,
Solihull MBC,Places,Cultural & Related Services,Dovetail Haymarket Pbl,26/11/2014,122.00,Libraries Resources Fund,349999 - Stationery - Not Elsewhere Classified,
Solihull MBC,Children's Services,Children & Education Services,Dowding & Plummer,14/11/2014,137.32,Streetsbrook Inf,169999 - Domestic Goods - Not Elsewhere Classified,
Solihull MBC,Adult Social Care,Adult Social Care,Dragon Inn,20/11/2014,12.38,25 Stapleton Drive,261600 - Human Resources - Travel & Subsistence,
Solihull MBC,Adult Social Care,Adult Social Care,Dragon Inn,20/11/2014,12.69,25 Stapleton Drive,261600 - Human Resources - Travel & Subsistence,
Solihull MBC,Adult Social Care,Adult Social Care,Dreams Ltd,15/11/2014,123.00,1 Coppice Close,211100 - Furniture & Soft Furnishings - Domestic Furniture,
Solihull MBC,Children's Services,Children & Education Services,Dunelm (Soft Furnishin,20/11/2014,80.93,St Andrew's Wraparound Club,211210 - Furniture & Soft Furnishings - Soft Furnishings,
Solihull MBC,Children's Services,Children & Education Services,Dunelm Ltd,23/11/2014,16.96,Chuckles,211210 - Furniture & Soft Furnishings - Soft Furnishings,
Solihull MBC,Children's Services,Children & Education Services,Dunelm Ltd,03/11/2014,24.97,Youth Council / YID,211210 - Furniture & Soft Furnishings - Soft Furnishings,
Solihull MBC,Places,Cultural & Related Services,Earlswood Nurseries,19/11/2014,18.49,Park Rangers,249999 - Horticultural - Not Elsewhere Classified,
Solihull MBC,Places,Cultural & Related Services,Earlswood Nurseries,27/11/2014,75.20,Park Rangers,249999 - Horticultural - Not Elsewhere Classified,
Solihull MBC,Business Transformation,Planning & Development Services,East Midlands Trai,18/11/2014,149.50,Community & Voluntary,261600 - Human Resources - Travel & Subsistence,
Solihull MBC,Children's Services,Children & Education Services,Eb *Primary Physical E,16/11/2014,40.00,Chapel Fields Jnr,151000 - Consultancy - Business,
Solihull MBC,Governance  ,Corporate & Democratic Core,Eb *Tackling Domestic,07/11/2014,30.00,Members Expenses,151000 - Consultancy - Business,
Solihull MBC,Governance  ,Corporate & Democratic Core,Eb *Tackling Domestic,07/11/2014,30.00,Members Expenses,151000 - Consultancy - Business,
Solihull MBC,Children's Services,Children & Education Services,Ebuyer (Uk) Ltd,24/11/2014,109.21,Smith's Wood,169999 - Domestic Goods - Not Elsewhere Classified,
Solihull MBC,Children's Services,Children & Education Services,Ebuyer (Uk) Ltd,14/11/2014,200.99,Smith's Wood,169999 - Domestic Goods - Not Elsewhere Classified,
Solihull MBC,Children's Services,Children & Education Services,Ebuyer (Uk) Ltd,07/11/2014,347.97,Smith's Wood,169999 - Domestic Goods - Not Elsewhere Classified,
Solihull MBC,Children's Services,Children & Education Services,Ebuyer (Uk) Ltd,21/11/2014,375.38,Smith's Wood,169999 - Domestic Goods - Not Elsewhere Classified,
Solihull MBC,Resources,Central Services to the Public,Ecolizardlt,11/11/2014,50.83,Solihull Connect,211210 - Furniture & Soft Furnishings - Soft Furnishings,
Solihull MBC,Children's Services,Children & Education Services,Ee & T-Mobile,06/11/2014,163.20,Castle Bromwich Jnr,271699 - Information Communications Technology - Telecommunications,
Solihull MBC,Resources,Adult Social Care,Egertons Birmingham,14/11/2014,486.00,In House Transport,381400 - Vehicle Management - Maintenance,
Solihull MBC,Children's Services,Children & Education Services,Elc-Internet,14/11/2014,70.00,Reynalds Cross,169999 - Domestic Goods - Not Elsewhere Classified,
Solihull MBC,Places - HRA,Housing Revenue Account,Electric Centre Ltd,25/11/2014,3.30,Purchase Card Acquisitions,169999 - Domestic Goods - Not Elsewhere Classified,
Solihull MBC,Places - HRA,Housing Revenue Account,Electric Centre Ltd,12/11/2014,6.11,Purchase Card Acquisitions,169999 - Domestic Goods - Not Elsewhere Classified,
Solihull MBC,Places - HRA,Housing Revenue Account,Electric Centre Ltd,02/12/2014,6.96,Purchase Card Acquisitions,169999 - Domestic Goods - Not Elsewhere Classified,
Solihull MBC,Places - HRA,Housing Revenue Account,Electric Centre Ltd,24/11/2014,7.92,Purchase Card Acquisitions,169999 - Domestic Goods - Not Elsewhere Classified,
Solihull MBC,Children's Services,Children & Education Services,Electric Centre Ltd,18/11/2014,9.34,St Andrew's J&I,169999 - Domestic Goods - Not Elsewhere Classified,
Solihull MBC,Places - HRA,Housing Revenue Account,Electric Centre Ltd,12/11/2014,16.79,Purchase Card Acquisitions,169999 - Domestic Goods - Not Elsewhere Classified,
Solihull MBC,Places - HRA,Housing Revenue Account,Electric Centre Ltd,24/11/2014,24.00,Purchase Card Acquisitions,169999 - Domestic Goods - Not Elsewhere Classified,
Solihull MBC,Children's Services,Children & Education Services,Embassy Of The Islamic,02/12/2014,160.00,CSW Team B U18 Local Clients,289999 - Legal Services - Not Elsewhere Classified,
Solihull MBC,Children's Services,Children & Education Services,Emporium,20/11/2014,40.00,Afterschool Club,169999 - Domestic Goods - Not Elsewhere Classified,
Solihull MBC,Children's Services,Children & Education Services,Euroffice.co.uk,05/11/2014,59.76,Berkswell J&I,341100 - Stationery - Sundries,
Solihull MBC,Children's Services,Children & Education Services,Euroffice.co.uk,28/11/2014,83.99,Berkswell J&I,341100 - Stationery - Sundries,
Solihull MBC,Children's Services,Children & Education Services,Euroffice.co.uk,19/11/2014,169.64,Berkswell J&I,341100 - Stationery - Sundries,
Solihull MBC,Children's Services,Children & Education Services,Evanscyles.com,26/11/2014,16.97,Smith's Wood,331300 - Sports & Playground Equipment & Maintenance - Sports Equipment,
Solihull MBC,Children's Services,Children & Education Services,Evaq8 Ltd,12/11/2014,48.68,Streetsbrook Inf,331300 - Sports & Playground Equipment & Maintenance - Sports Equipment,
Solihull MBC,Children's Services,Children & Education Services,Evaq8 Ltd,19/11/2014,110.70,Streetsbrook Inf,331300 - Sports & Playground Equipment & Maintenance - Sports Equipment,
Solihull MBC,Children's Services,Children & Education Services,Expedia 17367742815,06/11/2014,6.00,Smith's Wood,261600 - Human Resources - Travel & Subsistence,
Solihull MBC,Governance  ,Central Services to the Public,Express By Holiday,29/11/2014,66.00,Internal Audit,261000 - Human Resources - Accommodation,
Solihull MBC,Children's Services,Children & Education Services,Farm & Garden Machiner,25/11/2014,64.83,Coleshill Heath J&I,249999 - Horticultural - Not Elsewhere Classified,
Solihull MBC,Children's Services,Children & Education Services,Farmfoods- Yardley,13/11/2014,50.30,Langley J&I,111200 - Catering - Food & Beverages,
Solihull MBC,Children's Services,Children & Education Services,Farmfoods- Yardley,23/11/2014,50.30,Langley J&I,111200 - Catering - Food & Beverages,
Solihull MBC,Places - HRA,Housing Revenue Account,Fast Key Services,12/11/2014,6.72,Purchase Card Acquisitions,151000 - Consultancy - Business,
Solihull MBC,Children's Services,Children & Education Services,Fastfix(Makita),24/11/2014,185.90,St Margaret's J&I,249999 - Horticultural - Not Elsewhere Classified,
Solihull MBC,Places,Planning & Development Services,Fasthosts Internet,19/11/2014,8.39,Policy And Growth,279999 - Information Communications Technology - Not Elsewhere Classified,
Solihull MBC,Places,Planning & Development Services,Fat Sandwich,07/11/2014,31.20,Policy And Growth,261600 - Human Resources - Travel & Subsistence,
Solihull MBC,Children's Services,Children & Education Services,Fd Solutions Ltd,18/11/2014,86.40,Surestart - Quality,171114 - Education - Literature,
Solihull MBC,Places,Highways & Transport Services,FGW Ticket Office,25/11/2014,79.50,Places Dir Savings CS Cab,261600 - Human Resources - Travel & Subsistence,
Solihull MBC,Children's Services,Children & Education Services,Findel Ed Ltd,07/11/2014,-13.14,St Margaret's J&I,169999 - Domestic Goods - Not Elsewhere Classified,
Solihull MBC,Adult Social Care,Adult Social Care,Findel Ed Ltd,12/11/2014,14.47,Bacons End,169999 - Domestic Goods - Not Elsewhere Classified,
Solihull MBC,Children's Services,Children & Education Services,Findel Ed Ltd,07/11/2014,99.83,Damson Wood Inf,169999 - Domestic Goods - Not Elsewhere Classified,
Solihull MBC,Children's Services,Children & Education Services,Findel Ed Ltd,05/11/2014,100.80,St Margaret's J&I,169999 - Domestic Goods - Not Elsewhere Classified,
Solihull MBC,Children's Services,Children & Education Services,Findel Ed Ltd,19/11/2014,133.14,Hazel Oak,169999 - Domestic Goods - Not Elsewhere Classified,
Solihull MBC,Children's Services,Children & Education Services,Findel Ed Ltd,07/11/2014,198.79,Damson Wood Inf,169999 - Domestic Goods - Not Elsewhere Classified,
Solihull MBC,Children's Services,Children & Education Services,Findel Ed Ltd,07/11/2014,381.99,Damson Wood Inf,169999 - Domestic Goods - Not Elsewhere Classified,
Solihull MBC,Children's Services,Children & Education Services,Findel Ed Ltd,07/11/2014,407.89,Damson Wood Inf,169999 - Domestic Goods - Not Elsewhere Classified,
Solihull MBC,Adult Social Care,Adult Social Care,Findel Education,12/11/2014,14.35,Bacons End,169999 - Domestic Goods - Not Elsewhere Classified,
Solihull MBC,Children's Services,Children & Education Services,Firstaid4Less.co.uk,26/11/2014,229.73,Reynalds Cross,169999 - Domestic Goods - Not Elsewhere Classified,
Solihull MBC,Resources,Children & Education Services,Fleur-De-Lis,26/11/2014,5.00,Civic Suite Catering,249999 - Horticultural - Not Elsewhere Classified,
Solihull MBC,Business Transformation,Central Services to the Public,Fleur-De-Lis,25/11/2014,35.99,Communications Unit,249999 - Horticultural - Not Elsewhere Classified,
Solihull MBC,Places,Cultural & Related Services,Flint Hire & Supply,01/12/2014,108.12,Arts Complex Hirings,141000 - Clothing - Children & Adults,
Solihull MBC,Resources,Corporate & Democratic Core,Fraziers Wine Merchants,14/11/2014,242.45,Civic Suite,111200 - Catering - Food & Beverages,
Solihull MBC,Children's Services,Children & Education Services,G B S Lighting,27/11/2014,27.30,St George & Teresa J&I,169999 - Domestic Goods - Not Elsewhere Classified,
Solihull MBC,Children's Services,Children & Education Services,Geeves Of Castle Bromw,11/11/2014,4.50,Positive Pathways,131311 - Cleaning & Janitorial - Laundry Service,
Solihull MBC,Children's Services,Children & Education Services,Geographical Assoc,05/11/2014,47.00,St John The Baptist J&I,201710 - Financial Services - Grants - Charitable,
Solihull MBC,Children's Services,Children & Education Services,Giftvouchershop.co.uk,26/11/2014,15.99,Corporate Parenting Youth,169999 - Domestic Goods - Not Elsewhere Classified,
Solihull MBC,Children's Services,Children & Education Services,Gilmex International L,25/11/2014,237.00,Coleshill Heath J&I,349999 - Stationery - Not Elsewhere Classified,
Solihull MBC,Places,Environmental and Regulatory Services,Glovesnstuff.com,07/11/2014,222.84,Environmental Group,169999 - Domestic Goods - Not Elsewhere Classified,
Solihull MBC,Places,Cultural & Related Services,Gn&M Ltd,13/11/2014,43.29,Libraries Resources Fund,349999 - Stationery - Not Elsewhere Classified,
Solihull MBC,Places - HRA,Housing Revenue Account,Godaddy Com Europe,06/11/2014,13.47,Purchase Card Acquisitions,279999 - Information Communications Technology - Not Elsewhere Classified,
Solihull MBC,Children's Services,Children & Education Services,Graham 3182,26/11/2014,5.74,Burman Inf,102500 - Building Construction Materials - Timber,
Solihull MBC,Children's Services,Children & Education Services,Graham 3182,24/11/2014,10.45,Burman Inf,102500 - Building Construction Materials - Timber,
Solihull MBC,Children's Services,Children & Education Services,Graham 3182,14/11/2014,19.44,Peterbrook J&I,102500 - Building Construction Materials - Timber,
Solihull MBC,Children's Services,Children & Education Services,Greggs - S2064,17/11/2014,3.90,Chapel Fields Jnr,111200 - Catering - Food & Beverages,
Solihull MBC,Children's Services,Children & Education Services,Grimas Bv,17/11/2014,38.53,Section 17 Smiths Wood,169999 - Domestic Goods - Not Elsewhere Classified,
Solihull MBC,Children's Services,Children & Education Services,Grinsells Skip Hire Limit,05/11/2014,192.00,Castle Bromwich Inf,219999 - Furniture & Soft Furnishings 0 Not Elsewhere Classified,
Solihull MBC,Children's Services,Children & Education Services,GRO HM Passport Office,14/11/2014,-14.15,Section 17 Chelmsley Wood,289999 - Legal Services - Not Elsewhere Classified,
Solihull MBC,Children's Services,Children & Education Services,GRO HM Passport Office,03/11/2014,18.50,Section 17 Smiths Wood,289999 - Legal Services - Not Elsewhere Classified,
Solihull MBC,Children's Services,Children & Education Services,GRO HM Passport Office,14/11/2014,23.40,Section 17 Chelmsley Wood,289999 - Legal Services - Not Elsewhere Classified,
Solihull MBC,Children's Services,Children & Education Services,GRO HM Passport Office,25/11/2014,23.40,Section 17 Smiths Wood,289999 - Legal Services - Not Elsewhere Classified,
Solihull MBC,Places,Cultural & Related Services,Guardian News & Me,28/11/2014,36.79,Libraries Resources Fund,349999 - Stationery - Not Elsewhere Classified,
Solihull MBC,Places - HRA,Housing Revenue Account,H M Lowe & Son Ltd,06/11/2014,15.54,Purchase Card Acquisitions,109999 - Building Construction Materials - Not Elsewhere Classified,
Solihull MBC,Children's Services,Children & Education Services,H M Lowe & Son Ltd,04/11/2014,34.20,Smith's Wood,109999 - Building Construction Materials - Not Elsewhere Classified,
Solihull MBC,Adult Social Care,Adult Social Care,Halfords 0746,30/11/2014,4.99,ASC - Joint Stores,331300 - Sports & Playground Equipment & Maintenance - Sports Equipment,
Solihull MBC,Children's Services,Children & Education Services,Halfords 0930,19/11/2014,19.99,Hatchfrd Brook Youth Cntre,331300 - Sports & Playground Equipment & Maintenance - Sports Equipment,
Solihull MBC,Adult Social Care,Adult Social Care,Hare & Hounds,13/11/2014,3.95,25 Stapleton Drive,261600 - Human Resources - Travel & Subsistence,
Solihull MBC,Adult Social Care,Adult Social Care,Hare & Hounds,13/11/2014,12.95,25 Stapleton Drive,261600 - Human Resources - Travel & Subsistence,
Solihull MBC,Adult Social Care,Adult Social Care,Hare & Hounds,13/11/2014,13.90,25 Stapleton Drive,151000 - Consultancy - Business,
Solihull MBC,Adult Social Care,Adult Social Care,Hare & Hounds,28/11/2014,13.90,25 Stapleton Drive,261600 - Human Resources - Travel & Subsistence,
Solihull MBC,Adult Social Care,Adult Social Care,Hare & Hounds,28/11/2014,14.90,25 Stapleton Drive,261600 - Human Resources - Travel & Subsistence,
Solihull MBC,Adult Social Care,Adult Social Care,Hare & Hounds,28/11/2014,15.95,25 Stapleton Drive,261600 - Human Resources - Travel & Subsistence,
Solihull MBC,Children's Services,Children & Education Services,Hatton Country World,10/11/2014,50.00,Merstone,169999 - Domestic Goods - Not Elsewhere Classified,
Solihull MBC,Children's Services,Children & Education Services,Heat Outdoor Ltd,13/11/2014,429.60,Oak Cottage J&I,102200 - Building Construction Materials - Plumbing,
Solihull MBC,Resources,Central Services to the Public,Hemming Group Ltd,13/11/2014,140.00,CMT Secretariat,169999 - Domestic Goods - Not Elsewhere Classified,
Solihull MBC,Places,Cultural & Related Services,Hewlett-Packard Ltd.,11/11/2014,76.99,Arts Complex Hirings,271200 - Information Communications Technology - Hardware,
Solihull MBC,Public Health ,Adult Social Care,High Street Vouche,03/11/2014,50.00,Public Health Leadership,169999 - Domestic Goods - Not Elsewhere Classified,
Solihull MBC,Public Health ,Adult Social Care,High Street Vouche,10/11/2014,50.00,Public Health Leadership,169999 - Domestic Goods - Not Elsewhere Classified,
Solihull MBC,Children's Services,Children & Education Services,Historicala,10/11/2014,31.50,St John The Baptist J&I,171040 - Education - Educational Placements,
Solihull MBC,Resources,Central Services to the Public,HMCourts-Service.G,19/11/2014,57.00,Income Team,289999 - Legal Services - Not Elsewhere Classified,
Solihull MBC,Resources,Central Services to the Public,HMCourts-Service.G,06/11/2014,60.00,Income Team,289999 - Legal Services - Not Elsewhere Classified,
Solihull MBC,Resources,Central Services to the Public,HMCourts-Service.G,01/12/2014,120.00,Income Team,289999 - Legal Services - Not Elsewhere Classified,
Solihull MBC,Resources,Central Services to the Public,HMCourts-Service.G,06/11/2014,174.00,Income Team,289999 - Legal Services - Not Elsewhere Classified,
Solihull MBC,Resources,Central Services to the Public,HMCourts-Service.G,19/11/2014,1116.00,Income Team,289999 - Legal Services - Not Elsewhere Classified,
Solihull MBC,Resources,Central Services to the Public,HMCourts-Service.G,01/12/2014,1230.00,Income Team,289999 - Legal Services - Not Elsewhere Classified,
Solihull MBC,Children's Services,Children & Education Services,Hobby Craft Ltd,26/11/2014,79.50,Chuckles,171110 - Education - Arts & Crafts,
Solihull MBC,Children's Services,Children & Education Services,Hobbycraft (Internet),21/11/2014,40.00,Tidbury Green J&I,171110 - Education - Arts & Crafts,
Solihull MBC,Children's Services,Children & Education Services,Hobbycraft Group L,21/11/2014,8.00,Dorridge Inf,171110 - Education - Arts & Crafts,
Solihull MBC,Children's Services,Children & Education Services,Hobbycraft Group L,22/11/2014,13.50,Afterschool Club,171110 - Education - Arts & Crafts,
Solihull MBC,Children's Services,Children & Education Services,Hobbycraft Group L,06/11/2014,24.80,Monkspath Monkeys,171110 - Education - Arts & Crafts,
Solihull MBC,Children's Services,Children & Education Services,Hobbycraft Group L,16/11/2014,26.08,Woodies Childcare,171110 - Education - Arts & Crafts,
Solihull MBC,Children's Services,Children & Education Services,Hobbycraft Group L,20/11/2014,36.30,Monkspath Monkeys,171110 - Education - Arts & Crafts,
Solihull MBC,Children's Services,Children & Education Services,Hobbycraft Group L,15/11/2014,37.50,Dorridge Inf Lunch Club,171110 - Education - Arts & Crafts,
Solihull MBC,Places - HRA,Housing Revenue Account,Hogarths Hotel Ltd,27/11/2014,500.00,Purchase Card Acquisitions,261000 - Human Resources - Accommodation,
Solihull MBC,Places - HRA,Housing Revenue Account,Hogarths Hotel Ltd,27/11/2014,542.75,Purchase Card Acquisitions,261000 - Human Resources - Accommodation,
Solihull MBC,Children's Services,Children & Education Services,Holiday Inn,27/11/2014,96.00,Sch Assets Sup Team - SAST,261000 - Human Resources - Accommodation,
Solihull MBC,Adult Social Care,Adult Social Care,Home Bargains,26/11/2014,3.99,25 Stapleton Drive,101400 - Building Construction Materials - General Materials,
Solihull MBC,Children's Services,Children & Education Services,Home Bargains Chelmsle,14/11/2014,42.92,Afterschool Club,101400 - Building Construction Materials - General Materials,
Solihull MBC,Children's Services,Children & Education Services,Homebase Ltd 039,24/11/2014,4.87,Mill Lodge J&I,102500 - Building Construction Materials - Timber,
Solihull MBC,Places,Environmental and Regulatory Services,Homebase Ltd 039,18/11/2014,5.99,Trading Standards,102500 - Building Construction Materials - Timber,
Solihull MBC,Children's Services,Children & Education Services,Homebase Ltd 039,12/11/2014,6.49,Blossomfield Inf,102500 - Building Construction Materials - Timber,
Solihull MBC,Adult Social Care,Adult Social Care,Homebase Ltd 039,21/11/2014,14.99,9 Downing Close,102500 - Building Construction Materials - Timber,
Solihull MBC,Children's Services,Children & Education Services,Homebase Ltd 039,25/11/2014,14.99,Hatchfrd Brook Youth Cntre,102500 - Building Construction Materials - Timber,
Solihull MBC,Places,Cultural & Related Services,Homebase Ltd 039,24/11/2014,29.00,Arts Complex Hirings,102500 - Building Construction Materials - Timber,
Solihull MBC,Children's Services,Children & Education Services,Homebase Ltd 039,21/11/2014,29.97,Shirley Heath Jnr,102500 - Building Construction Materials - Timber,
Solihull MBC,Children's Services,Children & Education Services,Homebase Ltd 039,20/11/2014,303.92,Langley J&I,102500 - Building Construction Materials - Timber,
Solihull MBC,Children's Services,Children & Education Services,Homebase Ltd 494,18/11/2014,40.44,Widney Jnr,102500 - Building Construction Materials - Timber,
Solihull MBC,Children's Services,Children & Education Services,Homebase.co.uk,23/11/2014,212.94,Dickens Hth Primary,211100 - Furniture & Soft Furnishings - Domestic Furniture,
Solihull MBC,Children's Services,Children & Education Services,Homesense,02/12/2014,-149.97,Monkspath J&I,169999 - Domestic Goods - Not Elsewhere Classified,
Solihull MBC,Children's Services,Children & Education Services,Homesense,02/12/2014,308.75,Monkspath J&I,169999 - Domestic Goods - Not Elsewhere Classified,
Solihull MBC,Places - HRA,Housing Revenue Account,Hotels Com119389201425,03/11/2014,129.95,Purchase Card Acquisitions,261600 - Human Resources - Travel & Subsistence,
Solihull MBC,Children's Services,Children & Education Services,HSD Online,24/11/2014,703.20,Coleshill Heath J&I,169999 - Domestic Goods - Not Elsewhere Classified,
Solihull MBC,Children's Services,Children & Education Services,HSS Hire,02/12/2014,-150.00,St Anne's J&I,219999 - Furniture & Soft Furnishings 0 Not Elsewhere Classified,
Solihull MBC,Children's Services,Children & Education Services,HSS Hire,07/11/2014,150.00,St Anne's J&I,219999 - Furniture & Soft Furnishings 0 Not Elsewhere Classified,
Solihull MBC,Children's Services,Children & Education Services,Ian Smith Office Sppls L,07/11/2014,78.00,Smith's Wood,169999 - Domestic Goods - Not Elsewhere Classified,
Solihull MBC,Children's Services,Children & Education Services,Ian Smith Office Sppls L,03/11/2014,97.50,Smith's Wood,169999 - Domestic Goods - Not Elsewhere Classified,
Solihull MBC,Children's Services,Children & Education Services,Ian Smith Office Sppls L,03/11/2014,97.50,Smith's Wood,169999 - Domestic Goods - Not Elsewhere Classified,
Solihull MBC,Children's Services,Children & Education Services,Ian Smith Office Sppls L,17/11/2014,195.00,Smith's Wood,169999 - Domestic Goods - Not Elsewhere Classified,
Solihull MBC,Resources,Central Services to the Public,Ibis Liverpool,01/12/2014,316.85,ICT Data Base Analysis,261000 - Human Resources - Accommodation,
Solihull MBC,Resources,Central Services to the Public,Ibis Liverpool,01/12/2014,344.85,ICT Data Base Analysis,261000 - Human Resources - Accommodation,
Solihull MBC,Adult Social Care,Adult Social Care,Iceland,06/11/2014,21.45,222 Bills Lane,111200 - Catering - Food & Beverages,
Solihull MBC,Adult Social Care,Adult Social Care,Iceland,24/11/2014,61.66,137 Bills Lane,111200 - Catering - Food & Beverages,
Solihull MBC,Children's Services,Children & Education Services,Iceland,10/11/2014,66.21,Chuckles,111200 - Catering - Food & Beverages,
Solihull MBC,Children's Services,Children & Education Services,Iceland,27/11/2014,69.64,Chuckles,111200 - Catering - Food & Beverages,
Solihull MBC,Adult Social Care,Adult Social Care,Iceland,24/11/2014,136.55,137 Bills Lane,111200 - Catering - Food & Beverages,
Solihull MBC,Adult Social Care,Adult Social Care,Iceland,24/11/2014,177.52,137 Bills Lane,111200 - Catering - Food & Beverages,
Solihull MBC,Children's Services,Children & Education Services,Idn Supplies Ltd,07/11/2014,143.96,Coppice Jnr,169999 - Domestic Goods - Not Elsewhere Classified,
Solihull MBC,Children's Services,Children & Education Services,Idn Supplies Ltd,20/11/2014,504.00,Coppice Jnr,169999 - Domestic Goods - Not Elsewhere Classified,
Solihull MBC,Children's Services,Children & Education Services,Ikea Online,26/11/2014,44.00,Burman Inf,211210 - Furniture & Soft Furnishings - Soft Furnishings,
Solihull MBC,Children's Services,Children & Education Services,Ikea Online,06/11/2014,406.00,Fostering Team,211210 - Furniture & Soft Furnishings - Soft Furnishings,
Solihull MBC,Places,Cultural & Related Services,Independent Ns & Md Ltd,06/11/2014,58.50,Libraries Resources Fund,291400 - Arts & Leisure Services - Sport & Fitness,
Solihull MBC,Children's Services,Children & Education Services,Inkjets & Toners,14/11/2014,62.16,Smith's Wood,341100 - Stationery - Sundries,
Solihull MBC,Children's Services,Children & Education Services,Instant Skips Ltd,01/12/2014,192.00,Dickens Hth Primary,219999 - Furniture & Soft Furnishings 0 Not Elsewhere Classified,
Solihull MBC,Children's Services,Children & Education Services,Insurancechoice.Co,14/11/2014,99.00,Reynalds Cross,201800 - Financial Services - Insurance,
Solihull MBC,Children's Services,Children & Education Services,Insurancechoice.Co,14/11/2014,99.00,Reynalds Cross,201800 - Financial Services - Insurance,
Solihull MBC,Children's Services,Children & Education Services,Intensesports.Couk,25/11/2014,47.00,Kineton Green Primary,331300 - Sports & Playground Equipment & Maintenance - Sports Equipment,
Solihull MBC,Children's Services,Children & Education Services,Intensesports.Couk,25/11/2014,124.00,Kineton Green Primary,331300 - Sports & Playground Equipment & Maintenance - Sports Equipment,
Solihull MBC,Business Transformation,Central Services to the Public,IRMS,24/11/2014,75.00,Corp Perform Policy & Info,202100 - Financial Services - Subscriptions,
Solihull MBC,Business Transformation,Central Services to the Public,IRMS,24/11/2014,75.00,Corp Perform Policy & Info,202100 - Financial Services - Subscriptions,
Solihull MBC,Children's Services,Children & Education Services,Itunes.com Bill,21/11/2014,0.69,Monkspath J&I,171111 - Education - Audio Visual,
Solihull MBC,Children's Services,Children & Education Services,Itunes.com Bill,28/11/2014,2.28,St Anne's J&I,171111 - Education - Audio Visual,
Solihull MBC,Children's Services,Children & Education Services,Itunes.com Bill,28/11/2014,2.49,Monkspath J&I,171111 - Education - Audio Visual,
Solihull MBC,Children's Services,Children & Education Services,Itunes.com Bill,21/11/2014,2.98,Merstone,171111 - Education - Audio Visual,
Solihull MBC,Children's Services,Children & Education Services,Itunes.com Bill,12/11/2014,2.99,Hazel Oak,171111 - Education - Audio Visual,
Solihull MBC,Children's Services,Children & Education Services,Itunes.com Bill,14/11/2014,2.99,Hazel Oak,171111 - Education - Audio Visual,
Solihull MBC,Children's Services,Children & Education Services,Itunes.com Bill,20/11/2014,2.99,Reynalds Cross,171111 - Education - Audio Visual,
Solihull MBC,Children's Services,Children & Education Services,Itunes.com Bill,14/11/2014,5.97,Reynalds Cross,171111 - Education - Audio Visual,
Solihull MBC,Children's Services,Children & Education Services,Itunes.com Bill,07/11/2014,6.99,Reynalds Cross,171111 - Education - Audio Visual,
Solihull MBC,Children's Services,Children & Education Services,Itunes.com Bill,07/11/2014,7.66,Reynalds Cross,171111 - Education - Audio Visual,
Solihull MBC,Children's Services,Children & Education Services,Itunes.com Bill,02/12/2014,10.88,St Mary & Margaret J&I,171111 - Education - Audio Visual,
Solihull MBC,Children's Services,Children & Education Services,Itunes.com Bill,02/12/2014,10.88,St Mary & Margaret J&I,171111 - Education - Audio Visual,
Solihull MBC,Children's Services,Children & Education Services,Itunes.com Bill,07/11/2014,20.86,Reynalds Cross,171111 - Education - Audio Visual,
Solihull MBC,Children's Services,Children & Education Services,Itunes.com Bill,21/11/2014,21.99,Reynalds Cross,171111 - Education - Audio Visual,
Solihull MBC,Children's Services,Children & Education Services,Itunes.com Bill,27/11/2014,29.80,Hazel Oak,171111 - Education - Audio Visual,
Solihull MBC,Children's Services,Children & Education Services,Itunes.com Bill,07/11/2014,37.20,Hazel Oak,171111 - Education - Audio Visual,
Solihull MBC,Children's Services,Children & Education Services,Itunes.com Bill,14/11/2014,51.65,St Anthony's J&I,171111 - Education - Audio Visual,
Solihull MBC,Children's Services,Children & Education Services,Itunes.com Bill,05/11/2014,63.49,St Anthony's J&I,171111 - Education - Audio Visual,
Solihull MBC,Children's Services,Children & Education Services,Itunes.com Bill,21/11/2014,83.58,Sharmans Cross Jnr,171111 - Education - Audio Visual,
Solihull MBC,Places,Cultural & Related Services,J D Sports  142,25/11/2014,15.00,Park Rangers,331300 - Sports & Playground Equipment & Maintenance - Sports Equipment,
Solihull MBC,Children's Services,Children & Education Services,J W Treadwell Ltd,26/11/2014,26.00,Peterbrook J&I,101400 - Building Construction Materials - General Materials,
Solihull MBC,Children's Services,Children & Education Services,Jeffries Hardware,11/11/2014,7.98,Reynalds Cross,101400 - Building Construction Materials - General Materials,
Solihull MBC,Children's Services,Children & Education Services,Jeffries Hardware,27/11/2014,17.95,Reynalds Cross,101400 - Building Construction Materials - General Materials,
Solihull MBC,Children's Services,Children & Education Services,Jeffries Hardware,27/11/2014,27.50,Reynalds Cross,101400 - Building Construction Materials - General Materials,
Solihull MBC,Children's Services,Children & Education Services,Jeffries Hardware,02/12/2014,40.00,Reynalds Cross,101400 - Building Construction Materials - General Materials,
Solihull MBC,Children's Services,Children & Education Services,Jeffries Hardware,07/11/2014,47.31,Reynalds Cross,101400 - Building Construction Materials - General Materials,
Solihull MBC,Children's Services,Children & Education Services,John Lewis,25/11/2014,8.45,Dorridge Inf Lunch Club,169999 - Domestic Goods - Not Elsewhere Classified,
Solihull MBC,Children's Services,Children & Education Services,John Lewis,15/11/2014,45.00,Woodies Childcare,169999 - Domestic Goods - Not Elsewhere Classified,
Solihull MBC,Places,Highways & Transport Services,John Lewis,04/11/2014,49.99,Urban Traffic Control,169999 - Domestic Goods - Not Elsewhere Classified,
Solihull MBC,Children's Services,Children & Education Services,Jolly Tots Ltd,28/11/2014,99.99,Section 17 Smiths Wood,141000 - Clothing - Children & Adults,
Solihull MBC,Children's Services,Children & Education Services,Jolly Tots Ltd,19/11/2014,174.97,Fostering Team,141000 - Clothing - Children & Adults,
Solihull MBC,Children's Services,Children & Education Services,JS Online Grocery,10/11/2014,71.24,S C Kids,111200 - Catering - Food & Beverages,
Solihull MBC,Children's Services,Children & Education Services,JS Online Grocery,17/11/2014,88.60,S C Kids,111200 - Catering - Food & Beverages,
Solihull MBC,Children's Services,Children & Education Services,JS Online Grocery,24/11/2014,90.30,S C Kids,111200 - Catering - Food & Beverages,
Solihull MBC,Children's Services,Children & Education Services,JS Online Grocery,03/11/2014,105.94,S C Kids,111200 - Catering - Food & Beverages,
Solihull MBC,Children's Services,Children & Education Services,JS Online Grocery,02/12/2014,114.65,Dickens Heath Afterschool Club,111200 - Catering - Food & Beverages,
Solihull MBC,Children's Services,Children & Education Services,JS Online Grocery,06/11/2014,114.96,Yorkswood N'hood Nursery,111200 - Catering - Food & Beverages,
Solihull MBC,Children's Services,Children & Education Services,JS Online Grocery,24/11/2014,116.05,Greswold Lunch Club,111200 - Catering - Food & Beverages,
Solihull MBC,Children's Services,Children & Education Services,JS Online Grocery,27/11/2014,119.15,Yorkswood N'hood Nursery,111200 - Catering - Food & Beverages,
Solihull MBC,Children's Services,Children & Education Services,JS Online Grocery,17/11/2014,119.47,Greswold Lunch Club,111200 - Catering - Food & Beverages,
Solihull MBC,Children's Services,Children & Education Services,JS Online Grocery,01/12/2014,121.49,Greswold Lunch Club,111200 - Catering - Food & Beverages,
Solihull MBC,Children's Services,Children & Education Services,JS Online Grocery,18/11/2014,124.00,Dickens Heath Afterschool Club,111200 - Catering - Food & Beverages,
Solihull MBC,Children's Services,Children & Education Services,JS Online Grocery,03/11/2014,128.45,Yorkswood N'hood Nursery,111200 - Catering - Food & Beverages,
Solihull MBC,Children's Services,Children & Education Services,JS Online Grocery,03/11/2014,128.61,Greswold Lunch Club,111200 - Catering - Food & Beverages,
Solihull MBC,Children's Services,Children & Education Services,JS Online Grocery,01/12/2014,130.05,Swallows Childcare,111200 - Catering - Food & Beverages,
Solihull MBC,Children's Services,Children & Education Services,JS Online Grocery,11/11/2014,131.05,Swallows Childcare,111200 - Catering - Food & Beverages,
Solihull MBC,Children's Services,Children & Education Services,JS Online Grocery,10/11/2014,132.45,Greswold Lunch Club,111200 - Catering - Food & Beverages,
Solihull MBC,Children's Services,Children & Education Services,JS Online Grocery,01/12/2014,136.80,S C Kids,111200 - Catering - Food & Beverages,
Solihull MBC,Children's Services,Children & Education Services,JS Online Grocery,25/11/2014,145.72,Dickens Heath Afterschool Club,111200 - Catering - Food & Beverages,
Solihull MBC,Children's Services,Children & Education Services,JS Online Grocery,03/11/2014,153.53,Hazel Oak,111200 - Catering - Food & Beverages,
Solihull MBC,Children's Services,Children & Education Services,JS Online Grocery,11/11/2014,157.10,Dickens Heath Afterschool Club,111200 - Catering - Food & Beverages,
Solihull MBC,Children's Services,Children & Education Services,JS Online Grocery,17/11/2014,159.85,Swallows Childcare,111200 - Catering - Food & Beverages,
Solihull MBC,Children's Services,Children & Education Services,JS Online Grocery,01/12/2014,173.75,Yorkswood N'hood Nursery,111200 - Catering - Food & Beverages,
Solihull MBC,Children's Services,Children & Education Services,JS Online Grocery,24/11/2014,175.52,Hazel Oak,111200 - Catering - Food & Beverages,
Solihull MBC,Children's Services,Children & Education Services,JS Online Grocery,24/11/2014,178.75,Swallows Childcare,111200 - Catering - Food & Beverages,
Solihull MBC,Children's Services,Children & Education Services,JS Online Grocery,10/11/2014,183.95,Yorkswood N'hood Nursery,111200 - Catering - Food & Beverages,
Solihull MBC,Children's Services,Children & Education Services,JS Online Grocery,03/11/2014,194.35,Swallows Childcare,111200 - Catering - Food & Beverages,
Solihull MBC,Children's Services,Children & Education Services,JS Online Grocery,17/11/2014,195.55,Yorkswood N'hood Nursery,111200 - Catering - Food & Beverages,
Solihull MBC,Children's Services,Children & Education Services,JS Online Grocery,17/11/2014,199.67,Hazel Oak,111200 - Catering - Food & Beverages,
Solihull MBC,Children's Services,Children & Education Services,JS Online Grocery,10/11/2014,224.91,Hazel Oak,111200 - Catering - Food & Beverages,
Solihull MBC,Children's Services,Children & Education Services,Jtf Wholesale Ltd,09/11/2014,50.05,Monkspath Monkeys,161000 - Domestic Goods - Commercial,
Solihull MBC,Children's Services,Children & Education Services,KFC - Chelmsley Wood,06/11/2014,2.98,Section 17 DART,111200 - Catering - Food & Beverages,
Solihull MBC,Children's Services,Children & Education Services,Kiely Bros Ltd,21/11/2014,176.00,St Anthony's J&I,169999 - Domestic Goods - Not Elsewhere Classified,
Solihull MBC,Adult Social Care,Adult Social Care,Knowle Photographics L,01/12/2014,16.49,8 Downing Close,192000 - Facilities & Management Services - Reprographics,
Solihull MBC,Adult Social Care,Adult Social Care,Lakeland Limited,18/11/2014,6.99,137 Bills Lane,169999 - Domestic Goods - Not Elsewhere Classified,
Solihull MBC,Children's Services,Children & Education Services,Lakeland.Limited,04/11/2014,5.98,Greswold Lunch Club,169999 - Domestic Goods - Not Elsewhere Classified,
Solihull MBC,Children's Services,Children & Education Services,Lampspecs.co.uk,02/12/2014,25.02,St George & Teresa J&I,169999 - Domestic Goods - Not Elsewhere Classified,
Solihull MBC,Children's Services,Children & Education Services,Lan Danaire Models,07/11/2014,15.00,Coleshill Heath J&I,171117 - Education - Toys,
Solihull MBC,Children's Services,Children & Education Services,Lastminute.com Uk-Gbp,13/11/2014,184.00,Ulverley J&I,261600 - Human Resources - Travel & Subsistence,
Solihull MBC,Adult Social Care,Adult Social Care,Lend Lease Real Estate,27/11/2014,20.00,ASC - Chief Executive's Office,161000 - Domestic Goods - Commercial,
Solihull MBC,Children's Services,Children & Education Services,Lend Lease Real Estate,01/12/2014,35.00,Yew Tree J&I,161000 - Domestic Goods - Commercial,
Solihull MBC,Children's Services,Children & Education Services,Lend Lease Real Estate,26/11/2014,50.00,Adoption Team,161000 - Domestic Goods - Commercial,
Solihull MBC,Children's Services,Children & Education Services,Lidl Uk,28/11/2014,29.67,Coleshill Heath J&I,111200 - Catering - Food & Beverages,
Solihull MBC,Children's Services,Children & Education Services,Linguascope,27/11/2014,300.00,Smith's Wood,171011 - Education - School Services,
Solihull MBC,Children's Services,Children & Education Services,Livegroup.co.uk,04/11/2014,120.00,LAC Education Service,151000 - Consultancy - Business,
Solihull MBC,Children's Services,Children & Education Services,London Expo,22/11/2014,80.00,Hatchfrd Brook Youth Cntre,169999 - Domestic Goods - Not Elsewhere Classified,
Solihull MBC,Children's Services,Children & Education Services,London Midland Int,25/11/2014,16.50,St Andrew's J&I,261600 - Human Resources - Travel & Subsistence,
Solihull MBC,Places,Other Housing Services,London Midland Tic,14/11/2014,3.40,Policy + Spatial Planning,261600 - Human Resources - Travel & Subsistence,
Solihull MBC,Places,Highways & Transport Services,London Midland Tic,25/11/2014,5.50,Environmental Champion,261600 - Human Resources - Travel & Subsistence,
Solihull MBC,Children's Services,Children & Education Services,Lufthansa   2205820612664,06/11/2014,169.08,Smith's Wood,361300 - Public Transport - Passenger Transport,
Solihull MBC,Children's Services,Children & Education Services,Lufthansa   2205820612665,06/11/2014,169.08,Smith's Wood,361300 - Public Transport - Passenger Transport,
Solihull MBC,Places,Environmental and Regulatory Services,LULTicket Machine,03/11/2014,9.00,Licensing,261600 - Human Resources - Travel & Subsistence,
Solihull MBC,Resources,Central Services to the Public,LULTicket Machine,20/11/2014,9.00,ICT: Network Support,261600 - Human Resources - Travel & Subsistence,
Solihull MBC,Resources,Central Services to the Public,LULTicket Machine,04/11/2014,20.00,CMT Secretariat,261600 - Human Resources - Travel & Subsistence,
Solihull MBC,Business Transformation,Planning & Development Services,LULTicket Office.,18/11/2014,8.90,Community & Voluntary,261600 - Human Resources - Travel & Subsistence,
Solihull MBC,Children's Services,Children & Education Services,"Lynda.com, Inc.",16/11/2014,247.27,Lyndon,171011 - Education - School Services,
Solihull MBC,Children's Services,Children & Education Services,M & A Lilly,20/11/2014,110.22,Connexions ABG,111200 - Catering - Food & Beverages,
Solihull MBC,Children's Services,Children & Education Services,M R Pharmacy,17/11/2014,23.00,St Alphege Jnr,311200 - Healthcare - Drugs,
Solihull MBC,Places - HRA,Housing Revenue Account,M&J Mahoney & Sons Ltd,14/11/2014,4.62,Purchase Card Acquisitions,102500 - Building Construction Materials - Timber,
Solihull MBC,Places - HRA,Housing Revenue Account,M&J Mahoney & Sons Ltd,13/11/2014,11.88,Purchase Card Acquisitions,102500 - Building Construction Materials - Timber,
Solihull MBC,Places - HRA,Housing Revenue Account,M&J Mahoney & Sons Ltd,19/11/2014,17.72,Purchase Card Acquisitions,102500 - Building Construction Materials - Timber,
Solihull MBC,Places - HRA,Housing Revenue Account,M&J Mahoney & Sons Ltd,13/11/2014,20.09,Purchase Card Acquisitions,102500 - Building Construction Materials - Timber,
Solihull MBC,Places - HRA,Housing Revenue Account,M&J Mahoney & Sons Ltd,19/11/2014,24.09,Purchase Card Acquisitions,102500 - Building Construction Materials - Timber,
Solihull MBC,Places - HRA,Housing Revenue Account,M&J Mahoney & Sons Ltd,28/11/2014,68.40,Purchase Card Acquisitions,102500 - Building Construction Materials - Timber,
Solihull MBC,Children's Services,Children & Education Services,M&J Mahoney & Sons Ltd,05/11/2014,126.00,Yorkswood J&I,102500 - Building Construction Materials - Timber,
Solihull MBC,Places,Cultural & Related Services,M&J Mahoney & Sons Ltd,19/11/2014,371.76,Park Rangers,102500 - Building Construction Materials - Timber,
Solihull MBC,Children's Services,Children & Education Services,M&S E Commerce,19/11/2014,-29.50,St George & Teresa J&I,111200 - Catering - Food & Beverages,
Solihull MBC,Children's Services,Children & Education Services,M&S E Commerce,19/11/2014,29.50,St George & Teresa J&I,111200 - Catering - Food & Beverages,
Solihull MBC,Children's Services,Children & Education Services,M&S E Commerce,19/11/2014,29.50,St George & Teresa J&I,111200 - Catering - Food & Beverages,
Solihull MBC,Places,Environmental and Regulatory Services,M6 Toll,02/12/2014,5.50,Trading Standards,261600 - Human Resources - Travel & Subsistence,
Solihull MBC,Places,Environmental and Regulatory Services,M6 Toll,02/12/2014,5.50,Trading Standards,261600 - Human Resources - Travel & Subsistence,
Solihull MBC,Children's Services,Children & Education Services,Macmillan Distribution,05/11/2014,31.23,Adoption Team,349999 - Stationery - Not Elsewhere Classified,
Solihull MBC,Places,Cultural & Related Services,Magical Story,14/11/2014,23.55,Park Rangers,169999 - Domestic Goods - Not Elsewhere Classified,
Solihull MBC,Adult Social Care,Adult Social Care,Malcolms Stores Limited,25/11/2014,8.69,Roundmead,111200 - Catering - Food & Beverages,
Solihull MBC,Places,Cultural & Related Services,Maney.co.uk,06/11/2014,149.00,Libraries Resources Fund,202100 - Financial Services - Subscriptions,
Solihull MBC,Places,Cultural & Related Services,Manitowoc Foodservice,02/12/2014,70.39,Theatre Bar,111100 - Catering - Equipment & Utensils,
Solihull MBC,Places,Cultural & Related Services,Manitowoc Foodservice,20/11/2014,108.00,Theatre Bar,111100 - Catering - Equipment & Utensils,
Solihull MBC,Business Transformation,Children & Education Services,Mansuri,10/11/2014,16.00,Troubled Families,141000 - Clothing - Children & Adults,
Solihull MBC,Children's Services,Children & Education Services,Marks & Spencer,21/11/2014,5.00,Yew Tree J&I,111200 - Catering - Food & Beverages,
Solihull MBC,Public Health ,Adult Social Care,Marks & Spencer,25/11/2014,9.70,Public Health Leadership,111200 - Catering - Food & Beverages,
Solihull MBC,Children's Services,Children & Education Services,Marks & Spencer,09/11/2014,11.35,Monkspath Monkeys,111200 - Catering - Food & Beverages,
Solihull MBC,Places,Cultural & Related Services,Marks & Spencer,27/11/2014,12.00,Arts Complex Hirings,111200 - Catering - Food & Beverages,
Solihull MBC,Children's Services,Children & Education Services,Marks & Spencer Simply,03/11/2014,4.00,Catering Management,111200 - Catering - Food & Beverages,
Solihull MBC,Children's Services,Children & Education Services,Marks & Spencer Simply,02/12/2014,28.35,Streetsbrook Inf,111200 - Catering - Food & Beverages,
Solihull MBC,Children's Services,Children & Education Services,Martin Mccoll 6166,19/11/2014,28.50,Positive Pathways,111200 - Catering - Food & Beverages,
Solihull MBC,Places,Environmental and Regulatory Services,Matrix Nutrition,19/11/2014,13.98,Food Safety,169999 - Domestic Goods - Not Elsewhere Classified,
Solihull MBC,Children's Services,Children & Education Services,Maudesport Ltd,20/11/2014,59.99,St Anthony's J&I,331300 - Sports & Playground Equipment & Maintenance - Sports Equipment,
Solihull MBC,Places - HRA,Housing Revenue Account,Maxwellamen,20/11/2014,40.74,Purchase Card Acquisitions,249999 - Horticultural - Not Elsewhere Classified,
Solihull MBC,Children's Services,Children & Education Services,Maypole Service St,04/11/2014,19.08,Hazel Oak,381100 - Vehicle Management - Fuel,
Solihull MBC,Children's Services,Children & Education Services,Mcdonalds,21/11/2014,2.68,Corporate Parenting Youth,261600 - Human Resources - Travel & Subsistence,
Solihull MBC,Children's Services,Children & Education Services,Mcdonalds,21/11/2014,2.69,Corporate Parenting Youth,261600 - Human Resources - Travel & Subsistence,
Solihull MBC,Children's Services,Children & Education Services,Mcdonalds,25/11/2014,6.48,Corporate Parenting Youth,261600 - Human Resources - Travel & Subsistence,
Solihull MBC,Adult Social Care,Adult Social Care,Mcdonalds,11/11/2014,23.72,25 Stapleton Drive,261600 - Human Resources - Travel & Subsistence,
Solihull MBC,Children's Services,Children & Education Services,Mcdonalds Rest,13/11/2014,6.18,Positive Pathways,261600 - Human Resources - Travel & Subsistence,
Solihull MBC,Children's Services,Children & Education Services,Mej Hingley & Co Ltd,18/11/2014,29.94,St Andrew's J&I,311200 - Healthcare - Drugs,
Solihull MBC,Children's Services,Children & Education Services,Melbicks Garden And Le,28/11/2014,376.98,St Andrew's J&I,249999 - Horticultural - Not Elsewhere Classified,
Solihull MBC,Children's Services,Children & Education Services,Meredith Letting,18/11/2014,90.00,CSW Team B U18 Local Clients,261000 - Human Resources - Accommodation,
Solihull MBC,Children's Services,Children & Education Services,Meru,07/11/2014,274.00,Reynalds Cross,311300 - Healthcare - Equipment,
Solihull MBC,Children's Services,Children & Education Services,Meyer Timber Ltd,18/11/2014,264.00,St Anne's J&I,102500 - Building Construction Materials - Timber,
Solihull MBC,Children's Services,Children & Education Services,Midlands Art Centre,04/11/2014,66.50,Reynalds Cross,291100 - Arts & Leisure Services - Museums & Arts,
Solihull MBC,Children's Services,Children & Education Services,Midshire Business,21/11/2014,9.00,Marston Green Jnr,341100 - Stationery - Sundries,
Solihull MBC,Children's Services,Children & Education Services,Mil Superstickers-,28/11/2014,17.64,Smith's Wood,341100 - Stationery - Sundries,
Solihull MBC,Children's Services,Children & Education Services,Mil Superstickers-,25/11/2014,224.94,Lyndon,341100 - Stationery - Sundries,
Solihull MBC,Children's Services,Children & Education Services,Modmypi Ltd,13/11/2014,84.86,Lyndon,271600 - Information Communication Technology - Software - Customised & Bespoke,
Solihull MBC,Children's Services,Children & Education Services,Monarch Airlines,18/11/2014,1665.01,Lyndon,361300 - Public Transport - Passenger Transport,
Solihull MBC,Places - HRA,Housing Revenue Account,Moneyclaim.Gov.Uk,03/11/2014,70.00,Purchase Card Acquisitions,289999 - Legal Services - Not Elsewhere Classified,
Solihull MBC,Places,Cultural & Related Services,Moneyfacts Group plc,25/11/2014,146.50,Libraries Resources Fund,151000 - Consultancy - Business,
Solihull MBC,Children's Services,Children & Education Services,Monster Skips Ltd,20/11/2014,180.00,Greswold J&I,219999 - Furniture & Soft Furnishings 0 Not Elsewhere Classified,
Solihull MBC,Children's Services,Children & Education Services,Morrisons Petrol,06/11/2014,5.91,St Anthony's J&I,381100 - Vehicle Management - Fuel,
Solihull MBC,Children's Services,Children & Education Services,Morrisons Petrol,11/11/2014,32.04,S.C.I.L. School Joint Costs,381100 - Vehicle Management - Fuel,
Solihull MBC,Resources,Central Services to the Public,Mortons Bar & Grill Ltd,21/11/2014,19.30,CMT Secretariat,261600 - Human Resources - Travel & Subsistence,
Solihull MBC,Children's Services,Children & Education Services,Mothercare Direct-E-Co,14/11/2014,39.94,Langley J&I,169999 - Domestic Goods - Not Elsewhere Classified,
Solihull MBC,Children's Services,Children & Education Services,Myparceldelivery Com,27/11/2014,26.05,Dorridge Inf,301000 - Mail Services - Couriers,
Solihull MBC,Places,Cultural & Related Services,National Magazine C L Su,24/11/2014,29.99,Libraries Resources Fund,349999 - Stationery - Not Elsewhere Classified,
Solihull MBC,Places,Adult Social Care,NCP Limited,28/11/2014,7.30,Safer Communities Initiat,261600 - Human Resources - Travel & Subsistence,
Solihull MBC,Places,Environmental and Regulatory Services,NCP Limited,13/11/2014,12.30,Licensing,261600 - Human Resources - Travel & Subsistence,
Solihull MBC,Children's Services,Children & Education Services,Nec Uk Limited,02/12/2014,15.00,Kineton Green Primary,271200 - Information Communications Technology - Hardware,
Solihull MBC,Adult Social Care,Adult Social Care,Newton House,07/11/2014,158.00,25 Stapleton Drive,261000 - Human Resources - Accommodation,
Solihull MBC,Children's Services,Children & Education Services,Nisa Supermarket,25/11/2014,19.49,Auckland Centre,111200 - Catering - Food & Beverages,
Solihull MBC,Children's Services,Children & Education Services,North Solihull Leisure Ce,24/11/2014,2.10,Evolution Project (BIP),291400 - Arts & Leisure Services - Sport & Fitness,
Solihull MBC,Children's Services,Children & Education Services,North Solihull Leisure Ce,01/12/2014,4.20,Evolution Project (BIP),291400 - Arts & Leisure Services - Sport & Fitness,
Solihull MBC,Adult Social Care,Adult Social Care,North Solihull Leisure Ce,13/11/2014,5.30,25 Stapleton Drive,291400 - Arts & Leisure Services - Sport & Fitness,
Solihull MBC,Children's Services,Children & Education Services,North Solihull Leisure Ce,10/11/2014,6.30,Evolution Project (BIP),291400 - Arts & Leisure Services - Sport & Fitness,
Solihull MBC,Children's Services,Children & Education Services,North Solihull Leisure Ce,11/11/2014,8.40,Evolution Project (BIP),291400 - Arts & Leisure Services - Sport & Fitness,
Solihull MBC,Children's Services,Children & Education Services,North Solihull Leisure Ce,18/11/2014,8.40,Evolution Project (BIP),291400 - Arts & Leisure Services - Sport & Fitness,
Solihull MBC,Children's Services,Children & Education Services,North Solihull Leisure Ce,25/11/2014,10.50,Evolution Project (BIP),291400 - Arts & Leisure Services - Sport & Fitness,
Solihull MBC,Children's Services,Children & Education Services,O Heap & Son (Derby) L,05/11/2014,193.85,St John The Baptist J&I,151000 - Consultancy - Business,
Solihull MBC,Children's Services,Children & Education Services,O2 Uk,01/12/2014,29.98,Yew Tree J&I,271699 - Information Communications Technology - Telecommunications,
Solihull MBC,Children's Services,Children & Education Services,O2 UK CCA Payment,06/11/2014,87.60,Coleshill Heath J&I,271699 - Information Communications Technology - Telecommunications,
Solihull MBC,Children's Services,Children & Education Services,O2 Uk Payment,19/11/2014,77.30,Marston Green Jnr,271699 - Information Communications Technology - Telecommunications,
Solihull MBC,Children's Services,Children & Education Services,Officialrecordcouk,17/11/2014,34.74,CSW Team B U18 Local Clients,151900 - Consultancy - Management,
Solihull MBC,Children's Services,Children & Education Services,Oka Direct Ltd,18/11/2014,250.00,St John The Baptist J&I,211100 - Furniture & Soft Furnishings - Domestic Furniture,
Solihull MBC,Children's Services,Children & Education Services,One Stop 2856,24/11/2014,3.18,Peterbrook Club,111200 - Catering - Food & Beverages,
Solihull MBC,Children's Services,Children & Education Services,One Stop 3013,02/12/2014,3.00,St Andrew's J&I,111200 - Catering - Food & Beverages,
Solihull MBC,Children's Services,Children & Education Services,One Stop 3013,04/11/2014,7.80,Reynalds Cross,111200 - Catering - Food & Beverages,
Solihull MBC,Children's Services,Children & Education Services,One Stop 3062,05/11/2014,5.20,Ark,111200 - Catering - Food & Beverages,
Solihull MBC,Children's Services,Children & Education Services,Online Schools Ltd,01/12/2014,99.00,Smith's Wood,271430 - Information Communication Technology - Software - Commercial Off-The-Shelf,
Solihull MBC,Children's Services,Children & Education Services,Oxforduniversitypr,14/11/2014,383.60,Smith's Wood,171114 - Education - Literature,
Solihull MBC,Resources,Central Services to the Public,Oyster Autotopup,18/11/2014,20.00,ICT: Network Support,261600 - Human Resources - Travel & Subsistence,
Solihull MBC,Resources,Central Services to the Public,Oyster Autotopup,21/11/2014,20.00,ICT: Network Support,261600 - Human Resources - Travel & Subsistence,
Solihull MBC,Business Transformation,Central Services to the Public,Oyster Renew Web,24/11/2014,25.00,Procurement,261600 - Human Resources - Travel & Subsistence,
Solihull MBC,Children's Services,Children & Education Services,Palace Theatre,21/11/2014,114.00,Reynalds Cross,299999 - Arts & Leisure Services -Not Elsewhere Classified,
Solihull MBC,Places,Cultural & Related Services,Paperchase,27/11/2014,8.00,Arts Complex Hirings,169999 - Domestic Goods - Not Elsewhere Classified,
Solihull MBC,Children's Services,Children & Education Services,Parcel2Go,26/11/2014,99.59,Smith's Wood,301100 - Mail Services - Freight,
Solihull MBC,Places,Adult Social Care,Park Mobile,10/11/2014,3.70,Safer Communities Initiat,261600 - Human Resources - Travel & Subsistence,
Solihull MBC,Places,Highways & Transport Services,Park Mobile,13/11/2014,3.90,Places Dir Savings CS Cab,261600 - Human Resources - Travel & Subsistence,
Solihull MBC,Children's Services,Children & Education Services,Patterson Medical Ltd,07/11/2014,270.00,Reynalds Cross,311300 - Healthcare - Equipment,
Solihull MBC,Children's Services,Children & Education Services,Pauls Discount Firewor,22/11/2014,6.99,Dorridge Inf Lunch Club,349999 - Stationery - Not Elsewhere Classified,
Solihull MBC,Children's Services,Children & Education Services,Pauls Discount Firewor,20/11/2014,7.98,Woodies Childcare,349999 - Stationery - Not Elsewhere Classified,
Solihull MBC,Children's Services,Children & Education Services,Paypal *360 Trading,26/11/2014,18.49,Dickens Hth Primary,151000 - Consultancy - Business,
Solihull MBC,Children's Services,Children & Education Services,Paypal *Aettranslat,01/12/2014,24.99,Meriden J&I,151900 - Consultancy - Management,
Solihull MBC,Children's Services,Children & Education Services,Paypal *Amalcollect,04/11/2014,6.45,Cranmore Inf,169999 - Domestic Goods - Not Elsewhere Classified,
Solihull MBC,Children's Services,Children & Education Services,Paypal *Amusementma,06/11/2014,300.00,St Andrew's J&I,151000 - Consultancy - Business,
Solihull MBC,Children's Services,Children & Education Services,Paypal *Amusementma,06/11/2014,352.80,St Andrew's J&I,151000 - Consultancy - Business,
Solihull MBC,Children's Services,Children & Education Services,Paypal *Anjplumbing,12/11/2014,24.20,Kingshurst Primary,211100 - Furniture & Soft Furnishings - Domestic Furniture,
Solihull MBC,Children's Services,Children & Education Services,Paypal *Artificialf,19/11/2014,8.00,Cranmore Little Acorns & Kids Club,201000 - Financial Services - Accountancy,
Solihull MBC,Children's Services,Children & Education Services,Paypal *Bakerrossli,11/11/2014,55.63,Burman Inf,171117 - Education - Toys,
Solihull MBC,Children's Services,Children & Education Services,Paypal *Bakerrossli,20/11/2014,88.83,Peterbrook Club,171117 - Education - Toys,
Solihull MBC,Children's Services,Children & Education Services,Paypal *Bbcchildren,05/11/2014,52.25,Tidbury Green J&I,201710 - Financial Services - Grants - Charitable,
Solihull MBC,Children's Services,Children & Education Services,Paypal *Bms Ltd,01/12/2014,138.03,Hazel Oak,151000 - Consultancy - Business,
Solihull MBC,Children's Services,Children & Education Services,Paypal *Book People,18/11/2014,25.65,Cranmore Little Acorns & Kids Club,171114 - Education - Literature,
Solihull MBC,Children's Services,Children & Education Services,Paypal *Book People,18/11/2014,30.31,Cranmore Little Acorns & Kids Club,171114 - Education - Literature,
Solihull MBC,Children's Services,Children & Education Services,Paypal *Book People,26/11/2014,41.94,Cranmore Inf,171114 - Education - Literature,
Solihull MBC,Children's Services,Children & Education Services,Paypal *Bookdeposit,01/12/2014,12.08,Peterbrook J&I,171114 - Education - Literature,
Solihull MBC,Children's Services,Children & Education Services,Paypal *Bookdeposit,11/11/2014,16.34,Kingshurst Primary,171114 - Education - Literature,
Solihull MBC,Children's Services,Children & Education Services,Paypal *Bookdeposit,01/12/2014,18.63,Peterbrook J&I,171114 - Education - Literature,
Solihull MBC,Children's Services,Children & Education Services,Paypal *Bookdeposit,11/11/2014,41.93,Peterbrook J&I,171114 - Education - Literature,
Solihull MBC,Children's Services,Children & Education Services,Paypal *Bookdeposit,02/12/2014,59.32,Peterbrook J&I,171114 - Education - Literature,
Solihull MBC,Children's Services,Children & Education Services,Paypal *Chenshaona,18/11/2014,-7.04,Dickens Hth Primary,169999 - Domestic Goods - Not Elsewhere Classified,
Solihull MBC,Children's Services,Children & Education Services,Paypal *Chenshaona,10/11/2014,7.04,Dickens Hth Primary,169999 - Domestic Goods - Not Elsewhere Classified,
Solihull MBC,Children's Services,Children & Education Services,Paypal *Christianpl,20/11/2014,9.89,Chapel Fields Jnr,171111 - Education - Audio Visual,
Solihull MBC,Resources,Central Services to the Public,Paypal *Cleverbridg,17/11/2014,100.82,ICT: Desktop Team Helpdesk,279999 - Information Communications Technology - Not Elsewhere Classified,
Solihull MBC,Resources,Central Services to the Public,Paypal *Computerris,19/11/2014,49.80,ICT Data Base Analysis,169999 - Domestic Goods - Not Elsewhere Classified,
Solihull MBC,Children's Services,Children & Education Services,Paypal *Countysales,06/11/2014,2.58,Kingshurst Primary,169999 - Domestic Goods - Not Elsewhere Classified,
Solihull MBC,Business Transformation,Central Services to the Public,Paypal *Dartington,27/11/2014,-14.00,Organisational Development,201710 - Financial Services - Grants - Charitable,
Solihull MBC,Business Transformation,Central Services to the Public,Paypal *Dartington,27/11/2014,14.00,Organisational Development,201710 - Financial Services - Grants - Charitable,
Solihull MBC,Children's Services,Children & Education Services,Paypal *Eastlandtra,10/11/2014,10.98,Dickens Hth Primary,211210 - Furniture & Soft Furnishings - Soft Furnishings,
Solihull MBC,Children's Services,Children & Education Services,Paypal *Ebay,21/11/2014,10.00,Cranmore Inf,331300 - Sports & Playground Equipment & Maintenance - Sports Equipment,
Solihull MBC,Children's Services,Children & Education Services,Paypal *Ebay Paid,25/11/2014,72.90,St Mary & Margaret J&I,169999 - Domestic Goods - Not Elsewhere Classified,
Solihull MBC,Children's Services,Children & Education Services,Paypal *Edublogs,05/11/2014,25.86,Lyndon,349999 - Stationery - Not Elsewhere Classified,
Solihull MBC,Children's Services,Children & Education Services,Paypal *Email,19/11/2014,4.95,Adoption Team,202100 - Financial Services - Subscriptions,
Solihull MBC,Children's Services,Children & Education Services,Paypal *Esceurope,24/11/2014,479.94,Hazel Oak,331300 - Sports & Playground Equipment & Maintenance - Sports Equipment,
Solihull MBC,Children's Services,Children & Education Services,Paypal *Esosolution,14/11/2014,16.00,Cranmore Little Acorns & Kids Club,171110 - Education - Arts & Crafts,
Solihull MBC,Children's Services,Children & Education Services,Paypal *Evequeleisu,26/11/2014,567.60,Hazel Oak,331300 - Sports & Playground Equipment & Maintenance - Sports Equipment,
Solihull MBC,Children's Services,Children & Education Services,Paypal *Fred,11/11/2014,6.23,Yorkswood N'hood Nursery,151000 - Consultancy - Business,
Solihull MBC,Children's Services,Children & Education Services,Paypal *Grahamdowne,19/11/2014,1.95,Cranmore Little Acorns & Kids Club,169999 - Domestic Goods - Not Elsewhere Classified,
Solihull MBC,Children's Services,Children & Education Services,Paypal *Guan Na,05/11/2014,4.74,Dickens Hth Primary,169999 - Domestic Goods - Not Elsewhere Classified,
Solihull MBC,Children's Services,Children & Education Services,Paypal *Headway Cs,26/11/2014,24.00,Hazel Oak,151900 - Consultancy - Management,
Solihull MBC,Children's Services,Children & Education Services,Paypal *Hu Fanjin,18/11/2014,74.07,St Andrew's J&I,169999 - Domestic Goods - Not Elsewhere Classified,
Solihull MBC,Children's Services,Children & Education Services,Paypal *Ishop247,24/11/2014,39.99,Hazel Oak,101400 - Building Construction Materials - General Materials,
Solihull MBC,Children's Services,Children & Education Services,Paypal *Jackie,07/11/2014,9.99,Hazel Oak,111200 - Catering - Food & Beverages,
Solihull MBC,Children's Services,Children & Education Services,Paypal *Ketoplastic,12/11/2014,17.49,Dickens Hth Primary,249999 - Horticultural - Not Elsewhere Classified,
Solihull MBC,Children's Services,Children & Education Services,Paypal *Librexeduca,25/11/2014,45.95,Chapel Fields Jnr,171010 - Education - Adult & Further Education Services,
Solihull MBC,Children's Services,Children & Education Services,Paypal *Limartradin,24/11/2014,13.90,Dickens Hth Primary,169999 - Domestic Goods - Not Elsewhere Classified,
Solihull MBC,Children's Services,Children & Education Services,Paypal *Loggerheadp,06/11/2014,47.94,Fordbridge Community Primary,171040 - Education - Educational Placements,
Solihull MBC,Children's Services,Children & Education Services,Paypal *Marcusretti,25/11/2014,13.90,Hazel Oak,169999 - Domestic Goods - Not Elsewhere Classified,
Solihull MBC,Adult Social Care,Adult Social Care,Paypal *Medpageltdt,02/12/2014,125.49,ASC - Telecare,311300 - Healthcare - Equipment,
Solihull MBC,Children's Services,Children & Education Services,Paypal *Mlebeducati,14/11/2014,75.00,Damson Wood Inf,171040 - Education - Educational Placements,
Solihull MBC,Children's Services,Children & Education Services,Paypal *Mollysmixtu,05/11/2014,7.65,Dickens Hth Primary,111200 - Catering - Food & Beverages,
Solihull MBC,Children's Services,Children & Education Services,Paypal *Morrellshan,12/11/2014,112.32,Hazel Oak,171040 - Education - Educational Placements,
Solihull MBC,Children's Services,Children & Education Services,Paypal *Nessylearni,03/11/2014,92.40,Hazel Oak,169999 - Domestic Goods - Not Elsewhere Classified,
Solihull MBC,Children's Services,Children & Education Services,Paypal *Optunlimite,25/11/2014,35.09,Hazel Oak,271600 - Information Communication Technology - Software - Customised & Bespoke,
Solihull MBC,Children's Services,Children & Education Services,Paypal *Papercutzlt,11/11/2014,20.11,Burman Inf,341100 - Stationery - Sundries,
Solihull MBC,Children's Services,Children & Education Services,Paypal *Party4Meltd,18/11/2014,9.49,Peterbrook J&I,141000 - Clothing - Children & Adults,
Solihull MBC,Children's Services,Children & Education Services,Paypal *Pcbitz Com,21/11/2014,19.95,Smith's Wood,169999 - Domestic Goods - Not Elsewhere Classified,
Solihull MBC,Children's Services,Children & Education Services,Paypal *Pcbitz Com,01/12/2014,44.95,Smith's Wood,169999 - Domestic Goods - Not Elsewhere Classified,
Solihull MBC,Children's Services,Children & Education Services,Paypal *Pdk Ltd,21/11/2014,10.75,Cranmore Inf,171110 - Education - Arts & Crafts,
Solihull MBC,Children's Services,Children & Education Services,Paypal *Phonicsplay,17/11/2014,120.00,Greswold J&I,171040 - Education - Educational Placements,
Solihull MBC,Children's Services,Children & Education Services,Paypal *Pinegrovetr,06/11/2014,1.98,Kingshurst Primary,171117 - Education - Toys,
Solihull MBC,Children's Services,Children & Education Services,Paypal *Popaltechno,25/11/2014,39.75,Hazel Oak,169999 - Domestic Goods - Not Elsewhere Classified,
Solihull MBC,Children's Services,Children & Education Services,Paypal *Promo Prod Pro,14/11/2014,145.00,Monkspath J&I,141000 - Clothing - Children & Adults,
Solihull MBC,Children's Services,Children & Education Services,Paypal *Qvsmarketin,05/11/2014,20.50,Dickens Hth Primary,202100 - Financial Services - Subscriptions,
Solihull MBC,Children's Services,Children & Education Services,Paypal *R Felton,19/11/2014,3.50,Cranmore Little Acorns & Kids Club,211210 - Furniture & Soft Furnishings - Soft Furnishings,
Solihull MBC,Children's Services,Children & Education Services,Paypal *Raoshaoping,22/11/2014,13.98,Windy Arbor J&I,141000 - Clothing - Children & Adults,
Solihull MBC,Children's Services,Children & Education Services,Paypal *Rapidelectr,07/11/2014,13.90,Hazel Oak,151000 - Consultancy - Business,
Solihull MBC,Children's Services,Children & Education Services,Paypal *Shop Online,11/11/2014,274.98,Peterbrook J&I,101400 - Building Construction Materials - General Materials,
Solihull MBC,Children's Services,Children & Education Services,Paypal *Size co uk,04/11/2014,-85.00,Hazel Oak,141000 - Clothing - Children & Adults,
Solihull MBC,Children's Services,Children & Education Services,Paypal *Themetimeau,11/11/2014,27.50,St John The Baptist J&I,169999 - Domestic Goods - Not Elsewhere Classified,
Solihull MBC,Children's Services,Children & Education Services,Paypal *Tongmaster,05/11/2014,5.89,Dickens Hth Primary,111200 - Catering - Food & Beverages,
Solihull MBC,Children's Services,Children & Education Services,Paypal *Toolitecomp,06/11/2014,99.00,Hazel Oak,169999 - Domestic Goods - Not Elsewhere Classified,
Solihull MBC,Children's Services,Children & Education Services,Paypal *Toys R Us,25/11/2014,9.38,Burman Inf,171117 - Education - Toys,
Solihull MBC,Children's Services,Children & Education Services,Paypal *Toys R Us,25/11/2014,36.58,Burman Inf,171117 - Education - Toys,
Solihull MBC,Children's Services,Children & Education Services,Paypal *Ukbusinesss,05/11/2014,19.00,Dickens Hth Primary,111200 - Catering - Food & Beverages,
Solihull MBC,Children's Services,Children & Education Services,Paypal *Vsmusicsupp,04/11/2014,3.85,Kineton Green Primary,241000 - Horticultural - Chemicals,
Solihull MBC,Resources,Central Services to the Public,Paypal *Wrist Donut,03/11/2014,13.19,Contact Service Support,169999 - Domestic Goods - Not Elsewhere Classified,
Solihull MBC,Children's Services,Children & Education Services,Paypal *Yunyi Cai,06/11/2014,12.90,Peterbrook J&I,241000 - Horticultural - Chemicals,
Solihull MBC,Adult Social Care,Adult Social Care,Pivotell Ltd,02/12/2014,115.20,ASC - Telecare,311300 - Healthcare - Equipment,
Solihull MBC,Children's Services,Children & Education Services,Post Office Counter,07/11/2014,1.72,Positive Pathways,301200 - Mail Services - Postage,
Solihull MBC,Children's Services,Children & Education Services,Post Office Counter,24/11/2014,1.72,Chuckles,301200 - Mail Services - Postage,
Solihull MBC,Adult Social Care,Adult Social Care,Post Office Counter,02/12/2014,1.72,OP - Home Care HQ,301200 - Mail Services - Postage,
Solihull MBC,Children's Services,Children & Education Services,Post Office Counter,10/11/2014,2.03,Forest Oak,301200 - Mail Services - Postage,
Solihull MBC,Children's Services,Children & Education Services,Post Office Counter,27/11/2014,3.20,St George & Teresa J&I,301200 - Mail Services - Postage,
Solihull MBC,Adult Social Care,Adult Social Care,Post Office Counter,03/11/2014,4.06,OP - Home Care HQ,301200 - Mail Services - Postage,
Solihull MBC,Children's Services,Children & Education Services,Post Office Counter,17/11/2014,4.30,Coleshill Heath J&I,301200 - Mail Services - Postage,
Solihull MBC,Children's Services,Children & Education Services,Post Office Counter,20/11/2014,4.30,Auckland Centre,301200 - Mail Services - Postage,
Solihull MBC,Children's Services,Children & Education Services,Post Office Counter,14/11/2014,6.40,Catering Management,301200 - Mail Services - Postage,
Solihull MBC,Children's Services,Children & Education Services,Post Office Counter,20/11/2014,7.15,Widney Jnr,301200 - Mail Services - Postage,
Solihull MBC,Children's Services,Children & Education Services,Post Office Counter,24/11/2014,7.15,St Anthony's J&I,301200 - Mail Services - Postage,
Solihull MBC,Children's Services,Children & Education Services,Post Office Counter,04/11/2014,7.44,Catering Management,301200 - Mail Services - Postage,
Solihull MBC,Children's Services,Children & Education Services,Post Office Counter,14/11/2014,11.78,Evolution Project (BIP),301200 - Mail Services - Postage,
Solihull MBC,Children's Services,Children & Education Services,Post Office Counter,07/11/2014,13.14,Local Safeguarding Childrens Board,301200 - Mail Services - Postage,
Solihull MBC,Children's Services,Children & Education Services,Post Office Counter,01/12/2014,22.32,Yorkswood N'hood Nursery,301200 - Mail Services - Postage,
Solihull MBC,Children's Services,Children & Education Services,Post Office Counter,14/11/2014,27.60,Lyndon,301200 - Mail Services - Postage,
Solihull MBC,Children's Services,Children & Education Services,Post Office Counter,27/11/2014,30.00,Evolution Project (BIP),301200 - Mail Services - Postage,
Solihull MBC,Children's Services,Children & Education Services,Post Office Counter,11/11/2014,55.22,Children SW-South/Central,301200 - Mail Services - Postage,
Solihull MBC,Children's Services,Children & Education Services,Post Office Counter,07/11/2014,57.50,Positive Pathways,301200 - Mail Services - Postage,
Solihull MBC,Children's Services,Children & Education Services,Post Office Counter,18/11/2014,62.00,Youth Offending Team,301200 - Mail Services - Postage,
Solihull MBC,Children's Services,Children & Education Services,Post Office Counter,01/12/2014,62.00,Sharmans Cross Jnr,301200 - Mail Services - Postage,
Solihull MBC,Children's Services,Children & Education Services,Post Office Counter,07/11/2014,81.25,CSW Team B U18 Local Clients,301200 - Mail Services - Postage,
Solihull MBC,Children's Services,Children & Education Services,Post Office Counter,08/11/2014,115.00,Bishop Wilson J&I,301200 - Mail Services - Postage,
Solihull MBC,Children's Services,Children & Education Services,Post Office Counter,26/11/2014,153.86,Dorridge Inf,301200 - Mail Services - Postage,
Solihull MBC,Children's Services,Children & Education Services,Post Office Counter,12/11/2014,160.25,Adoption Team,301200 - Mail Services - Postage,
Solihull MBC,Children's Services,Children & Education Services,Post Office Counter,13/11/2014,186.00,Child Protection Unit (Prevention),301200 - Mail Services - Postage,
Solihull MBC,Children's Services,Children & Education Services,Post Office Counter,05/11/2014,248.00,Child Protection Unit (Prevention),301200 - Mail Services - Postage,
Solihull MBC,Children's Services,Children & Education Services,Postoffice Selfservice,24/11/2014,4.65,LAC Education Service,301200 - Mail Services - Postage,
Solihull MBC,Places,Highways & Transport Services,Poundland Ltd 1080,27/11/2014,5.00,Environmental Champion,169999 - Domestic Goods - Not Elsewhere Classified,
Solihull MBC,Children's Services,Children & Education Services,Poundland Ltd 1174,24/11/2014,7.00,Coleshill Heath J&I,169999 - Domestic Goods - Not Elsewhere Classified,
Solihull MBC,Children's Services,Children & Education Services,Poundland Ltd 1224,24/11/2014,9.00,Smith's Wood,169999 - Domestic Goods - Not Elsewhere Classified,
Solihull MBC,Public Health ,Central Services to the Public,Poundland Ltd 1282,05/11/2014,2.00,CSW Resilience,169999 - Domestic Goods - Not Elsewhere Classified,
Solihull MBC,Children's Services,Children & Education Services,Poundland Ltd 1713,02/12/2014,4.00,Local Safeguarding Childrens Board,169999 - Domestic Goods - Not Elsewhere Classified,
Solihull MBC,Places,Environmental and Regulatory Services,Poundland Ltd 1713,02/12/2014,6.00,Town Centres and Events,169999 - Domestic Goods - Not Elsewhere Classified,
Solihull MBC,Children's Services,Children & Education Services,Poundland Ltd 1713,20/11/2014,10.00,Inspectors,169999 - Domestic Goods - Not Elsewhere Classified,
